Date of payment,Expense Type,Expense Area,Supplier,Transactional number,Amount,Department,Entity
27/02/2013,TRAINING COURSE FEES,SUPPORT SERVICES,3C ASSOCIATES LTD,5100285970,"4,500.00",United Kingdom Atomic Energy Authority,United Kingdom Atomic Energy Authority
25/02/2013,SOFTWARE,FUSION,3D SCANNERS UK,5100285516,"1,525.00",United Kingdom Atomic Energy Authority,United Kingdom Atomic Energy Authority
26/03/2013,PRINTING & GRAPHICS,FUSION,4 IMPRINT,5100286958,"2,987.00",United Kingdom Atomic Energy Authority,United Kingdom Atomic Energy Authority
20/03/2013,MATERIALS & SPARES,FUSION,600 UK,5100286740,385.62,United Kingdom Atomic Energy Authority,United Kingdom Atomic Energy Authority
06/03/2013,PLANT SPARES,FUSION,A D INSTALLATION LTD,5100286021,"1,240.00",United Kingdom Atomic Energy Authority,United Kingdom Atomic Energy Authority
18/03/2013,PLANT SPARES,FUSION,A D INSTALLATION LTD,5100286639,"1,860.00",United Kingdom Atomic Energy Authority,United Kingdom Atomic Energy Authority
26/03/2013,PLANT SPARES,FUSION,A W CLARKE,5100287003,281.44,United Kingdom Atomic Energy Authority,United Kingdom Atomic Energy Authority
26/03/2013,PLANT & EQUIPMENT,FUSION,AALCO LIMITED,5100286977,287.00,United Kingdom Atomic Energy Authority,United Kingdom Atomic Energy Authority
27/02/2013,SOFTWARE,FUSION,ABB LTD,5100285828,"2,592.00",United Kingdom Atomic Energy Authority,United Kingdom Atomic Energy Authority
27/02/2013,SOFTWARE,FUSION,ABB LTD,5100285829,"6,201.00",United Kingdom Atomic Energy Authority,United Kingdom Atomic Energy Authority
27/02/2013,SOFTWARE,FUSION,ABB LTD,5100285830,"2,740.00",United Kingdom Atomic Energy Authority,United Kingdom Atomic Energy Authority
18/03/2013,SOFTWARE,FUSION,ABB LTD,5100286150,"21,530.00",United Kingdom Atomic Energy Authority,United Kingdom Atomic Energy Authority
18/03/2013,CONSUMABLES,SUPPORT SERVICES,ABLOY SECURITY,5100286635,162.02,United Kingdom Atomic Energy Authority,United Kingdom Atomic Energy Authority
18/03/2013,CONSUMABLES,SUPPORT SERVICES,ABLOY SECURITY,5100286636,199.90,United Kingdom Atomic Energy Authority,United Kingdom Atomic Energy Authority
20/03/2013,MATERIALS & SPARES,FUSION,AC PRECISION ENGINEERING LTD,5100286948,"12,000.00",United Kingdom Atomic Energy Authority,United Kingdom Atomic Energy Authority
26/03/2013,IT EQUIPMENT NON CAPITAL,FUSION,ACME TECHNOLOGY,5100286814,876.00,United Kingdom Atomic Energy Authority,United Kingdom Atomic Energy Authority
18/03/2013,REPAIRS & MAINTENANCE,FUSION,AD YOUNG TECHNICAL SERVICES LIMITED,5100286567,750.00,United Kingdom Atomic Energy Authority,United Kingdom Atomic Energy Authority
26/03/2013,SECURITY AND EMERGENCY,PROPERTY,ADT FIRE & SECURITY PLC,5100286926,"3,000.00",United Kingdom Atomic Energy Authority,United Kingdom Atomic Energy Authority
18/03/2013,PUBLICATIONS,FUSION,ADVERT COLOUR,5100286790,"2,434.00",United Kingdom Atomic Energy Authority,United Kingdom Atomic Energy Authority
25/02/2013,PLANT & EQUIPMENT,FUSION,AEROSPACE TOOLING,5100285813,"1,005.97",United Kingdom Atomic Energy Authority,United Kingdom Atomic Energy Authority
26/03/2013,CONSUMABLES,FUSION,AGATE PRODUCTS LTD,5100286849,200.00,United Kingdom Atomic Energy Authority,United Kingdom Atomic Energy Authority
11/03/2013,PLANT & EQUIPMENT,FUSION,AGGREKO UK,5100286459,"3,800.00",United Kingdom Atomic Energy Authority,United Kingdom Atomic Energy Authority
27/03/2013,MATERIALS & SPARES,FUSION,AIHA - PROFICIENCY TESTING PROGRAMMES,5100287267,"2,834.54",United Kingdom Atomic Energy Authority,United Kingdom Atomic Energy Authority
25/02/2013,GASES,FUSION,AIR PRODUCTS PLC,5100285644,18.91,United Kingdom Atomic Energy Authority,United Kingdom Atomic Energy Authority
25/02/2013,GASES,FUSION,AIR PRODUCTS PLC,5100285645,94.55,United Kingdom Atomic Energy Authority,United Kingdom Atomic Energy Authority
25/02/2013,GASES,FUSION,AIR PRODUCTS PLC,5100285648,18.79,United Kingdom Atomic Energy Authority,United Kingdom Atomic Energy Authority
27/02/2013,GASES,FUSION,AIR PRODUCTS PLC,5100285647,18.91,United Kingdom Atomic Energy Authority,United Kingdom Atomic Energy Authority
26/03/2013,GASES,FUSION,AIR PRODUCTS PLC,5100286874,17.08,United Kingdom Atomic Energy Authority,United Kingdom Atomic Energy Authority
26/03/2013,GASES,FUSION,AIR PRODUCTS PLC,5100286873,85.40,United Kingdom Atomic Energy Authority,United Kingdom Atomic Energy Authority
26/03/2013,GASES,FUSION,AIR PRODUCTS PLC,5100286877,27.16,United Kingdom Atomic Energy Authority,United Kingdom Atomic Energy Authority
25/02/2013,MATERIALS & SPARES,FUSION,ALPHA ENGINEERING SUPPLIES,5100285594,57.60,United Kingdom Atomic Energy Authority,United Kingdom Atomic Energy Authority
04/03/2013,MATERIALS & SPARES,FUSION,ALPHA ENGINEERING SUPPLIES,5100286035,179.40,United Kingdom Atomic Energy Authority,United Kingdom Atomic Energy Authority
04/03/2013,MATERIALS & SPARES,FUSION,ALPHA ENGINEERING SUPPLIES,5100286034,120.75,United Kingdom Atomic Energy Authority,United Kingdom Atomic Energy Authority
11/03/2013,MATERIALS & SPARES,FUSION,ALPHA ENGINEERING SUPPLIES,5100286286,145.00,United Kingdom Atomic Energy Authority,United Kingdom Atomic Energy Authority
11/03/2013,MATERIALS & SPARES,FUSION,ALPHA ENGINEERING SUPPLIES,5100286317,263.76,United Kingdom Atomic Energy Authority,United Kingdom Atomic Energy Authority
11/03/2013,MATERIALS & SPARES,FUSION,ALPHA ENGINEERING SUPPLIES,5100286318,"1,093.80",United Kingdom Atomic Energy Authority,United Kingdom Atomic Energy Authority
11/03/2013,MATERIALS & SPARES,FUSION,ALPHA ENGINEERING SUPPLIES,5100286437,120.00,United Kingdom Atomic Energy Authority,United Kingdom Atomic Energy Authority
18/03/2013,MATERIALS & SPARES,FUSION,ALPHA ENGINEERING SUPPLIES,5100286617,92.00,United Kingdom Atomic Energy Authority,United Kingdom Atomic Energy Authority
18/03/2013,MATERIALS & SPARES,FUSION,ALPHA ENGINEERING SUPPLIES,5100286717,559.21,United Kingdom Atomic Energy Authority,United Kingdom Atomic Energy Authority
18/03/2013,MATERIALS & SPARES,FUSION,ALPHA ENGINEERING SUPPLIES,5100286718,540.33,United Kingdom Atomic Energy Authority,United Kingdom Atomic Energy Authority
18/03/2013,MATERIALS & SPARES,FUSION,ALPHA ENGINEERING SUPPLIES,5100286618,"1,065.20",United Kingdom Atomic Energy Authority,United Kingdom Atomic Energy Authority
26/03/2013,MATERIALS & SPARES,FUSION,ALPHA ENGINEERING SUPPLIES,5100286881,423.36,United Kingdom Atomic Energy Authority,United Kingdom Atomic Energy Authority
26/03/2013,MATERIALS & SPARES,FUSION,ALPHA ENGINEERING SUPPLIES,5100287013,202.07,United Kingdom Atomic Energy Authority,United Kingdom Atomic Energy Authority
26/03/2013,MATERIALS & SPARES,FUSION,ALPHA ENGINEERING SUPPLIES,5100286882,139.00,United Kingdom Atomic Energy Authority,United Kingdom Atomic Energy Authority
25/02/2013,PLANT & EQUIPMENT,FUSION,ALPHA LABORATORIES,5100285833,458.40,United Kingdom Atomic Energy Authority,United Kingdom Atomic Energy Authority
25/02/2013,MATERIALS & SPARES,FUSION,ALPHA PACKAGING,5100285744,497.62,United Kingdom Atomic Energy Authority,United Kingdom Atomic Energy Authority
27/02/2013,MATERIALS & SPARES,FUSION,ALPHA PACKAGING,5100285815,174.08,United Kingdom Atomic Energy Authority,United Kingdom Atomic Energy Authority
11/03/2013,MATERIALS & SPARES,SUPPORT SERVICES,ALPHA PACKAGING,5100286404,266.00,United Kingdom Atomic Energy Authority,United Kingdom Atomic Energy Authority
27/02/2013,MATERIALS & SPARES,FUSION,ANIXTER (UK) LTD,5100285905,731.50,United Kingdom Atomic Energy Authority,United Kingdom Atomic Energy Authority
26/03/2013,MATERIALS & SPARES,FUSION,ANIXTER (UK) LTD,5100286840,646.00,United Kingdom Atomic Energy Authority,United Kingdom Atomic Energy Authority
27/02/2013,OPERATING LEASE,FUSION,ANNODATA BUSINESS COMMUNICATIONS,5100286104,90.68,United Kingdom Atomic Energy Authority,United Kingdom Atomic Energy Authority
27/02/2013,OPERATING LEASE,FUSION,ANNODATA BUSINESS COMMUNICATIONS,5100286105,-90.68,United Kingdom Atomic Energy Authority,United Kingdom Atomic Energy Authority
28/02/2013,OPERATING LEASE,FUSION,ANNODATA BUSINESS COMMUNICATIONS,5100286098,-214.76,United Kingdom Atomic Energy Authority,United Kingdom Atomic Energy Authority
28/02/2013,OPERATING LEASE,FUSION,ANNODATA BUSINESS COMMUNICATIONS,5100286100,-6.92,United Kingdom Atomic Energy Authority,United Kingdom Atomic Energy Authority
28/02/2013,OPERATING LEASE,FUSION,ANNODATA BUSINESS COMMUNICATIONS,5100286132,214.76,United Kingdom Atomic Energy Authority,United Kingdom Atomic Energy Authority
28/02/2013,OPERATING LEASE,FUSION,ANNODATA BUSINESS COMMUNICATIONS,5100286133,6.92,United Kingdom Atomic Energy Authority,United Kingdom Atomic Energy Authority
11/03/2013,OPERATING LEASE,FUSION,ANNODATA BUSINESS COMMUNICATIONS,5100286108,90.68,United Kingdom Atomic Energy Authority,United Kingdom Atomic Energy Authority
11/03/2013,OPERATING LEASE,FUSION,ANNODATA BUSINESS COMMUNICATIONS,5100286135,-214.76,United Kingdom Atomic Energy Authority,United Kingdom Atomic Energy Authority
11/03/2013,OPERATING LEASE,FUSION,ANNODATA BUSINESS COMMUNICATIONS,5100286136,-6.92,United Kingdom Atomic Energy Authority,United Kingdom Atomic Energy Authority
11/03/2013,OPERATING LEASE,FUSION,ANNODATA BUSINESS COMMUNICATIONS,5100286445,560.01,United Kingdom Atomic Energy Authority,United Kingdom Atomic Energy Authority
25/02/2013,PERSONAL PROTECTIVE EQUIPMENT,FUSION,ARCO LTD,5100285597,159.60,United Kingdom Atomic Energy Authority,United Kingdom Atomic Energy Authority
25/02/2013,PERSONAL PROTECTIVE EQUIPMENT,FUSION,ARCO LTD,5100285635,411.48,United Kingdom Atomic Energy Authority,United Kingdom Atomic Energy Authority
25/02/2013,PERSONAL PROTECTIVE EQUIPMENT,FUSION,ARCO LTD,5100285637,570.00,United Kingdom Atomic Energy Authority,United Kingdom Atomic Energy Authority
25/02/2013,PERSONAL PROTECTIVE EQUIPMENT,FUSION,ARCO LTD,5100285638,124.08,United Kingdom Atomic Energy Authority,United Kingdom Atomic Energy Authority
25/02/2013,PERSONAL PROTECTIVE EQUIPMENT,FUSION,ARCO LTD,5100285639,"1,641.00",United Kingdom Atomic Energy Authority,United Kingdom Atomic Energy Authority
25/02/2013,PERSONAL PROTECTIVE EQUIPMENT,FUSION,ARCO LTD,5100285764,62.04,United Kingdom Atomic Energy Authority,United Kingdom Atomic Energy Authority
25/02/2013,PERSONAL PROTECTIVE EQUIPMENT,FUSION,ARCO LTD,5100285766,42.00,United Kingdom Atomic Energy Authority,United Kingdom Atomic Energy Authority
25/02/2013,PERSONAL PROTECTIVE EQUIPMENT,FUSION,ARCO LTD,5100285798,190.76,United Kingdom Atomic Energy Authority,United Kingdom Atomic Energy Authority
06/03/2013,PERSONAL PROTECTIVE EQUIPMENT,FUSION,ARCO LTD,5100286068,114.36,United Kingdom Atomic Energy Authority,United Kingdom Atomic Energy Authority
06/03/2013,PERSONAL PROTECTIVE EQUIPMENT,FUSION,ARCO LTD,5100286070,387.80,United Kingdom Atomic Energy Authority,United Kingdom Atomic Energy Authority
06/03/2013,PERSONAL PROTECTIVE EQUIPMENT,FUSION,ARCO LTD,5100286075,310.20,United Kingdom Atomic Energy Authority,United Kingdom Atomic Energy Authority
06/03/2013,PERSONAL PROTECTIVE EQUIPMENT,FUSION,ARCO LTD,5100286076,357.60,United Kingdom Atomic Energy Authority,United Kingdom Atomic Energy Authority
06/03/2013,PERSONAL PROTECTIVE EQUIPMENT,FUSION,ARCO LTD,5100286077,638.40,United Kingdom Atomic Energy Authority,United Kingdom Atomic Energy Authority
06/03/2013,PERSONAL PROTECTIVE EQUIPMENT,FUSION,ARCO LTD,5100286079,274.32,United Kingdom Atomic Energy Authority,United Kingdom Atomic Energy Authority
11/03/2013,PERSONAL PROTECTIVE EQUIPMENT,FUSION,ARCO LTD,5100286432,52.99,United Kingdom Atomic Energy Authority,United Kingdom Atomic Energy Authority
11/03/2013,PERSONAL PROTECTIVE EQUIPMENT,FUSION,ARCO LTD,5100286248,456.00,United Kingdom Atomic Energy Authority,United Kingdom Atomic Energy Authority
11/03/2013,PERSONAL PROTECTIVE EQUIPMENT,FUSION,ARCO LTD,5100286250,151.20,United Kingdom Atomic Energy Authority,United Kingdom Atomic Energy Authority
11/03/2013,PERSONAL PROTECTIVE EQUIPMENT,FUSION,ARCO LTD,5100286252,46.66,United Kingdom Atomic Energy Authority,United Kingdom Atomic Energy Authority
11/03/2013,PERSONAL PROTECTIVE EQUIPMENT,FUSION,ARCO LTD,5100286253,80.34,United Kingdom Atomic Energy Authority,United Kingdom Atomic Energy Authority
11/03/2013,PERSONAL PROTECTIVE EQUIPMENT,FUSION,ARCO LTD,5100286427,305.88,United Kingdom Atomic Energy Authority,United Kingdom Atomic Energy Authority
11/03/2013,PERSONAL PROTECTIVE EQUIPMENT,FUSION,ARCO LTD,5100286433,35.09,United Kingdom Atomic Energy Authority,United Kingdom Atomic Energy Authority
11/03/2013,PERSONAL PROTECTIVE EQUIPMENT,FUSION,ARCO LTD,5100286435,39.48,United Kingdom Atomic Energy Authority,United Kingdom Atomic Energy Authority
11/03/2013,PERSONAL PROTECTIVE EQUIPMENT,PROPERTY,ARCO LTD,5100286249,98.58,United Kingdom Atomic Energy Authority,United Kingdom Atomic Energy Authority
11/03/2013,PERSONAL PROTECTIVE EQUIPMENT,PROPERTY,ARCO LTD,5100286251,19.80,United Kingdom Atomic Energy Authority,United Kingdom Atomic Energy Authority
18/03/2013,PERSONAL PROTECTIVE EQUIPMENT,FUSION,ARCO LTD,5100286069,52.99,United Kingdom Atomic Energy Authority,United Kingdom Atomic Energy Authority
18/03/2013,PERSONAL PROTECTIVE EQUIPMENT,FUSION,ARCO LTD,5100286581,131.04,United Kingdom Atomic Energy Authority,United Kingdom Atomic Energy Authority
18/03/2013,PERSONAL PROTECTIVE EQUIPMENT,FUSION,ARCO LTD,5100286631,9.93,United Kingdom Atomic Energy Authority,United Kingdom Atomic Energy Authority
18/03/2013,PERSONAL PROTECTIVE EQUIPMENT,FUSION,ARCO LTD,5100286632,20.68,United Kingdom Atomic Energy Authority,United Kingdom Atomic Energy Authority
18/03/2013,PERSONAL PROTECTIVE EQUIPMENT,FUSION,ARCO LTD,5100286722,99.96,United Kingdom Atomic Energy Authority,United Kingdom Atomic Energy Authority
18/03/2013,PERSONAL PROTECTIVE EQUIPMENT,FUSION,ARCO LTD,5100286723,272.88,United Kingdom Atomic Energy Authority,United Kingdom Atomic Energy Authority
18/03/2013,PERSONAL PROTECTIVE EQUIPMENT,FUSION,ARCO LTD,5100286724,268.08,United Kingdom Atomic Energy Authority,United Kingdom Atomic Energy Authority
18/03/2013,PERSONAL PROTECTIVE EQUIPMENT,FUSION,ARCO LTD,5100286725,64.00,United Kingdom Atomic Energy Authority,United Kingdom Atomic Energy Authority
26/03/2013,PERSONAL PROTECTIVE EQUIPMENT,FUSION,ARCO LTD,5100286978,52.99,United Kingdom Atomic Energy Authority,United Kingdom Atomic Energy Authority
26/03/2013,PERSONAL PROTECTIVE EQUIPMENT,FUSION,ARCO LTD,5100286981,66.24,United Kingdom Atomic Energy Authority,United Kingdom Atomic Energy Authority
26/03/2013,PERSONAL PROTECTIVE EQUIPMENT,FUSION,ARCO LTD,5100286983,153.32,United Kingdom Atomic Energy Authority,United Kingdom Atomic Energy Authority
26/03/2013,PERSONAL PROTECTIVE EQUIPMENT,FUSION,ARCO LTD,5100286842,306.99,United Kingdom Atomic Energy Authority,United Kingdom Atomic Energy Authority
26/03/2013,PERSONAL PROTECTIVE EQUIPMENT,FUSION,ARCO LTD,5100286843,102.33,United Kingdom Atomic Energy Authority,United Kingdom Atomic Energy Authority
26/03/2013,PERSONAL PROTECTIVE EQUIPMENT,FUSION,ARCO LTD,5100286844,66.66,United Kingdom Atomic Energy Authority,United Kingdom Atomic Energy Authority
26/03/2013,PERSONAL PROTECTIVE EQUIPMENT,FUSION,ARCO LTD,5100286979,9.93,United Kingdom Atomic Energy Authority,United Kingdom Atomic Energy Authority
26/03/2013,PERSONAL PROTECTIVE EQUIPMENT,FUSION,ARCO LTD,5100286980,411.48,United Kingdom Atomic Energy Authority,United Kingdom Atomic Energy Authority
26/03/2013,PERSONAL PROTECTIVE EQUIPMENT,FUSION,ARCO LTD,5100287004,939.28,United Kingdom Atomic Energy Authority,United Kingdom Atomic Energy Authority
26/03/2013,PERSONAL PROTECTIVE EQUIPMENT,FUSION,ARCO LTD,5100287005,"12,608.64",United Kingdom Atomic Energy Authority,United Kingdom Atomic Energy Authority
26/03/2013,PERSONAL PROTECTIVE EQUIPMENT,FUSION,ARCO LTD,5100287006,23.88,United Kingdom Atomic Energy Authority,United Kingdom Atomic Energy Authority
26/03/2013,PERSONAL PROTECTIVE EQUIPMENT,FUSION,ARCO LTD,5100287011,-51.00,United Kingdom Atomic Energy Authority,United Kingdom Atomic Energy Authority
26/03/2013,PERSONAL PROTECTIVE EQUIPMENT,FUSION,ARCO LTD,5100287012,"1,905.00",United Kingdom Atomic Energy Authority,United Kingdom Atomic Energy Authority
25/02/2013,PERSONAL PROTECTIVE EQUIPMENT,SUPPORT SERVICES,ARCO WESSEX,5100285835,145.96,United Kingdom Atomic Energy Authority,United Kingdom Atomic Energy Authority
25/02/2013,PERSONAL PROTECTIVE EQUIPMENT,FUSION,ARCO WESSEX,5100285600,49.23,United Kingdom Atomic Energy Authority,United Kingdom Atomic Energy Authority
25/02/2013,PERSONAL PROTECTIVE EQUIPMENT,FUSION,ARCO WESSEX,5100285767,22.40,United Kingdom Atomic Energy Authority,United Kingdom Atomic Energy Authority
25/02/2013,PERSONAL PROTECTIVE EQUIPMENT,FUSION,ARCO WESSEX,5100285799,58.39,United Kingdom Atomic Energy Authority,United Kingdom Atomic Energy Authority
04/03/2013,PERSONAL PROTECTIVE EQUIPMENT,FUSION,ARCO WESSEX,5100286074,41.72,United Kingdom Atomic Energy Authority,United Kingdom Atomic Energy Authority
11/03/2013,PERSONAL PROTECTIVE EQUIPMENT,FUSION,ARCO WESSEX,5100286247,5.27,United Kingdom Atomic Energy Authority,United Kingdom Atomic Energy Authority
11/03/2013,PERSONAL PROTECTIVE EQUIPMENT,FUSION,ARCO WESSEX,5100286430,16.08,United Kingdom Atomic Energy Authority,United Kingdom Atomic Energy Authority
11/03/2013,PERSONAL PROTECTIVE EQUIPMENT,FUSION,ARCO WESSEX,5100286436,60.97,United Kingdom Atomic Energy Authority,United Kingdom Atomic Energy Authority
18/03/2013,PERSONAL PROTECTIVE EQUIPMENT,FUSION,ARCO WESSEX,5100286582,679.80,United Kingdom Atomic Energy Authority,United Kingdom Atomic Energy Authority
27/02/2013,DESIGN & CONSTRUCTION,FUSION,ARMFIBRE LTD,5100284966,"48,507.50",United Kingdom Atomic Energy Authority,United Kingdom Atomic Energy Authority
27/02/2013,DESIGN & CONSTRUCTION,FUSION,ARMFIBRE LTD,5100285852,"-7,823.50",United Kingdom Atomic Energy Authority,United Kingdom Atomic Energy Authority
06/03/2013,DESIGN & CONSTRUCTION,FUSION,ARMFIBRE LTD,5100284965,"5,398.13",United Kingdom Atomic Energy Authority,United Kingdom Atomic Energy Authority
25/02/2013,STATIONERY,FUSION,ARTISAN LITHO PRINT  DESIGN,5100285745,150.00,United Kingdom Atomic Energy Authority,United Kingdom Atomic Energy Authority
18/03/2013,STATIONERY,FUSION,ARTISAN LITHO PRINT  DESIGN,5100286672,"10,211.00",United Kingdom Atomic Energy Authority,United Kingdom Atomic Energy Authority
18/03/2013,STATIONERY,FUSION,ARTISAN LITHO PRINT  DESIGN,5100286698,621.00,United Kingdom Atomic Energy Authority,United Kingdom Atomic Energy Authority
18/03/2013,STATIONERY,FUSION,ARTISAN LITHO PRINT  DESIGN,5100286707,84.00,United Kingdom Atomic Energy Authority,United Kingdom Atomic Energy Authority
18/03/2013,STATIONERY,FUSION,ARTISAN LITHO PRINT  DESIGN,5100286708,15.00,United Kingdom Atomic Energy Authority,United Kingdom Atomic Energy Authority
18/03/2013,STATIONERY,FUSION,ARTISAN LITHO PRINT  DESIGN,5100286709,587.00,United Kingdom Atomic Energy Authority,United Kingdom Atomic Energy Authority
26/03/2013,STATIONERY,FUSION,ARTISAN LITHO PRINT  DESIGN,5100286812,190.00,United Kingdom Atomic Energy Authority,United Kingdom Atomic Energy Authority
26/03/2013,STATIONERY,FUSION,ARTISAN LITHO PRINT  DESIGN,5100286848,145.00,United Kingdom Atomic Energy Authority,United Kingdom Atomic Energy Authority
11/03/2013,PLANT & EQUIPMENT,FUSION,ARVAL UK LIMITED,5100286319,271.62,United Kingdom Atomic Energy Authority,United Kingdom Atomic Energy Authority
04/03/2013,PLANT SPARES,FUSION,AURIGA EUROPE PLC,5100285961,90.84,United Kingdom Atomic Energy Authority,United Kingdom Atomic Energy Authority
11/03/2013,PLANT SPARES,FUSION,AURIGA EUROPE PLC,5100286238,201.00,United Kingdom Atomic Energy Authority,United Kingdom Atomic Energy Authority
26/03/2013,PLANT SPARES,FUSION,AURIGA EUROPE PLC,5100286834,84.60,United Kingdom Atomic Energy Authority,United Kingdom Atomic Energy Authority
11/03/2013,CATERING,PROPERTY,AVENANCE PLC,5100285746,-41.60,United Kingdom Atomic Energy Authority,United Kingdom Atomic Energy Authority
11/03/2013,CATERING,PROPERTY,AVENANCE PLC,5100285747,-587.00,United Kingdom Atomic Energy Authority,United Kingdom Atomic Energy Authority
11/03/2013,CATERING,PROPERTY,AVENANCE PLC,5100285748,-497.00,United Kingdom Atomic Energy Authority,United Kingdom Atomic Energy Authority
11/03/2013,CATERING,PROPERTY,AVENANCE PLC,5100286397,-385.62,United Kingdom Atomic Energy Authority,United Kingdom Atomic Energy Authority
11/03/2013,CATERING,PROPERTY,AVENANCE PLC,5100286398,93.85,United Kingdom Atomic Energy Authority,United Kingdom Atomic Energy Authority
11/03/2013,CATERING,PROPERTY,AVENANCE PLC,5100286399,"6,895.00",United Kingdom Atomic Energy Authority,United Kingdom Atomic Energy Authority
20/03/2013,CATERING,PROPERTY,AVENANCE PLC,5100286396,"2,413.66",United Kingdom Atomic Energy Authority,United Kingdom Atomic Energy Authority
26/03/2013,CATERING,FUSION,AVENANCE PLC,5100286935,685.87,United Kingdom Atomic Energy Authority,United Kingdom Atomic Energy Authority
26/03/2013,CATERING,PROPERTY,AVENANCE PLC,5100286933,610.17,United Kingdom Atomic Energy Authority,United Kingdom Atomic Energy Authority
26/03/2013,CATERING,PROPERTY,AVENANCE PLC,5100286934,184.99,United Kingdom Atomic Energy Authority,United Kingdom Atomic Energy Authority
26/03/2013,CATERING,PROPERTY,AVENANCE PLC,5100287035,159.18,United Kingdom Atomic Energy Authority,United Kingdom Atomic Energy Authority
26/03/2013,CATERING,PROPERTY,AVENANCE PLC,5100287036,"7,194.81",United Kingdom Atomic Energy Authority,United Kingdom Atomic Energy Authority
25/02/2013,REPAIRS & MAINTENANCE,FUSION,AVERY WEIGH-TRONIX,5100285305,359.30,United Kingdom Atomic Energy Authority,United Kingdom Atomic Energy Authority
11/03/2013,MATERIALS & SPARES,FUSION,AVNET EMG LTD,5100286272,368.00,United Kingdom Atomic Energy Authority,United Kingdom Atomic Energy Authority
04/03/2013,PROFESSIONAL SERVICES,FUSION,AWE PLC,5100286024,"25,600.00",United Kingdom Atomic Energy Authority,United Kingdom Atomic Energy Authority
04/03/2013,IT EQUIPMENT NON CAPITAL,FUSION,AZTEX SOLUTIONS LIMITED,5100285945,613.00,United Kingdom Atomic Energy Authority,United Kingdom Atomic Energy Authority
06/03/2013,TREATED WATER,FUSION,B & V WATER TREATMENT,5100285965,"1,131.98",United Kingdom Atomic Energy Authority,United Kingdom Atomic Energy Authority
11/03/2013,TREATED WATER,FUSION,B & V WATER TREATMENT,5100286145,"3,351.50",United Kingdom Atomic Energy Authority,United Kingdom Atomic Energy Authority
 11/03/2013,CONSUMABLES,FUSION,Banbury Nameplates Ltd,1900057786,261.60,United Kingdom Atomic Energy Authority,United Kingdom Atomic Energy Authority
11/03/2013,MATERIALS & SPARES,FUSION,BASTION GLASSFIBRE ROD,5100286262,355.30,United Kingdom Atomic Energy Authority,United Kingdom Atomic Energy Authority
11/03/2013,REPAIRS & MAINTENANCE,FUSION,BATT CABLES PLC,5100286147,"17,496.85",United Kingdom Atomic Energy Authority,United Kingdom Atomic Energy Authority
26/03/2013,REPAIRS & MAINTENANCE,FUSION,BATT CABLES PLC,5100287015,"1,360.00",United Kingdom Atomic Energy Authority,United Kingdom Atomic Energy Authority
26/03/2013,REPAIRS & MAINTENANCE,FUSION,BATT CABLES PLC,5100287016,230.00,United Kingdom Atomic Energy Authority,United Kingdom Atomic Energy Authority
26/03/2013,REPAIRS & MAINTENANCE,FUSION,BATT CABLES PLC,5100287017,440.00,United Kingdom Atomic Energy Authority,United Kingdom Atomic Energy Authority
26/03/2013,REPAIRS & MAINTENANCE,FUSION,BATT CABLES PLC,5100287018,354.00,United Kingdom Atomic Energy Authority,United Kingdom Atomic Energy Authority
26/03/2013,REPAIRS & MAINTENANCE,FUSION,BATT CABLES PLC,5100287019,"2,682.00",United Kingdom Atomic Energy Authority,United Kingdom Atomic Energy Authority
26/03/2013,REPAIRS & MAINTENANCE,FUSION,BATT CABLES PLC,5100287020,"1,891.55",United Kingdom Atomic Energy Authority,United Kingdom Atomic Energy Authority
26/03/2013,REPAIRS & MAINTENANCE,FUSION,BATT CABLES PLC,5100287021,"1,155.00",United Kingdom Atomic Energy Authority,United Kingdom Atomic Energy Authority
26/03/2013,REPAIRS & MAINTENANCE,PROPERTY,BATT CABLES PLC,5100287022,129.00,United Kingdom Atomic Energy Authority,United Kingdom Atomic Energy Authority
26/03/2013,REPAIRS & MAINTENANCE,PROPERTY,BATT CABLES PLC,5100287023,153.00,United Kingdom Atomic Energy Authority,United Kingdom Atomic Energy Authority
26/03/2013,REPAIRS & MAINTENANCE,PROPERTY,BATT CABLES PLC,5100287024,62.00,United Kingdom Atomic Energy Authority,United Kingdom Atomic Energy Authority
26/03/2013,PROFESSIONAL SERVICES,SUPPORT SERVICES,BDO LLP,5100286464,"3,505.00",United Kingdom Atomic Energy Authority,United Kingdom Atomic Energy Authority
25/02/2013,PROFESSIONAL SERVICES,FUSION,BELDEN,5100284861,"34,235.73",United Kingdom Atomic Energy Authority,United Kingdom Atomic Energy Authority
26/03/2013,CLEANING,PROPERTY,BIFFA RECYCLING,5100286931,165.00,United Kingdom Atomic Energy Authority,United Kingdom Atomic Energy Authority
11/03/2013,PLANT & EQUIPMENT,FUSION,BLACK BOX UK LTD,5100286446,329.58,United Kingdom Atomic Energy Authority,United Kingdom Atomic Energy Authority
18/03/2013,HIRED STAFF,FUSION,BLACK DIAMOND UMBRELLA LTD,5100286699,"1,174.88",United Kingdom Atomic Energy Authority,United Kingdom Atomic Energy Authority
18/03/2013,HIRED STAFF,FUSION,BLACK DIAMOND UMBRELLA LTD,5100286700,"1,174.88",United Kingdom Atomic Energy Authority,United Kingdom Atomic Energy Authority
18/03/2013,HIRED STAFF,FUSION,BLACK DIAMOND UMBRELLA LTD,5100286701,"1,096.55",United Kingdom Atomic Energy Authority,United Kingdom Atomic Energy Authority
18/03/2013,HIRED STAFF,FUSION,BLACK DIAMOND UMBRELLA LTD,5100286702,836.25,United Kingdom Atomic Energy Authority,United Kingdom Atomic Energy Authority
18/03/2013,HIRED STAFF,FUSION,BLACK DIAMOND UMBRELLA LTD,5100286703,836.25,United Kingdom Atomic Energy Authority,United Kingdom Atomic Energy Authority
18/03/2013,HIRED STAFF,FUSION,BLACK DIAMOND UMBRELLA LTD,5100286704,836.25,United Kingdom Atomic Energy Authority,United Kingdom Atomic Energy Authority
18/03/2013,HIRED STAFF,FUSION,BLACK DIAMOND UMBRELLA LTD,5100286705,"3,986.55",United Kingdom Atomic Energy Authority,United Kingdom Atomic Energy Authority
18/03/2013,HIRED STAFF,FUSION,BLACK DIAMOND UMBRELLA LTD,5100286706,"4,539.16",United Kingdom Atomic Energy Authority,United Kingdom Atomic Energy Authority
 11/03/2013,PLANT & EQUIPMENT,FUSION,Blakley Electrics Ltd,1900057787,"6,817.75",United Kingdom Atomic Energy Authority,United Kingdom Atomic Energy Authority
11/03/2013,REPAIRS & MAINTENANCE,FUSION,BLASTOFF,5100286540,"4,815.50",United Kingdom Atomic Energy Authority,United Kingdom Atomic Energy Authority
26/03/2013,REPAIRS & MAINTENANCE,FUSION,BLASTOFF,5100286875,"1,250.00",United Kingdom Atomic Energy Authority,United Kingdom Atomic Energy Authority
11/03/2013,LAUNDRY,FUSION,BLUEBELL LAUNDRY,5100286469,171.78,United Kingdom Atomic Energy Authority,United Kingdom Atomic Energy Authority
04/03/2013,IT EQUIPMENT NON CAPITAL,FUSION,BLUEFORT SECURITY,5100285843,"1,763.00",United Kingdom Atomic Energy Authority,United Kingdom Atomic Energy Authority
25/02/2013,PROFESSIONAL SERVICES,FUSION,BNS NUCLEAR SERVICES,5100285776,"86,573.37",United Kingdom Atomic Energy Authority,United Kingdom Atomic Energy Authority
25/02/2013,GASES,FUSION,BOC LTD,5100285630,235.27,United Kingdom Atomic Energy Authority,United Kingdom Atomic Energy Authority
25/02/2013,GASES,FUSION,BOC LTD,5100285628,256.74,United Kingdom Atomic Energy Authority,United Kingdom Atomic Energy Authority
25/02/2013,GASES,FUSION,BOC LTD,5100285791,7.80,United Kingdom Atomic Energy Authority,United Kingdom Atomic Energy Authority
25/02/2013,GASES,FUSION,BOC LTD,5100285465,272.64,United Kingdom Atomic Energy Authority,United Kingdom Atomic Energy Authority
25/02/2013,GASES,FUSION,BOC LTD,5100285466,"3,763.56",United Kingdom Atomic Energy Authority,United Kingdom Atomic Energy Authority
25/02/2013,GASES,FUSION,BOC LTD,5100285793,242.82,United Kingdom Atomic Energy Authority,United Kingdom Atomic Energy Authority
25/02/2013,GASES,FUSION,BOC LTD,5100285631,143.72,United Kingdom Atomic Energy Authority,United Kingdom Atomic Energy Authority
25/02/2013,GASES,FUSION,BOC LTD,5100285632,121.52,United Kingdom Atomic Energy Authority,United Kingdom Atomic Energy Authority
04/03/2013,GASES,FUSION,BOC LTD,5100285627,195.20,United Kingdom Atomic Energy Authority,United Kingdom Atomic Energy Authority
06/03/2013,GASES,FUSION,BOC LTD,5100285789,"2,433.58",United Kingdom Atomic Energy Authority,United Kingdom Atomic Energy Authority
06/03/2013,GASES,FUSION,BOC LTD,5100286081,"1,338.66",United Kingdom Atomic Energy Authority,United Kingdom Atomic Energy Authority
11/03/2013,GASES,FUSION,BOC LTD,5100285359,"5,552.15",United Kingdom Atomic Energy Authority,United Kingdom Atomic Energy Authority
11/03/2013,GASES,FUSION,BOC LTD,5100286308,272.64,United Kingdom Atomic Energy Authority,United Kingdom Atomic Energy Authority
11/03/2013,GASES,FUSION,BOC LTD,5100285463,31.20,United Kingdom Atomic Energy Authority,United Kingdom Atomic Energy Authority
11/03/2013,GASES,FUSION,BOC LTD,5100286256,23.40,United Kingdom Atomic Energy Authority,United Kingdom Atomic Energy Authority
11/03/2013,GASES,PROPERTY,BOC LTD,5100286310,83.46,United Kingdom Atomic Energy Authority,United Kingdom Atomic Energy Authority
18/03/2013,GASES,FUSION,BOC LTD,5100286629,76.84,United Kingdom Atomic Energy Authority,United Kingdom Atomic Energy Authority
18/03/2013,GASES,FUSION,BOC LTD,5100286630,354.25,United Kingdom Atomic Energy Authority,United Kingdom Atomic Energy Authority
18/03/2013,GASES,FUSION,BOC LTD,5100286257,255.60,United Kingdom Atomic Energy Authority,United Kingdom Atomic Energy Authority
18/03/2013,GASES,FUSION,BOC LTD,5100286584,255.60,United Kingdom Atomic Energy Authority,United Kingdom Atomic Energy Authority
18/03/2013,GASES,FUSION,BOC LTD,5100286585,"1,355.01",United Kingdom Atomic Energy Authority,United Kingdom Atomic Energy Authority
18/03/2013,GASES,FUSION,BOC LTD,5100286619,160.79,United Kingdom Atomic Energy Authority,United Kingdom Atomic Energy Authority
18/03/2013,GASES,FUSION,BOC LTD,5100286623,184.38,United Kingdom Atomic Energy Authority,United Kingdom Atomic Energy Authority
18/03/2013,GASES,FUSION,BOC LTD,5100286627,9.12,United Kingdom Atomic Energy Authority,United Kingdom Atomic Energy Authority
18/03/2013,GASES,FUSION,BOC LTD,5100286620,63.84,United Kingdom Atomic Energy Authority,United Kingdom Atomic Energy Authority
18/03/2013,GASES,FUSION,BOC LTD,5100286625,222.15,United Kingdom Atomic Energy Authority,United Kingdom Atomic Energy Authority
18/03/2013,GASES,FUSION,BOC LTD,5100286789,243.05,United Kingdom Atomic Energy Authority,United Kingdom Atomic Energy Authority
18/03/2013,PLANT SPARES,FUSION,BODDINGTONS ELECTRICAL,5100286299,"3,099.80",United Kingdom Atomic Energy Authority,United Kingdom Atomic Energy Authority
25/02/2013,PLANT & EQUIPMENT,FUSION,BRAMLEY ENGINEERING,5100285626,364.72,United Kingdom Atomic Energy Authority,United Kingdom Atomic Energy Authority
11/03/2013,PLANT & EQUIPMENT,FUSION,BRAMLEY ENGINEERING,5100286303,"1,540.00",United Kingdom Atomic Energy Authority,United Kingdom Atomic Energy Authority
25/02/2013,PLANT SPARES,FUSION,BRITE PRECISION,5100285758,"1,390.00",United Kingdom Atomic Energy Authority,United Kingdom Atomic Energy Authority
11/03/2013,PLANT SPARES,FUSION,BRITE PRECISION,5100286463,"2,402.00",United Kingdom Atomic Energy Authority,United Kingdom Atomic Energy Authority
11/03/2013,PLANT SPARES,FUSION,BRITE PRECISION,5100286304,278.00,United Kingdom Atomic Energy Authority,United Kingdom Atomic Energy Authority
26/03/2013,PLANT SPARES,FUSION,BRITE PRECISION,5100286815,304.00,United Kingdom Atomic Energy Authority,United Kingdom Atomic Energy Authority
13/03/2013,UTILITIES/ELECTRICITY,PROPERTY,BRITISH GAS BUSINESS,5100285827,683.95,United Kingdom Atomic Energy Authority,United Kingdom Atomic Energy Authority
20/03/2013,UTILITIES/ELECTRICITY,PROPERTY,BRITISH GAS BUSINESS,5100286682,115.49,United Kingdom Atomic Energy Authority,United Kingdom Atomic Energy Authority
20/03/2013,UTILITIES/ELECTRICITY,PROPERTY,BRITISH GAS BUSINESS,5100286683,"1,327.76",United Kingdom Atomic Energy Authority,United Kingdom Atomic Energy Authority
20/03/2013,UTILITIES/ELECTRICITY,PROPERTY,BRITISH GAS BUSINESS,5100286684,278.07,United Kingdom Atomic Energy Authority,United Kingdom Atomic Energy Authority
20/03/2013,UTILITIES/ELECTRICITY,PROPERTY,BRITISH GAS BUSINESS,5100286685,196.99,United Kingdom Atomic Energy Authority,United Kingdom Atomic Energy Authority
20/03/2013,UTILITIES/ELECTRICITY,PROPERTY,BRITISH GAS BUSINESS,5100286686,68.10,United Kingdom Atomic Energy Authority,United Kingdom Atomic Energy Authority
20/03/2013,UTILITIES/ELECTRICITY,PROPERTY,BRITISH GAS BUSINESS,5100286687,719.18,United Kingdom Atomic Energy Authority,United Kingdom Atomic Energy Authority
20/03/2013,UTILITIES/ELECTRICITY,PROPERTY,BRITISH GAS BUSINESS,5100286688,853.48,United Kingdom Atomic Energy Authority,United Kingdom Atomic Energy Authority
20/03/2013,UTILITIES/ELECTRICITY,PROPERTY,BRITISH GAS BUSINESS,5100286689,917.97,United Kingdom Atomic Energy Authority,United Kingdom Atomic Energy Authority
20/03/2013,UTILITIES/ELECTRICITY,PROPERTY,BRITISH GAS BUSINESS,5100286690,501.70,United Kingdom Atomic Energy Authority,United Kingdom Atomic Energy Authority
20/03/2013,UTILITIES/ELECTRICITY,PROPERTY,BRITISH GAS BUSINESS,5100286691,843.05,United Kingdom Atomic Energy Authority,United Kingdom Atomic Energy Authority
13/03/2013,BOOKS & PUBLICATIONS,SUPPORT SERVICES,BRITISH STANDARDS INSTITUTION,5100286377,88.14,United Kingdom Atomic Energy Authority,United Kingdom Atomic Energy Authority
11/03/2013,REPAIRS & MAINTENANCE,FUSION,BSA MACHINE TOOLS LTD,5100286293,"1,300.00",United Kingdom Atomic Energy Authority,United Kingdom Atomic Energy Authority
27/02/2013,PROFESSIONAL SERVICES,PROPERTY,BSP CONSULTING,5100285182,"1,120.00",United Kingdom Atomic Energy Authority,United Kingdom Atomic Energy Authority
13/03/2013,PROFESSIONAL SERVICES,PROPERTY,BSP CONSULTING,5100286438,"3,200.00",United Kingdom Atomic Energy Authority,United Kingdom Atomic Energy Authority
18/03/2013,MATERIALS & SPARES,FUSION,BSRIA INSTRUMENT SOLUTIONS,5100286023,630.00,United Kingdom Atomic Energy Authority,United Kingdom Atomic Energy Authority
04/03/2013,PERSONAL PROTECTIVE EQUIPMENT,FUSION,BUCK & HICKMAN LTD,5100286062,186.64,United Kingdom Atomic Energy Authority,United Kingdom Atomic Energy Authority
11/03/2013,PERSONAL PROTECTIVE EQUIPMENT,FUSION,BUCK & HICKMAN LTD,5100286241,178.11,United Kingdom Atomic Energy Authority,United Kingdom Atomic Energy Authority
11/03/2013,PERSONAL PROTECTIVE EQUIPMENT,FUSION,BUCK & HICKMAN LTD,5100286242,86.40,United Kingdom Atomic Energy Authority,United Kingdom Atomic Energy Authority
13/03/2013,PERSONAL PROTECTIVE EQUIPMENT,FUSION,BUCK & HICKMAN LTD,5100286468,37.30,United Kingdom Atomic Energy Authority,United Kingdom Atomic Energy Authority
18/03/2013,PERSONAL PROTECTIVE EQUIPMENT,FUSION,BUCK & HICKMAN LTD,5100286726,14.72,United Kingdom Atomic Energy Authority,United Kingdom Atomic Energy Authority
18/03/2013,PERSONAL PROTECTIVE EQUIPMENT,FUSION,BUCK & HICKMAN LTD,5100286727,132.19,United Kingdom Atomic Energy Authority,United Kingdom Atomic Energy Authority
26/03/2013,PERSONAL PROTECTIVE EQUIPMENT,FUSION,BUCK & HICKMAN LTD,5100286999,11.51,United Kingdom Atomic Energy Authority,United Kingdom Atomic Energy Authority
25/02/2013,MATERIALS & SPARES,FUSION,BUDGET FORKTRUCKS LTD,5100285806,390.00,United Kingdom Atomic Energy Authority,United Kingdom Atomic Energy Authority
25/02/2013,MATERIALS & SPARES,FUSION,BUDGET FORKTRUCKS LTD,5100285807,268.67,United Kingdom Atomic Energy Authority,United Kingdom Atomic Energy Authority
27/02/2013,MATERIALS & SPARES,FUSION,BUDGET FORKTRUCKS LTD,5100285968,390.00,United Kingdom Atomic Energy Authority,United Kingdom Atomic Energy Authority
27/02/2013,MATERIALS & SPARES,FUSION,BUDGET FORKTRUCKS LTD,5100285969,268.67,United Kingdom Atomic Energy Authority,United Kingdom Atomic Energy Authority
26/03/2013,MATERIALS & SPARES,FUSION,BUDGET FORKTRUCKS LTD,5100286959,390.00,United Kingdom Atomic Energy Authority,United Kingdom Atomic Energy Authority
26/03/2013,MATERIALS & SPARES,FUSION,BUDGET FORKTRUCKS LTD,5100286960,268.67,United Kingdom Atomic Energy Authority,United Kingdom Atomic Energy Authority
13/03/2013,CATERING SUPPLIES,SUPPORT SERVICES,BWT UK LTD,5100286467,909.50,United Kingdom Atomic Energy Authority,United Kingdom Atomic Energy Authority
27/02/2013,REPAIRS & MAINTENANCE,FUSION,C GERHARDT UK LTD,5100285751,"1,034.00",United Kingdom Atomic Energy Authority,United Kingdom Atomic Energy Authority
26/03/2013,MATERIALS & SPARES,FUSION,CALEX ELECTRONICS LTD,5100286925,"3,250.80",United Kingdom Atomic Energy Authority,United Kingdom Atomic Energy Authority
06/03/2013,PRINTING & GRAPHICS,FUSION,Calver Ltd,1900057779,544.00,United Kingdom Atomic Energy Authority,United Kingdom Atomic Energy Authority
25/02/2013,PLANT & EQUIPMENT,FUSION,CANBERRA UK LIMITED,5100285593,"36,510.00",United Kingdom Atomic Energy Authority,United Kingdom Atomic Energy Authority
27/02/2013,TRAINING COURSE FEES,SUPPORT SERVICES,CANON FIRE PROTECTION,5100286029,320.00,United Kingdom Atomic Energy Authority,United Kingdom Atomic Energy Authority
26/03/2013,TRAVEL,SUPPORT SERVICES,CAPITA BUSINESS TRAVEL,5100286829,"16,571.18",United Kingdom Atomic Energy Authority,United Kingdom Atomic Energy Authority
25/02/2013,CONSUMABLES,FUSION,CARILLON INDUSTRIAL SERVICES LTD,5100285786,37.76,United Kingdom Atomic Energy Authority,United Kingdom Atomic Energy Authority
25/02/2013,CONSUMABLES,FUSION,CARILLON INDUSTRIAL SERVICES LTD,5100285787,186.00,United Kingdom Atomic Energy Authority,United Kingdom Atomic Energy Authority
04/03/2013,CONSUMABLES,FUSION,CARILLON INDUSTRIAL SERVICES LTD,5100286085,99.70,United Kingdom Atomic Energy Authority,United Kingdom Atomic Energy Authority
04/03/2013,CONSUMABLES,FUSION,CARILLON INDUSTRIAL SERVICES LTD,5100286096,99.33,United Kingdom Atomic Energy Authority,United Kingdom Atomic Energy Authority
11/03/2013,CONSUMABLES,FUSION,CARILLON INDUSTRIAL SERVICES LTD,5100286297,25.49,United Kingdom Atomic Energy Authority,United Kingdom Atomic Energy Authority
27/02/2013,MATERIALS & SPARES,FUSION,CARMO PLASTICS LTD,5100285443,664.02,United Kingdom Atomic Energy Authority,United Kingdom Atomic Energy Authority
20/03/2013,MATERIALS & SPARES,FUSION,CARMO PLASTICS LTD,5100285920,"1,904.12",United Kingdom Atomic Energy Authority,United Kingdom Atomic Energy Authority
26/03/2013,MATERIALS & SPARES,FUSION,CASTELL SAFETY INTERNATIONAL,5100286845,492.73,United Kingdom Atomic Energy Authority,United Kingdom Atomic Energy Authority
11/03/2013,LEGAL FEES,SUPPORT SERVICES,CATER LEYDON MILLARD LTD,5100286400,122.50,United Kingdom Atomic Energy Authority,United Kingdom Atomic Energy Authority
11/03/2013,LEGAL FEES,SUPPORT SERVICES,CATER LEYDON MILLARD LTD,5100286401,805.00,United Kingdom Atomic Energy Authority,United Kingdom Atomic Energy Authority
11/03/2013,LEGAL FEES,SUPPORT SERVICES,CATER LEYDON MILLARD LTD,5100286402,"2,047.50",United Kingdom Atomic Energy Authority,United Kingdom Atomic Energy Authority
11/03/2013,MATERIALS & SPARES,FUSION,CBL ELECTRIC VEHICLES LTD,5100286243,"1,458.88",United Kingdom Atomic Energy Authority,United Kingdom Atomic Energy Authority
11/03/2013,MATERIALS & SPARES,FUSION,CBL ELECTRIC VEHICLES LTD,5100286245,300.60,United Kingdom Atomic Energy Authority,United Kingdom Atomic Energy Authority
27/02/2013,PLANT & EQUIPMENT,FUSION,CERAMIC SUBSTRATES AND COMPONENTS L,5100286016,198.80,United Kingdom Atomic Energy Authority,United Kingdom Atomic Energy Authority
27/02/2013,PLANT & EQUIPMENT,FUSION,CERAMIC SUBSTRATES AND COMPONENTS L,5100286017,330.54,United Kingdom Atomic Energy Authority,United Kingdom Atomic Energy Authority
04/03/2013,MATERIALS & SPARES,FUSION,CHANNEL SAFETY SERVICES LTD,5100286149,"5,000.00",United Kingdom Atomic Energy Authority,United Kingdom Atomic Energy Authority
25/02/2013,PLANT SPARES,FUSION,CHELL INSTRUMENTS LTD,5100285769,"12,893.55",United Kingdom Atomic Energy Authority,United Kingdom Atomic Energy Authority
13/03/2013,LAUNDRY,FUSION,CLEAN LINEN SERVICES LTD,5100286307,77.20,United Kingdom Atomic Energy Authority,United Kingdom Atomic Energy Authority
13/03/2013,REPAIRS & MAINTENANCE,FUSION,CLEANLASER,5100286320,857.61,United Kingdom Atomic Energy Authority,United Kingdom Atomic Energy Authority
26/03/2013,CATERING,PROPERTY,CLEANSING SERVICE GROUP LTD,5100286816,54.60,United Kingdom Atomic Energy Authority,United Kingdom Atomic Energy Authority
26/03/2013,CATERING,PROPERTY,CLEANSING SERVICE GROUP LTD,5100286817,74.30,United Kingdom Atomic Energy Authority,United Kingdom Atomic Energy Authority
11/03/2013,DESIGN & CONSTRUCTION,FUSION,COBHAM TECHNICAL SERVICES,5100286423,"2,686.00",United Kingdom Atomic Energy Authority,United Kingdom Atomic Energy Authority
11/03/2013,UTILITIES/GAS,PROPERTY,COFELY LTD,5100286246,"20,044.73",United Kingdom Atomic Energy Authority,United Kingdom Atomic Energy Authority
11/03/2013,UTILITIES/GAS,PROPERTY,COFELY LTD,5100286276,"26,582.50",United Kingdom Atomic Energy Authority,United Kingdom Atomic Energy Authority
27/02/2013,MATERIALS & SPARES,FUSION,COLE-PARMER INSTRUMENT COMPANY LTD,5100285743,"4,148.00",United Kingdom Atomic Energy Authority,United Kingdom Atomic Energy Authority
20/03/2013,EFDA SECONDEE CONTRACT,FUSION,COMMISSARIAT L ENERGIE ATOMIQUE CEA,5100285755,"42,220.55",United Kingdom Atomic Energy Authority,United Kingdom Atomic Energy Authority
25/02/2013,Compensation and Legal Fees,SUPPORT SERVICES,Compensation claimant,1900057759,"8,600.55",United Kingdom Atomic Energy Authority,United Kingdom Atomic Energy Authority
27/02/2013,Compensation and Legal Fees,SUPPORT SERVICES,Compensation claimant,1900057763,"5,480.24",United Kingdom Atomic Energy Authority,United Kingdom Atomic Energy Authority
27/02/2013,Compensation and Legal Fees,SUPPORT SERVICES,Compensation claimant,1900057764,"2,907.00",United Kingdom Atomic Energy Authority,United Kingdom Atomic Energy Authority
06/03/2013,Compensation and Legal Fees,SUPPORT SERVICES,Compensation claimant,1900057778,"5,000.00",United Kingdom Atomic Energy Authority,United Kingdom Atomic Energy Authority
13/03/2013,Compensation and Legal Fees,SUPPORT SERVICES,Compensation claimant,5100286671,"1,959.60",United Kingdom Atomic Energy Authority,United Kingdom Atomic Energy Authority
19/03/2013,Compensation and Legal Fees,SUPPORT SERVICES,Compensation claimant,1900057810,"4,000.00",United Kingdom Atomic Energy Authority,United Kingdom Atomic Energy Authority
27/03/2013,Compensation and Legal Fees,SUPPORT SERVICES,Compensation claimant,1900057841,"6,750.00",United Kingdom Atomic Energy Authority,United Kingdom Atomic Energy Authority
27/03/2013,Compensation and Legal Fees,SUPPORT SERVICES,Compensation claimant,1900057838,"6,324.00",United Kingdom Atomic Energy Authority,United Kingdom Atomic Energy Authority
27/03/2013,Compensation and Legal Fees,SUPPORT SERVICES,Compensation claimant,1900057839,"5,000.00",United Kingdom Atomic Energy Authority,United Kingdom Atomic Energy Authority
27/03/2013,Compensation and Legal Fees,SUPPORT SERVICES,Compensation claimant,1900057842,366.12,United Kingdom Atomic Energy Authority,United Kingdom Atomic Energy Authority
27/03/2013,Compensation and Legal Fees,SUPPORT SERVICES,Compensation claimant,1900057840,"100,564.85",United Kingdom Atomic Energy Authority,United Kingdom Atomic Energy Authority
04/03/2013,IT EQUIPMENT NON CAPITAL,SUPPORT SERVICES,COMPUTACENTER UK LTD,5100285912,"1,796.63",United Kingdom Atomic Energy Authority,United Kingdom Atomic Energy Authority
13/03/2013,IT EQUIPMENT NON CAPITAL,SUPPORT SERVICES,COMPUTACENTER UK LTD,5100286667,"-1,796.63",United Kingdom Atomic Energy Authority,United Kingdom Atomic Energy Authority
13/03/2013,IT EQUIPMENT NON CAPITAL,FUSION,COMPUTACENTER UK LTD,5100286444,"2,225.17",United Kingdom Atomic Energy Authority,United Kingdom Atomic Energy Authority
13/03/2013,IT EQUIPMENT NON CAPITAL,FUSION,COMPUTACENTER UK LTD,5100286668,"1,796.63",United Kingdom Atomic Energy Authority,United Kingdom Atomic Energy Authority
11/03/2013,PLANT SPARES,FUSION,CONDEC INDUSTRIAL MAINTENANCE,5100286321,370.00,United Kingdom Atomic Energy Authority,United Kingdom Atomic Energy Authority
25/02/2013,MATERIALS & SPARES,FUSION,CPC PLC,5100285601,412.91,United Kingdom Atomic Energy Authority,United Kingdom Atomic Energy Authority
04/03/2013,MATERIALS & SPARES,FUSION,CPC PLC,5100286025,16.24,United Kingdom Atomic Energy Authority,United Kingdom Atomic Energy Authority
04/03/2013,MATERIALS & SPARES,FUSION,CROMWELL LTD,5100286155,30.00,United Kingdom Atomic Energy Authority,United Kingdom Atomic Energy Authority
04/03/2013,MATERIALS & SPARES,FUSION,CROMWELL LTD,5100286156,35.82,United Kingdom Atomic Energy Authority,United Kingdom Atomic Energy Authority
04/03/2013,MATERIALS & SPARES,FUSION,CROMWELL LTD,5100286157,33.45,United Kingdom Atomic Energy Authority,United Kingdom Atomic Energy Authority
11/03/2013,MATERIALS & SPARES,FUSION,CROMWELL LTD,5100286483,235.33,United Kingdom Atomic Energy Authority,United Kingdom Atomic Energy Authority
11/03/2013,MATERIALS & SPARES,FUSION,CROMWELL LTD,5100286484,182.05,United Kingdom Atomic Energy Authority,United Kingdom Atomic Energy Authority
18/03/2013,MATERIALS & SPARES,FUSION,CROMWELL LTD,5100286720,387.90,United Kingdom Atomic Energy Authority,United Kingdom Atomic Energy Authority
18/03/2013,MATERIALS & SPARES,FUSION,CROMWELL LTD,5100286721,23.02,United Kingdom Atomic Energy Authority,United Kingdom Atomic Energy Authority
26/03/2013,MATERIALS & SPARES,FUSION,CROMWELL LTD,5100286985,269.99,United Kingdom Atomic Energy Authority,United Kingdom Atomic Energy Authority
27/02/2013,REPAIRS & MAINTENANCE,FUSION,CRYO ENGINEERING GMBH,5100285880,"16,841.36",United Kingdom Atomic Energy Authority,United Kingdom Atomic Energy Authority
25/02/2013,IT MANAGED SERVICE,SUPPORT SERVICES,CSC COMPUTER SCIENCES LIMITED,5100285811,"10,000.00",United Kingdom Atomic Energy Authority,United Kingdom Atomic Energy Authority
18/03/2013,IT MANAGED SERVICE,SUPPORT SERVICES,CSC COMPUTER SCIENCES LIMITED,5100285809,"23,198.98",United Kingdom Atomic Energy Authority,United Kingdom Atomic Energy Authority
18/03/2013,IT MANAGED SERVICE,SUPPORT SERVICES,CSC COMPUTER SCIENCES LIMITED,5100285810,"13,493.38",United Kingdom Atomic Energy Authority,United Kingdom Atomic Energy Authority
18/03/2013,IT MANAGED SERVICE,SUPPORT SERVICES,CSC COMPUTER SCIENCES LIMITED,5100285837,"5,887.48",United Kingdom Atomic Energy Authority,United Kingdom Atomic Energy Authority
27/02/2013,PLANT & EQUIPMENT,FUSION,CSC SPA,5100285913,"8,079.88",United Kingdom Atomic Energy Authority,United Kingdom Atomic Energy Authority
27/02/2013,PLANT & EQUIPMENT,FUSION,CSC SPA,5100285915,"11,444.68",United Kingdom Atomic Energy Authority,United Kingdom Atomic Energy Authority
26/03/2013,PLANT & EQUIPMENT,FUSION,CSC SPA,5100286957,213.07,United Kingdom Atomic Energy Authority,United Kingdom Atomic Energy Authority
25/02/2013,PLANT SPARES,FUSION,CSE INDUSTRIAL ELECTRICAL DISTRIBUT,5100285449,"1,060.10",United Kingdom Atomic Energy Authority,United Kingdom Atomic Energy Authority
11/03/2013,PLANT SPARES,FUSION,CSE INDUSTRIAL ELECTRICAL DISTRIBUT,5100286563,990.00,United Kingdom Atomic Energy Authority,United Kingdom Atomic Energy Authority
26/03/2013,PROFESSIONAL SERVICES,SUPPORT SERVICES,CSS WORKSAFE,5100286990,750.00,United Kingdom Atomic Energy Authority,United Kingdom Atomic Energy Authority
11/03/2013,TRAINING COSTS,SUPPORT SERVICES,CUSTOMISED COMPUTER TRAINING LTD,5100286409,550.00,United Kingdom Atomic Energy Authority,United Kingdom Atomic Energy Authority
25/02/2013,PLANT SPARES,FUSION,CUTWEL LTD,5100285621,56.76,United Kingdom Atomic Energy Authority,United Kingdom Atomic Energy Authority
11/03/2013,PLANT SPARES,FUSION,CUTWEL LTD,5100286403,82.00,United Kingdom Atomic Energy Authority,United Kingdom Atomic Energy Authority
11/03/2013,PLANT SPARES,FUSION,CUTWEL LTD,5100286415,74.19,United Kingdom Atomic Energy Authority,United Kingdom Atomic Energy Authority
20/03/2013,PLANT SPARES,FUSION,CUTWEL LTD,5100286711,99.20,United Kingdom Atomic Energy Authority,United Kingdom Atomic Energy Authority
26/03/2013,PLANT SPARES,FUSION,CUTWEL LTD,5100286883,28.20,United Kingdom Atomic Energy Authority,United Kingdom Atomic Energy Authority
07/03/2013,MATERIALS & SPARES,FUSION,Dataman Programmers Ltd,1900057781,126.00,United Kingdom Atomic Energy Authority,United Kingdom Atomic Energy Authority
25/02/2013,PLANT & EQUIPMENT,FUSION,DAVIS INDUSTRIAL PLASTICS,5100285578,29.66,United Kingdom Atomic Energy Authority,United Kingdom Atomic Energy Authority
11/03/2013,PROFESSIONAL SERVICES,FUSION,DESIGNRULE LTD,5100286274,375.00,United Kingdom Atomic Energy Authority,United Kingdom Atomic Energy Authority
27/02/2013,PLANT & EQUIPMENT,FUSION,DIGIKEY CORPORATION,5100285619,449.15,United Kingdom Atomic Energy Authority,United Kingdom Atomic Energy Authority
20/03/2013,PLANT & EQUIPMENT,FUSION,DIRECTA (UK) LTD,5100286712,"1,587.60",United Kingdom Atomic Energy Authority,United Kingdom Atomic Energy Authority
11/03/2013,PROFESSIONAL SERVICES,SUPPORT SERVICES,DISCLOSURE SCOTLAND,5100286418,375.00,United Kingdom Atomic Energy Authority,United Kingdom Atomic Energy Authority
13/03/2013,PLANT & EQUIPMENT,FUSION,DONALDSON FILTRATION (GB) LIMITED,5100286153,"2,245.36",United Kingdom Atomic Energy Authority,United Kingdom Atomic Energy Authority
13/03/2013,PLANT & EQUIPMENT,FUSION,DONALDSON FILTRATION (GB) LIMITED,5100286674,"-2,245.36",United Kingdom Atomic Energy Authority,United Kingdom Atomic Energy Authority
18/03/2013,PLANT & EQUIPMENT,FUSION,DONALDSON FILTRATION (GB) LIMITED,5100286673,-43.18,United Kingdom Atomic Energy Authority,United Kingdom Atomic Energy Authority
18/03/2013,PLANT & EQUIPMENT,FUSION,DONALDSON FILTRATION (GB) LIMITED,5100286675,"2,245.36",United Kingdom Atomic Energy Authority,United Kingdom Atomic Energy Authority
26/03/2013,PLANT & EQUIPMENT,FUSION,DONALDSON FILTRATION (GB) LIMITED,5100286846,450.00,United Kingdom Atomic Energy Authority,United Kingdom Atomic Energy Authority
25/02/2013,PLANT & EQUIPMENT,FUSION,D-TAQ SOLUTIONS,5100285907,"18,150.00",United Kingdom Atomic Energy Authority,United Kingdom Atomic Energy Authority
25/02/2013,PROFESSIONAL SERVICES,SUPPORT SERVICES,DUN & BRADSTREET LTD,5100285739,255.96,United Kingdom Atomic Energy Authority,United Kingdom Atomic Energy Authority
25/02/2013,MATERIALS & SPARES,FUSION,DURBIN METAL INDUSTRIES LTD,5100285778,56.75,United Kingdom Atomic Energy Authority,United Kingdom Atomic Energy Authority
25/02/2013,MATERIALS & SPARES,FUSION,DURBIN METAL INDUSTRIES LTD,5100285780,14.50,United Kingdom Atomic Energy Authority,United Kingdom Atomic Energy Authority
25/02/2013,MATERIALS & SPARES,FUSION,DURBIN METAL INDUSTRIES LTD,5100285641,41.50,United Kingdom Atomic Energy Authority,United Kingdom Atomic Energy Authority
27/02/2013,MATERIALS & SPARES,FUSION,DURBIN METAL INDUSTRIES LTD,5100285903,380.00,United Kingdom Atomic Energy Authority,United Kingdom Atomic Energy Authority
27/02/2013,MATERIALS & SPARES,FUSION,DURBIN METAL INDUSTRIES LTD,5100285777,73.00,United Kingdom Atomic Energy Authority,United Kingdom Atomic Energy Authority
27/02/2013,MATERIALS & SPARES,FUSION,DURBIN METAL INDUSTRIES LTD,5100285896,48.00,United Kingdom Atomic Energy Authority,United Kingdom Atomic Energy Authority
04/03/2013,MATERIALS & SPARES,FUSION,DURBIN METAL INDUSTRIES LTD,5100285904,179.40,United Kingdom Atomic Energy Authority,United Kingdom Atomic Energy Authority
04/03/2013,MATERIALS & SPARES,FUSION,DURBIN METAL INDUSTRIES LTD,5100285944,72.00,United Kingdom Atomic Energy Authority,United Kingdom Atomic Energy Authority
04/03/2013,MATERIALS & SPARES,FUSION,DURBIN METAL INDUSTRIES LTD,5100286037,102.00,United Kingdom Atomic Energy Authority,United Kingdom Atomic Energy Authority
04/03/2013,MATERIALS & SPARES,FUSION,DURBIN METAL INDUSTRIES LTD,5100286038,661.00,United Kingdom Atomic Energy Authority,United Kingdom Atomic Energy Authority
04/03/2013,MATERIALS & SPARES,FUSION,DURBIN METAL INDUSTRIES LTD,5100286044,49.50,United Kingdom Atomic Energy Authority,United Kingdom Atomic Energy Authority
06/03/2013,MATERIALS & SPARES,FUSION,DURBIN METAL INDUSTRIES LTD,5100286036,68.52,United Kingdom Atomic Energy Authority,United Kingdom Atomic Energy Authority
06/03/2013,MATERIALS & SPARES,FUSION,DURBIN METAL INDUSTRIES LTD,5100286039,21.00,United Kingdom Atomic Energy Authority,United Kingdom Atomic Energy Authority
11/03/2013,MATERIALS & SPARES,FUSION,DURBIN METAL INDUSTRIES LTD,5100286439,52.80,United Kingdom Atomic Energy Authority,United Kingdom Atomic Energy Authority
11/03/2013,MATERIALS & SPARES,FUSION,DURBIN METAL INDUSTRIES LTD,5100286440,61.60,United Kingdom Atomic Energy Authority,United Kingdom Atomic Energy Authority
11/03/2013,MATERIALS & SPARES,FUSION,DURBIN METAL INDUSTRIES LTD,5100286441,137.50,United Kingdom Atomic Energy Authority,United Kingdom Atomic Energy Authority
18/03/2013,MATERIALS & SPARES,FUSION,DURBIN METAL INDUSTRIES LTD,5100286305,19.00,United Kingdom Atomic Energy Authority,United Kingdom Atomic Energy Authority
18/03/2013,MATERIALS & SPARES,FUSION,DURBIN METAL INDUSTRIES LTD,5100286580,22.50,United Kingdom Atomic Energy Authority,United Kingdom Atomic Energy Authority
20/03/2013,MATERIALS & SPARES,FUSION,DURBIN METAL INDUSTRIES LTD,5100286680,34.70,United Kingdom Atomic Energy Authority,United Kingdom Atomic Energy Authority
20/03/2013,MATERIALS & SPARES,FUSION,DURBIN METAL INDUSTRIES LTD,5100286713,57.00,United Kingdom Atomic Energy Authority,United Kingdom Atomic Energy Authority
26/03/2013,MATERIALS & SPARES,FUSION,E2V TECHNOLOGIES (UK) lTD,5100286835,330.00,United Kingdom Atomic Energy Authority,United Kingdom Atomic Energy Authority
11/03/2013,UTILITIES/ELECTRICITY,FUSION,EDF ENERGY,5100286356,"164,858.46",United Kingdom Atomic Energy Authority,United Kingdom Atomic Energy Authority
13/03/2013,UTILITIES/ELECTRICITY,FUSION,EDF ENERGY,5100286370,122.93,United Kingdom Atomic Energy Authority,United Kingdom Atomic Energy Authority
13/03/2013,UTILITIES/ELECTRICITY,PROPERTY,EDF ENERGY,5100286357,"23,969.32",United Kingdom Atomic Energy Authority,United Kingdom Atomic Energy Authority
13/03/2013,UTILITIES/ELECTRICITY,PROPERTY,EDF ENERGY,5100286358,"28,524.76",United Kingdom Atomic Energy Authority,United Kingdom Atomic Energy Authority
13/03/2013,UTILITIES/ELECTRICITY,PROPERTY,EDF ENERGY,5100286359,"3,048.97",United Kingdom Atomic Energy Authority,United Kingdom Atomic Energy Authority
13/03/2013,UTILITIES/ELECTRICITY,PROPERTY,EDF ENERGY,5100286360,513.10,United Kingdom Atomic Energy Authority,United Kingdom Atomic Energy Authority
13/03/2013,UTILITIES/ELECTRICITY,PROPERTY,EDF ENERGY,5100286362,-0.52,United Kingdom Atomic Energy Authority,United Kingdom Atomic Energy Authority
13/03/2013,UTILITIES/ELECTRICITY,PROPERTY,EDF ENERGY,5100286363,67.75,United Kingdom Atomic Energy Authority,United Kingdom Atomic Energy Authority
13/03/2013,UTILITIES/ELECTRICITY,PROPERTY,EDF ENERGY,5100286364,783.93,United Kingdom Atomic Energy Authority,United Kingdom Atomic Energy Authority
13/03/2013,UTILITIES/ELECTRICITY,PROPERTY,EDF ENERGY,5100286365,"1,606.19",United Kingdom Atomic Energy Authority,United Kingdom Atomic Energy Authority
13/03/2013,UTILITIES/ELECTRICITY,PROPERTY,EDF ENERGY,5100286466,"25,070.27",United Kingdom Atomic Energy Authority,United Kingdom Atomic Energy Authority
04/03/2013,MATERIALS & SPARES,FUSION,EDMUND OPTICS LTD,5100285936,179.00,United Kingdom Atomic Energy Authority,United Kingdom Atomic Energy Authority
11/03/2013,MATERIALS & SPARES,FUSION,EDMUND OPTICS LTD,5100286261,244.00,United Kingdom Atomic Energy Authority,United Kingdom Atomic Energy Authority
25/02/2013,PLANT & EQUIPMENT,FUSION,EDMUNDSON ELECTRICAL LTD,5100285618,19.20,United Kingdom Atomic Energy Authority,United Kingdom Atomic Energy Authority
11/03/2013,PLANT & EQUIPMENT,FUSION,EDMUNDSON ELECTRICAL LTD,5100286470,122.66,United Kingdom Atomic Energy Authority,United Kingdom Atomic Energy Authority
20/03/2013,PLANT & EQUIPMENT,FUSION,EDMUNDSON ELECTRICAL LTD,5100286732,96.50,United Kingdom Atomic Energy Authority,United Kingdom Atomic Energy Authority
25/02/2013,PLANT & EQUIPMENT,FUSION,EDMUNDSON ELECTRICALS LTD,5100285459,"1,278.17",United Kingdom Atomic Energy Authority,United Kingdom Atomic Energy Authority
25/02/2013,PLANT & EQUIPMENT,FUSION,EDMUNDSON ELECTRICALS LTD,5100285517,43.74,United Kingdom Atomic Energy Authority,United Kingdom Atomic Energy Authority
25/02/2013,PLANT & EQUIPMENT,FUSION,EDMUNDSON ELECTRICALS LTD,5100285649,34.08,United Kingdom Atomic Energy Authority,United Kingdom Atomic Energy Authority
25/02/2013,PLANT & EQUIPMENT,FUSION,EDMUNDSON ELECTRICALS LTD,5100285651,325.40,United Kingdom Atomic Energy Authority,United Kingdom Atomic Energy Authority
25/02/2013,PLANT & EQUIPMENT,FUSION,EDMUNDSON ELECTRICALS LTD,5100285652,"2,857.63",United Kingdom Atomic Energy Authority,United Kingdom Atomic Energy Authority
27/02/2013,PLANT & EQUIPMENT,FUSION,EDMUNDSON ELECTRICALS LTD,5100285887,64.00,United Kingdom Atomic Energy Authority,United Kingdom Atomic Energy Authority
27/02/2013,PLANT & EQUIPMENT,FUSION,EDMUNDSON ELECTRICALS LTD,5100285889,32.88,United Kingdom Atomic Energy Authority,United Kingdom Atomic Energy Authority
06/03/2013,PLANT & EQUIPMENT,FUSION,EDMUNDSON ELECTRICALS LTD,5100286056,30.28,United Kingdom Atomic Energy Authority,United Kingdom Atomic Energy Authority
06/03/2013,PLANT & EQUIPMENT,FUSION,EDMUNDSON ELECTRICALS LTD,5100286057,204.58,United Kingdom Atomic Energy Authority,United Kingdom Atomic Energy Authority
06/03/2013,PLANT & EQUIPMENT,FUSION,EDMUNDSON ELECTRICALS LTD,5100286060,10.11,United Kingdom Atomic Energy Authority,United Kingdom Atomic Energy Authority
06/03/2013,PLANT & EQUIPMENT,FUSION,EDMUNDSON ELECTRICALS LTD,5100286061,607.76,United Kingdom Atomic Energy Authority,United Kingdom Atomic Energy Authority
11/03/2013,PLANT & EQUIPMENT,FUSION,EDMUNDSON ELECTRICALS LTD,5100286311,239.99,United Kingdom Atomic Energy Authority,United Kingdom Atomic Energy Authority
11/03/2013,PLANT & EQUIPMENT,FUSION,EDMUNDSON ELECTRICALS LTD,5100286312,80.64,United Kingdom Atomic Energy Authority,United Kingdom Atomic Energy Authority
18/03/2013,PLANT & EQUIPMENT,FUSION,EDMUNDSON ELECTRICALS LTD,5100286604,98.02,United Kingdom Atomic Energy Authority,United Kingdom Atomic Energy Authority
18/03/2013,PLANT & EQUIPMENT,FUSION,EDMUNDSON ELECTRICALS LTD,5100286606,122.43,United Kingdom Atomic Energy Authority,United Kingdom Atomic Energy Authority
18/03/2013,PLANT & EQUIPMENT,FUSION,EDMUNDSON ELECTRICALS LTD,5100286607,18.16,United Kingdom Atomic Energy Authority,United Kingdom Atomic Energy Authority
18/03/2013,PLANT & EQUIPMENT,FUSION,EDMUNDSON ELECTRICALS LTD,5100286609,751.37,United Kingdom Atomic Energy Authority,United Kingdom Atomic Energy Authority
18/03/2013,PLANT & EQUIPMENT,FUSION,EDMUNDSON ELECTRICALS LTD,5100286613,74.66,United Kingdom Atomic Energy Authority,United Kingdom Atomic Energy Authority
18/03/2013,PLANT & EQUIPMENT,FUSION,EDMUNDSON ELECTRICALS LTD,5100286614,823.73,United Kingdom Atomic Energy Authority,United Kingdom Atomic Energy Authority
18/03/2013,PLANT & EQUIPMENT,FUSION,EDMUNDSON ELECTRICALS LTD,5100286616,"2,981.01",United Kingdom Atomic Energy Authority,United Kingdom Atomic Energy Authority
18/03/2013,PLANT & EQUIPMENT,FUSION,EDMUNDSON ELECTRICALS LTD,5100286733,"3,719.54",United Kingdom Atomic Energy Authority,United Kingdom Atomic Energy Authority
18/03/2013,PLANT & EQUIPMENT,FUSION,EDMUNDSON ELECTRICALS LTD,5100286734,"1,065.41",United Kingdom Atomic Energy Authority,United Kingdom Atomic Energy Authority
26/03/2013,PLANT & EQUIPMENT,FUSION,EDMUNDSON ELECTRICALS LTD,5100285460,645.24,United Kingdom Atomic Energy Authority,United Kingdom Atomic Energy Authority
26/03/2013,PLANT & EQUIPMENT,FUSION,EDMUNDSON ELECTRICALS LTD,5100285653,102.82,United Kingdom Atomic Energy Authority,United Kingdom Atomic Energy Authority
26/03/2013,PLANT & EQUIPMENT,FUSION,EDMUNDSON ELECTRICALS LTD,5100286854,125.26,United Kingdom Atomic Energy Authority,United Kingdom Atomic Energy Authority
26/03/2013,PLANT & EQUIPMENT,FUSION,EDMUNDSON ELECTRICALS LTD,5100286857,289.53,United Kingdom Atomic Energy Authority,United Kingdom Atomic Energy Authority
26/03/2013,PLANT & EQUIPMENT,FUSION,EDMUNDSON ELECTRICALS LTD,5100286853,"5,137.08",United Kingdom Atomic Energy Authority,United Kingdom Atomic Energy Authority
04/03/2013,PLANT & EQUIPMENT,FUSION,EDWARDS LIMITED,5100286045,"1,139.00",United Kingdom Atomic Energy Authority,United Kingdom Atomic Energy Authority
18/03/2013,PLANT & EQUIPMENT,FUSION,EDWARDS LIMITED,5100286634,176.15,United Kingdom Atomic Energy Authority,United Kingdom Atomic Energy Authority
20/03/2013,PLANT & EQUIPMENT,FUSION,EDWARDS LIMITED,5100286715,110.00,United Kingdom Atomic Energy Authority,United Kingdom Atomic Energy Authority
25/02/2013,F&F,FUSION,EFG MATTHEWS OFFICE FURNITURE LTD,5100285590,170.10,United Kingdom Atomic Energy Authority,United Kingdom Atomic Energy Authority
25/02/2013,F&F,FUSION,EFG MATTHEWS OFFICE FURNITURE LTD,5100285589,94.50,United Kingdom Atomic Energy Authority,United Kingdom Atomic Energy Authority
11/03/2013,F&F,PROPERTY,EFG MATTHEWS OFFICE FURNITURE LTD,5100286270,"1,966.30",United Kingdom Atomic Energy Authority,United Kingdom Atomic Energy Authority
11/03/2013,F&F,SUPPORT SERVICES,EFG MATTHEWS OFFICE FURNITURE LTD,5100286268,688.20,United Kingdom Atomic Energy Authority,United Kingdom Atomic Energy Authority
11/03/2013,F&F,SUPPORT SERVICES,EFG MATTHEWS OFFICE FURNITURE LTD,5100286269,169.80,United Kingdom Atomic Energy Authority,United Kingdom Atomic Energy Authority
11/03/2013,F&F,SUPPORT SERVICES,EFG MATTHEWS OFFICE FURNITURE LTD,5100286271,632.00,United Kingdom Atomic Energy Authority,United Kingdom Atomic Energy Authority
18/03/2013,F&F,SUPPORT SERVICES,EFG MATTHEWS OFFICE FURNITURE LTD,5100286783,"1,288.00",United Kingdom Atomic Energy Authority,United Kingdom Atomic Energy Authority
18/03/2013,F&F,FUSION,EFG MATTHEWS OFFICE FURNITURE LTD,5100286780,260.00,United Kingdom Atomic Energy Authority,United Kingdom Atomic Energy Authority
18/03/2013,F&F,SUPPORT SERVICES,EFG MATTHEWS OFFICE FURNITURE LTD,5100286782,520.00,United Kingdom Atomic Energy Authority,United Kingdom Atomic Energy Authority
26/03/2013,PRINTING & GRAPHICS,FUSION,Elearning247 Ltd,1900057833,"1,050.00",United Kingdom Atomic Energy Authority,United Kingdom Atomic Energy Authority
25/02/2013,PROFESSIONAL SERVICES,FUSION,ELECTRIC STUDIO LTD,5100285736,"3,500.00",United Kingdom Atomic Energy Authority,United Kingdom Atomic Energy Authority
13/03/2013,PROFESSIONAL SERVICES,FUSION,ELECTRIC STUDIO LTD,5100286555,"2,400.00",United Kingdom Atomic Energy Authority,United Kingdom Atomic Energy Authority
26/03/2013,BUSINESS ENTERTAINMENT,FUSION,Elior UK Services,1900057830,192.80,United Kingdom Atomic Energy Authority,United Kingdom Atomic Energy Authority
28/02/2013,MILEAGE ALLOWANCE,SUPPORT SERVICES,Employees Expenses,100679469,52.00,United Kingdom Atomic Energy Authority,United Kingdom Atomic Energy Authority
28/02/2013,MILEAGE ALLOWANCE,FUSION,Employees Expenses,100679468,62.00,United Kingdom Atomic Energy Authority,United Kingdom Atomic Energy Authority
28/02/2013,MILEAGE ALLOWANCE,FUSION,Employees Expenses,100679466,61.60,United Kingdom Atomic Energy Authority,United Kingdom Atomic Energy Authority
28/02/2013,MILEAGE ALLOWANCE,FUSION,Employees Expenses,100679467,61.60,United Kingdom Atomic Energy Authority,United Kingdom Atomic Energy Authority
28/02/2013,MILEAGE ALLOWANCE,FUSION,Employees Expenses,100679463,48.40,United Kingdom Atomic Energy Authority,United Kingdom Atomic Energy Authority
28/02/2013,MILEAGE ALLOWANCE,FUSION,Employees Expenses,100679456,40.00,United Kingdom Atomic Energy Authority,United Kingdom Atomic Energy Authority
28/02/2013,MILEAGE ALLOWANCE,FUSION,Employees Expenses,100679442,16.00,United Kingdom Atomic Energy Authority,United Kingdom Atomic Energy Authority
28/02/2013,MILEAGE ALLOWANCE,FUSION,Employees Expenses,100679443,3.20,United Kingdom Atomic Energy Authority,United Kingdom Atomic Energy Authority
28/02/2013,MILEAGE ALLOWANCE,FUSION,Employees Expenses,100679439,48.00,United Kingdom Atomic Energy Authority,United Kingdom Atomic Energy Authority
28/02/2013,MILEAGE ALLOWANCE,FUSION,Employees Expenses,100679441,4.00,United Kingdom Atomic Energy Authority,United Kingdom Atomic Energy Authority
28/02/2013,MILEAGE ALLOWANCE,FUSION,Employees Expenses,100679437,12.80,United Kingdom Atomic Energy Authority,United Kingdom Atomic Energy Authority
28/02/2013,MILEAGE ALLOWANCE,FUSION,Employees Expenses,100679444,6.40,United Kingdom Atomic Energy Authority,United Kingdom Atomic Energy Authority
28/02/2013,MILEAGE ALLOWANCE,FUSION,Employees Expenses,100679445,2.80,United Kingdom Atomic Energy Authority,United Kingdom Atomic Energy Authority
28/02/2013,MILEAGE ALLOWANCE,FUSION,Employees Expenses,100679446,2.80,United Kingdom Atomic Energy Authority,United Kingdom Atomic Energy Authority
28/02/2013,MILEAGE ALLOWANCE,SUPPORT SERVICES,Employees Expenses,100679440,4.80,United Kingdom Atomic Energy Authority,United Kingdom Atomic Energy Authority
28/02/2013,OTHER EMPLOYEE EXPENSES,FUSION,Employees Expenses,100679465,60.00,United Kingdom Atomic Energy Authority,United Kingdom Atomic Energy Authority
28/02/2013,PROFESSIONAL SUBSCRIPTION,FUSION,Employees Expenses,100679460,115.00,United Kingdom Atomic Energy Authority,United Kingdom Atomic Energy Authority
28/02/2013,PROFESSIONAL SUBSCRIPTION,FUSION,Employees Expenses,100679461,222.00,United Kingdom Atomic Energy Authority,United Kingdom Atomic Energy Authority
28/02/2013,RAIL TRAVEL,FUSION,Employees Expenses,100679438,10.35,United Kingdom Atomic Energy Authority,United Kingdom Atomic Energy Authority
28/02/2013,RAIL TRAVEL,FUSION,Employees Expenses,100679454,10.78,United Kingdom Atomic Energy Authority,United Kingdom Atomic Energy Authority
28/02/2013,RAIL TRAVEL,FUSION,Employees Expenses,100679464,23.10,United Kingdom Atomic Energy Authority,United Kingdom Atomic Energy Authority
28/02/2013,RAIL TRAVEL,FUSION,Employees Expenses,100679441,62.40,United Kingdom Atomic Energy Authority,United Kingdom Atomic Energy Authority
28/02/2013,ROAD TRAVEL,FUSION,Employees Expenses,100679441,6.20,United Kingdom Atomic Energy Authority,United Kingdom Atomic Energy Authority
28/02/2013,ROAD TRAVEL,SUPPORT SERVICES,Employees Expenses,100679440,5.42,United Kingdom Atomic Energy Authority,United Kingdom Atomic Energy Authority
28/02/2013,SUBSISTENCE,FUSION,Employees Expenses,100679466,10.00,United Kingdom Atomic Energy Authority,United Kingdom Atomic Energy Authority
28/02/2013,SUBSISTENCE,FUSION,Employees Expenses,100679467,10.00,United Kingdom Atomic Energy Authority,United Kingdom Atomic Energy Authority
28/02/2013,SUBSISTENCE,FUSION,Employees Expenses,100679438,175.14,United Kingdom Atomic Energy Authority,United Kingdom Atomic Energy Authority
28/02/2013,SUBSISTENCE,FUSION,Employees Expenses,100679439,10.00,United Kingdom Atomic Energy Authority,United Kingdom Atomic Energy Authority
28/02/2013,SUBSISTENCE,FUSION,Employees Expenses,100679439,129.33,United Kingdom Atomic Energy Authority,United Kingdom Atomic Energy Authority
28/02/2013,SUBSISTENCE,FUSION,Employees Expenses,100679464,5.24,United Kingdom Atomic Energy Authority,United Kingdom Atomic Energy Authority
28/02/2013,SUBSISTENCE,FUSION,Employees Expenses,100679454,495.16,United Kingdom Atomic Energy Authority,United Kingdom Atomic Energy Authority
28/02/2013,SUBSISTENCE,FUSION,Employees Expenses,100679464,488.54,United Kingdom Atomic Energy Authority,United Kingdom Atomic Energy Authority
28/02/2013,SUBSISTENCE,FUSION,Employees Expenses,100679441,4.16,United Kingdom Atomic Energy Authority,United Kingdom Atomic Energy Authority
28/02/2013,SUBSISTENCE,SUPPORT SERVICES,Employees Expenses,100679440,1.57,United Kingdom Atomic Energy Authority,United Kingdom Atomic Energy Authority
28/02/2013,TAXIS,FUSION,Employees Expenses,100679464,39.83,United Kingdom Atomic Energy Authority,United Kingdom Atomic Energy Authority
07/03/2013,MILEAGE ALLOWANCE,FUSION,Employees Expenses,100679577,59.20,United Kingdom Atomic Energy Authority,United Kingdom Atomic Energy Authority
07/03/2013,MILEAGE ALLOWANCE,FUSION,Employees Expenses,100679578,59.20,United Kingdom Atomic Energy Authority,United Kingdom Atomic Energy Authority
07/03/2013,MILEAGE ALLOWANCE,FUSION,Employees Expenses,100679585,150.40,United Kingdom Atomic Energy Authority,United Kingdom Atomic Energy Authority
07/03/2013,MILEAGE ALLOWANCE,FUSION,Employees Expenses,100679571,48.00,United Kingdom Atomic Energy Authority,United Kingdom Atomic Energy Authority
07/03/2013,MILEAGE ALLOWANCE,FUSION,Employees Expenses,100679572,48.40,United Kingdom Atomic Energy Authority,United Kingdom Atomic Energy Authority
07/03/2013,MILEAGE ALLOWANCE,FUSION,Employees Expenses,100679573,48.80,United Kingdom Atomic Energy Authority,United Kingdom Atomic Energy Authority
07/03/2013,MILEAGE ALLOWANCE,FUSION,Employees Expenses,100679574,4.80,United Kingdom Atomic Energy Authority,United Kingdom Atomic Energy Authority
07/03/2013,MILEAGE ALLOWANCE,FUSION,Employees Expenses,100679567,4.80,United Kingdom Atomic Energy Authority,United Kingdom Atomic Energy Authority
07/03/2013,MILEAGE ALLOWANCE,FUSION,Employees Expenses,100679566,13.60,United Kingdom Atomic Energy Authority,United Kingdom Atomic Energy Authority
07/03/2013,MILEAGE ALLOWANCE,SUPPORT SERVICES,Employees Expenses,100679570,254.80,United Kingdom Atomic Energy Authority,United Kingdom Atomic Energy Authority
07/03/2013,PROFESSIONAL SUBSCRIPTION,FUSION,Employees Expenses,100679582,149.00,United Kingdom Atomic Energy Authority,United Kingdom Atomic Energy Authority
07/03/2013,PROFESSIONAL SUBSCRIPTION,FUSION,Employees Expenses,100679583,230.00,United Kingdom Atomic Energy Authority,United Kingdom Atomic Energy Authority
07/03/2013,PROFESSIONAL SUBSCRIPTION,FUSION,Employees Expenses,100679579,78.30,United Kingdom Atomic Energy Authority,United Kingdom Atomic Energy Authority
07/03/2013,PROFESSIONAL SUBSCRIPTION,FUSION,Employees Expenses,100679584,47.00,United Kingdom Atomic Energy Authority,United Kingdom Atomic Energy Authority
07/03/2013,PROFESSIONAL SUBSCRIPTION,FUSION,Employees Expenses,100679581,240.00,United Kingdom Atomic Energy Authority,United Kingdom Atomic Energy Authority
07/03/2013,RAIL TRAVEL,FUSION,Employees Expenses,100679569,3.50,United Kingdom Atomic Energy Authority,United Kingdom Atomic Energy Authority
07/03/2013,RAIL TRAVEL,FUSION,Employees Expenses,100679576,27.70,United Kingdom Atomic Energy Authority,United Kingdom Atomic Energy Authority
07/03/2013,RAIL TRAVEL,FUSION,Employees Expenses,100679575,297.86,United Kingdom Atomic Energy Authority,United Kingdom Atomic Energy Authority
07/03/2013,RAIL TRAVEL,FUSION,Employees Expenses,100679567,62.40,United Kingdom Atomic Energy Authority,United Kingdom Atomic Energy Authority
07/03/2013,ROAD TRAVEL,FUSION,Employees Expenses,100679575,29.00,United Kingdom Atomic Energy Authority,United Kingdom Atomic Energy Authority
07/03/2013,ROAD TRAVEL,FUSION,Employees Expenses,100679568,25.00,United Kingdom Atomic Energy Authority,United Kingdom Atomic Energy Authority
07/03/2013,ROAD TRAVEL,FUSION,Employees Expenses,100679576,6.20,United Kingdom Atomic Energy Authority,United Kingdom Atomic Energy Authority
07/03/2013,ROAD TRAVEL,FUSION,Employees Expenses,100679573,121.40,United Kingdom Atomic Energy Authority,United Kingdom Atomic Energy Authority
07/03/2013,ROAD TRAVEL,FUSION,Employees Expenses,100679575,28.27,United Kingdom Atomic Energy Authority,United Kingdom Atomic Energy Authority
07/03/2013,ROAD TRAVEL,FUSION,Employees Expenses,100679567,5.17,United Kingdom Atomic Energy Authority,United Kingdom Atomic Energy Authority
07/03/2013,SUBSISTENCE,FUSION,Employees Expenses,100679575,5.28,United Kingdom Atomic Energy Authority,United Kingdom Atomic Energy Authority
07/03/2013,SUBSISTENCE,FUSION,Employees Expenses,100679569,96.52,United Kingdom Atomic Energy Authority,United Kingdom Atomic Energy Authority
07/03/2013,SUBSISTENCE,FUSION,Employees Expenses,100679571,10.00,United Kingdom Atomic Energy Authority,United Kingdom Atomic Energy Authority
07/03/2013,SUBSISTENCE,FUSION,Employees Expenses,100679571,62.50,United Kingdom Atomic Energy Authority,United Kingdom Atomic Energy Authority
07/03/2013,SUBSISTENCE,FUSION,Employees Expenses,100679572,8.83,United Kingdom Atomic Energy Authority,United Kingdom Atomic Energy Authority
07/03/2013,SUBSISTENCE,FUSION,Employees Expenses,100679573,379.27,United Kingdom Atomic Energy Authority,United Kingdom Atomic Energy Authority
07/03/2013,SUBSISTENCE,FUSION,Employees Expenses,100679573,5.08,United Kingdom Atomic Energy Authority,United Kingdom Atomic Energy Authority
07/03/2013,SUBSISTENCE,FUSION,Employees Expenses,100679575,"1,012.77",United Kingdom Atomic Energy Authority,United Kingdom Atomic Energy Authority
07/03/2013,SUBSISTENCE,SUPPORT SERVICES,Employees Expenses,100679570,10.00,United Kingdom Atomic Energy Authority,United Kingdom Atomic Energy Authority
07/03/2013,SUBSISTENCE,SUPPORT SERVICES,Employees Expenses,100679570,160.46,United Kingdom Atomic Energy Authority,United Kingdom Atomic Energy Authority
07/03/2013,TAXIS,FUSION,Employees Expenses,100679575,11.00,United Kingdom Atomic Energy Authority,United Kingdom Atomic Energy Authority
07/03/2013,TAXIS,FUSION,Employees Expenses,100679575,209.08,United Kingdom Atomic Energy Authority,United Kingdom Atomic Energy Authority
13/03/2013,SUBSISTENCE,FUSION,Employees Expenses,100680829,"1,205.44",United Kingdom Atomic Energy Authority,United Kingdom Atomic Energy Authority
14/03/2013,MILEAGE ALLOWANCE,FUSION,Employees Expenses,100680843,61.60,United Kingdom Atomic Energy Authority,United Kingdom Atomic Energy Authority
14/03/2013,MILEAGE ALLOWANCE,FUSION,Employees Expenses,100680840,54.00,United Kingdom Atomic Energy Authority,United Kingdom Atomic Energy Authority
14/03/2013,MILEAGE ALLOWANCE,FUSION,Employees Expenses,100680842,72.00,United Kingdom Atomic Energy Authority,United Kingdom Atomic Energy Authority
14/03/2013,OTHER EMPLOYEE EXPENSES,FUSION,Employees Expenses,100680841,6.99,United Kingdom Atomic Energy Authority,United Kingdom Atomic Energy Authority
14/03/2013,OTHER EMPLOYEE EXPENSES,FUSION,Employees Expenses,100680838,3.00,United Kingdom Atomic Energy Authority,United Kingdom Atomic Energy Authority
14/03/2013,PROFESSIONAL SUBSCRIPTION,SUPPORT SERVICES,Employees Expenses,100680839,105.00,United Kingdom Atomic Energy Authority,United Kingdom Atomic Energy Authority
14/03/2013,PROFESSIONAL SUBSCRIPTION,FUSION,Employees Expenses,100680849,268.50,United Kingdom Atomic Energy Authority,United Kingdom Atomic Energy Authority
14/03/2013,PROFESSIONAL SUBSCRIPTION,FUSION,Employees Expenses,100680850,219.50,United Kingdom Atomic Energy Authority,United Kingdom Atomic Energy Authority
14/03/2013,PROFESSIONAL SUBSCRIPTION,FUSION,Employees Expenses,100680837,230.00,United Kingdom Atomic Energy Authority,United Kingdom Atomic Energy Authority
14/03/2013,RAIL TRAVEL,FUSION,Employees Expenses,100680845,20.00,United Kingdom Atomic Energy Authority,United Kingdom Atomic Energy Authority
14/03/2013,RAIL TRAVEL,FUSION,Employees Expenses,100680844,1.18,United Kingdom Atomic Energy Authority,United Kingdom Atomic Energy Authority
14/03/2013,RAIL TRAVEL,FUSION,Employees Expenses,100680851,55.00,United Kingdom Atomic Energy Authority,United Kingdom Atomic Energy Authority
14/03/2013,ROAD TRAVEL,FUSION,Employees Expenses,100680848,26.67,United Kingdom Atomic Energy Authority,United Kingdom Atomic Energy Authority
14/03/2013,ROAD TRAVEL,FUSION,Employees Expenses,100680838,23.00,United Kingdom Atomic Energy Authority,United Kingdom Atomic Energy Authority
14/03/2013,ROAD TRAVEL,FUSION,Employees Expenses,100680851,14.16,United Kingdom Atomic Energy Authority,United Kingdom Atomic Energy Authority
14/03/2013,SUBSISTENCE,FUSION,Employees Expenses,100680841,440.51,United Kingdom Atomic Energy Authority,United Kingdom Atomic Energy Authority
14/03/2013,SUBSISTENCE,FUSION,Employees Expenses,100680843,10.00,United Kingdom Atomic Energy Authority,United Kingdom Atomic Energy Authority
14/03/2013,SUBSISTENCE,FUSION,Employees Expenses,100680847,10.00,United Kingdom Atomic Energy Authority,United Kingdom Atomic Energy Authority
14/03/2013,SUBSISTENCE,FUSION,Employees Expenses,100680847,197.68,United Kingdom Atomic Energy Authority,United Kingdom Atomic Energy Authority
14/03/2013,SUBSISTENCE,FUSION,Employees Expenses,100680845,117.66,United Kingdom Atomic Energy Authority,United Kingdom Atomic Energy Authority
14/03/2013,SUBSISTENCE,FUSION,Employees Expenses,100680838,218.14,United Kingdom Atomic Energy Authority,United Kingdom Atomic Energy Authority
14/03/2013,SUBSISTENCE,FUSION,Employees Expenses,100680838,11.79,United Kingdom Atomic Energy Authority,United Kingdom Atomic Energy Authority
14/03/2013,SUBSISTENCE,FUSION,Employees Expenses,100680844,105.79,United Kingdom Atomic Energy Authority,United Kingdom Atomic Energy Authority
14/03/2013,SUBSISTENCE,FUSION,Employees Expenses,100680851,148.86,United Kingdom Atomic Energy Authority,United Kingdom Atomic Energy Authority
14/03/2013,SUBSISTENCE,FUSION,Employees Expenses,100680846,8.29,United Kingdom Atomic Energy Authority,United Kingdom Atomic Energy Authority
14/03/2013,TAXIS,FUSION,Employees Expenses,100680838,32.94,United Kingdom Atomic Energy Authority,United Kingdom Atomic Energy Authority
14/03/2013,TAXIS,SUPPORT SERVICES,Employees Expenses,100680836,7.00,United Kingdom Atomic Energy Authority,United Kingdom Atomic Energy Authority
16/03/2013,BUSINESS ENTERTAINMENT,FUSION,Employees Expenses,100680911,51.11,United Kingdom Atomic Energy Authority,United Kingdom Atomic Energy Authority
16/03/2013,MILEAGE ALLOWANCE,FUSION,Employees Expenses,100680909,79.20,United Kingdom Atomic Energy Authority,United Kingdom Atomic Energy Authority
16/03/2013,MILEAGE ALLOWANCE,SUPPORT SERVICES,Employees Expenses,100680910,9.60,United Kingdom Atomic Energy Authority,United Kingdom Atomic Energy Authority
16/03/2013,OTHER EMPLOYEE EXPENSES,FUSION,Employees Expenses,100680917,3.00,United Kingdom Atomic Energy Authority,United Kingdom Atomic Energy Authority
16/03/2013,OTHER EMPLOYEE EXPENSES,FUSION,Employees Expenses,100680914,6.99,United Kingdom Atomic Energy Authority,United Kingdom Atomic Energy Authority
16/03/2013,PROFESSIONAL SUBSCRIPTION,FUSION,Employees Expenses,100680907,100.00,United Kingdom Atomic Energy Authority,United Kingdom Atomic Energy Authority
16/03/2013,PROFESSIONAL SUBSCRIPTION,FUSION,Employees Expenses,100680915,230.00,United Kingdom Atomic Energy Authority,United Kingdom Atomic Energy Authority
16/03/2013,RAIL TRAVEL,SUPPORT SERVICES,Employees Expenses,100680912,8.00,United Kingdom Atomic Energy Authority,United Kingdom Atomic Energy Authority
16/03/2013,RAIL TRAVEL,SUPPORT SERVICES,Employees Expenses,100680913,1.60,United Kingdom Atomic Energy Authority,United Kingdom Atomic Energy Authority
16/03/2013,RAIL TRAVEL,FUSION,Employees Expenses,100680909,5.33,United Kingdom Atomic Energy Authority,United Kingdom Atomic Energy Authority
16/03/2013,RAIL TRAVEL,FUSION,Employees Expenses,100680919,2.41,United Kingdom Atomic Energy Authority,United Kingdom Atomic Energy Authority
16/03/2013,RAIL TRAVEL,SUPPORT SERVICES,Employees Expenses,100680910,62.40,United Kingdom Atomic Energy Authority,United Kingdom Atomic Energy Authority
16/03/2013,ROAD TRAVEL,FUSION,Employees Expenses,100680908,45.61,United Kingdom Atomic Energy Authority,United Kingdom Atomic Energy Authority
16/03/2013,ROAD TRAVEL,FUSION,Employees Expenses,100680909,33.14,United Kingdom Atomic Energy Authority,United Kingdom Atomic Energy Authority
16/03/2013,ROAD TRAVEL,FUSION,Employees Expenses,100680918,9.17,United Kingdom Atomic Energy Authority,United Kingdom Atomic Energy Authority
16/03/2013,ROAD TRAVEL,FUSION,Employees Expenses,100680914,28.23,United Kingdom Atomic Energy Authority,United Kingdom Atomic Energy Authority
16/03/2013,SUBSISTENCE,SUPPORT SERVICES,Employees Expenses,100680912,5.00,United Kingdom Atomic Energy Authority,United Kingdom Atomic Energy Authority
16/03/2013,SUBSISTENCE,SUPPORT SERVICES,Employees Expenses,100680912,100.00,United Kingdom Atomic Energy Authority,United Kingdom Atomic Energy Authority
16/03/2013,SUBSISTENCE,SUPPORT SERVICES,Employees Expenses,100680913,23.70,United Kingdom Atomic Energy Authority,United Kingdom Atomic Energy Authority
16/03/2013,SUBSISTENCE,SUPPORT SERVICES,Employees Expenses,100680913,12.46,United Kingdom Atomic Energy Authority,United Kingdom Atomic Energy Authority
16/03/2013,SUBSISTENCE,FUSION,Employees Expenses,100680908,5.00,United Kingdom Atomic Energy Authority,United Kingdom Atomic Energy Authority
16/03/2013,SUBSISTENCE,FUSION,Employees Expenses,100680908,117.08,United Kingdom Atomic Energy Authority,United Kingdom Atomic Energy Authority
16/03/2013,SUBSISTENCE,FUSION,Employees Expenses,100680917,181.95,United Kingdom Atomic Energy Authority,United Kingdom Atomic Energy Authority
16/03/2013,SUBSISTENCE,FUSION,Employees Expenses,100680917,3.87,United Kingdom Atomic Energy Authority,United Kingdom Atomic Energy Authority
16/03/2013,SUBSISTENCE,FUSION,Employees Expenses,100680909,271.87,United Kingdom Atomic Energy Authority,United Kingdom Atomic Energy Authority
16/03/2013,SUBSISTENCE,FUSION,Employees Expenses,100680909,9.91,United Kingdom Atomic Energy Authority,United Kingdom Atomic Energy Authority
16/03/2013,SUBSISTENCE,FUSION,Employees Expenses,100680918,17.55,United Kingdom Atomic Energy Authority,United Kingdom Atomic Energy Authority
16/03/2013,SUBSISTENCE,FUSION,Employees Expenses,100680914,401.25,United Kingdom Atomic Energy Authority,United Kingdom Atomic Energy Authority
16/03/2013,SUBSISTENCE,FUSION,Employees Expenses,100680914,798.12,United Kingdom Atomic Energy Authority,United Kingdom Atomic Energy Authority
16/03/2013,SUBSISTENCE,FUSION,Employees Expenses,100680919,506.59,United Kingdom Atomic Energy Authority,United Kingdom Atomic Energy Authority
16/03/2013,SUBSISTENCE,SUPPORT SERVICES,Employees Expenses,100680910,1.58,United Kingdom Atomic Energy Authority,United Kingdom Atomic Energy Authority
16/03/2013,TAXIS,FUSION,Employees Expenses,100680917,33.65,United Kingdom Atomic Energy Authority,United Kingdom Atomic Energy Authority
21/03/2013,BUSINESS ENTERTAINMENT,FUSION,Employees Expenses,100681477,82.30,United Kingdom Atomic Energy Authority,United Kingdom Atomic Energy Authority
21/03/2013,MILEAGE ALLOWANCE,SUPPORT SERVICES,Employees Expenses,100681482,24.75,United Kingdom Atomic Energy Authority,United Kingdom Atomic Energy Authority
21/03/2013,MILEAGE ALLOWANCE,SUPPORT SERVICES,Employees Expenses,100681483,5.40,United Kingdom Atomic Energy Authority,United Kingdom Atomic Energy Authority
21/03/2013,MILEAGE ALLOWANCE,FUSION,Employees Expenses,100681485,66.60,United Kingdom Atomic Energy Authority,United Kingdom Atomic Energy Authority
21/03/2013,MILEAGE ALLOWANCE,FUSION,Employees Expenses,100681491,69.75,United Kingdom Atomic Energy Authority,United Kingdom Atomic Energy Authority
21/03/2013,MILEAGE ALLOWANCE,FUSION,Employees Expenses,100681486,69.30,United Kingdom Atomic Energy Authority,United Kingdom Atomic Energy Authority
21/03/2013,MILEAGE ALLOWANCE,FUSION,Employees Expenses,100681487,69.30,United Kingdom Atomic Energy Authority,United Kingdom Atomic Energy Authority
21/03/2013,MILEAGE ALLOWANCE,FUSION,Employees Expenses,100681488,69.30,United Kingdom Atomic Energy Authority,United Kingdom Atomic Energy Authority
21/03/2013,MILEAGE ALLOWANCE,FUSION,Employees Expenses,100681478,15.30,United Kingdom Atomic Energy Authority,United Kingdom Atomic Energy Authority
21/03/2013,MILEAGE ALLOWANCE,FUSION,Employees Expenses,100681472,63.00,United Kingdom Atomic Energy Authority,United Kingdom Atomic Energy Authority
21/03/2013,MILEAGE ALLOWANCE,FUSION,Employees Expenses,100681475,163.80,United Kingdom Atomic Energy Authority,United Kingdom Atomic Energy Authority
21/03/2013,MILEAGE ALLOWANCE,FUSION,Employees Expenses,100681476,9.00,United Kingdom Atomic Energy Authority,United Kingdom Atomic Energy Authority
21/03/2013,MILEAGE ALLOWANCE,FUSION,Employees Expenses,100681479,5.60,United Kingdom Atomic Energy Authority,United Kingdom Atomic Energy Authority
21/03/2013,MILEAGE ALLOWANCE,FUSION,Employees Expenses,100681477,44.80,United Kingdom Atomic Energy Authority,United Kingdom Atomic Energy Authority
21/03/2013,MILEAGE ALLOWANCE,FUSION,Employees Expenses,100681492,84.80,United Kingdom Atomic Energy Authority,United Kingdom Atomic Energy Authority
21/03/2013,MILEAGE ALLOWANCE,FUSION,Employees Expenses,100681493,21.20,United Kingdom Atomic Energy Authority,United Kingdom Atomic Energy Authority
21/03/2013,MILEAGE ALLOWANCE,FUSION,Employees Expenses,100681469,59.40,United Kingdom Atomic Energy Authority,United Kingdom Atomic Energy Authority
21/03/2013,MILEAGE ALLOWANCE,FUSION,Employees Expenses,100681473,7.20,United Kingdom Atomic Energy Authority,United Kingdom Atomic Energy Authority
21/03/2013,MILEAGE ALLOWANCE,FUSION,Employees Expenses,100681474,71.10,United Kingdom Atomic Energy Authority,United Kingdom Atomic Energy Authority
21/03/2013,MILEAGE ALLOWANCE,FUSION,Employees Expenses,100681467,15.30,United Kingdom Atomic Energy Authority,United Kingdom Atomic Energy Authority
21/03/2013,MILEAGE ALLOWANCE,FUSION,Employees Expenses,100681468,13.50,United Kingdom Atomic Energy Authority,United Kingdom Atomic Energy Authority
21/03/2013,OTHER EMPLOYEE EXPENSES,FUSION,Employees Expenses,100681492,204.64,United Kingdom Atomic Energy Authority,United Kingdom Atomic Energy Authority
21/03/2013,OTHER EMPLOYEE EXPENSES,FUSION,Employees Expenses,100681493,26.28,United Kingdom Atomic Energy Authority,United Kingdom Atomic Energy Authority
21/03/2013,OTHER EMPLOYEE EXPENSES,FUSION,Employees Expenses,100681494,5.14,United Kingdom Atomic Energy Authority,United Kingdom Atomic Energy Authority
21/03/2013,PROFESSIONAL SUBSCRIPTION,SUPPORT SERVICES,Employees Expenses,100681484,240.00,United Kingdom Atomic Energy Authority,United Kingdom Atomic Energy Authority
21/03/2013,RAIL TRAVEL,FUSION,Employees Expenses,100681471,5.70,United Kingdom Atomic Energy Authority,United Kingdom Atomic Energy Authority
21/03/2013,RAIL TRAVEL,FUSION,Employees Expenses,100681489,58.00,United Kingdom Atomic Energy Authority,United Kingdom Atomic Energy Authority
21/03/2013,RAIL TRAVEL,FUSION,Employees Expenses,100681476,44.90,United Kingdom Atomic Energy Authority,United Kingdom Atomic Energy Authority
21/03/2013,RAIL TRAVEL,FUSION,Employees Expenses,100681490,18.48,United Kingdom Atomic Energy Authority,United Kingdom Atomic Energy Authority
21/03/2013,RAIL TRAVEL,FUSION,Employees Expenses,100681477,30.48,United Kingdom Atomic Energy Authority,United Kingdom Atomic Energy Authority
21/03/2013,ROAD TRAVEL,SUPPORT SERVICES,Employees Expenses,100681483,6.00,United Kingdom Atomic Energy Authority,United Kingdom Atomic Energy Authority
21/03/2013,ROAD TRAVEL,FUSION,Employees Expenses,100681480,26.00,United Kingdom Atomic Energy Authority,United Kingdom Atomic Energy Authority
21/03/2013,ROAD TRAVEL,FUSION,Employees Expenses,100681478,20.00,United Kingdom Atomic Energy Authority,United Kingdom Atomic Energy Authority
21/03/2013,ROAD TRAVEL,FUSION,Employees Expenses,100681472,9.00,United Kingdom Atomic Energy Authority,United Kingdom Atomic Energy Authority
21/03/2013,ROAD TRAVEL,FUSION,Employees Expenses,100681476,20.00,United Kingdom Atomic Energy Authority,United Kingdom Atomic Energy Authority
21/03/2013,ROAD TRAVEL,FUSION,Employees Expenses,100681476,7.28,United Kingdom Atomic Energy Authority,United Kingdom Atomic Energy Authority
21/03/2013,ROAD TRAVEL,FUSION,Employees Expenses,100681479,2.40,United Kingdom Atomic Energy Authority,United Kingdom Atomic Energy Authority
21/03/2013,ROAD TRAVEL,FUSION,Employees Expenses,100681479,1.50,United Kingdom Atomic Energy Authority,United Kingdom Atomic Energy Authority
21/03/2013,ROAD TRAVEL,FUSION,Employees Expenses,100681490,29.00,United Kingdom Atomic Energy Authority,United Kingdom Atomic Energy Authority
21/03/2013,ROAD TRAVEL,FUSION,Employees Expenses,100681477,61.90,United Kingdom Atomic Energy Authority,United Kingdom Atomic Energy Authority
21/03/2013,ROAD TRAVEL,FUSION,Employees Expenses,100681492,43.32,United Kingdom Atomic Energy Authority,United Kingdom Atomic Energy Authority
21/03/2013,ROAD TRAVEL,FUSION,Employees Expenses,100681493,8.11,United Kingdom Atomic Energy Authority,United Kingdom Atomic Energy Authority
21/03/2013,ROAD TRAVEL,FUSION,Employees Expenses,100681494,17.29,United Kingdom Atomic Energy Authority,United Kingdom Atomic Energy Authority
21/03/2013,ROAD TRAVEL,FUSION,Employees Expenses,100681474,19.17,United Kingdom Atomic Energy Authority,United Kingdom Atomic Energy Authority
21/03/2013,SUBSISTENCE,FUSION,Employees Expenses,100681486,10.00,United Kingdom Atomic Energy Authority,United Kingdom Atomic Energy Authority
21/03/2013,SUBSISTENCE,FUSION,Employees Expenses,100681487,10.00,United Kingdom Atomic Energy Authority,United Kingdom Atomic Energy Authority
21/03/2013,SUBSISTENCE,FUSION,Employees Expenses,100681488,10.00,United Kingdom Atomic Energy Authority,United Kingdom Atomic Energy Authority
21/03/2013,SUBSISTENCE,FUSION,Employees Expenses,100681480,"1,326.80",United Kingdom Atomic Energy Authority,United Kingdom Atomic Energy Authority
21/03/2013,SUBSISTENCE,FUSION,Employees Expenses,100681480,3.25,United Kingdom Atomic Energy Authority,United Kingdom Atomic Energy Authority
21/03/2013,SUBSISTENCE,FUSION,Employees Expenses,100681470,10.38,United Kingdom Atomic Energy Authority,United Kingdom Atomic Energy Authority
21/03/2013,SUBSISTENCE,FUSION,Employees Expenses,100681478,14.42,United Kingdom Atomic Energy Authority,United Kingdom Atomic Energy Authority
21/03/2013,SUBSISTENCE,FUSION,Employees Expenses,100681472,10.00,United Kingdom Atomic Energy Authority,United Kingdom Atomic Energy Authority
21/03/2013,SUBSISTENCE,FUSION,Employees Expenses,100681472,137.21,United Kingdom Atomic Energy Authority,United Kingdom Atomic Energy Authority
21/03/2013,SUBSISTENCE,FUSION,Employees Expenses,100681475,22.00,United Kingdom Atomic Energy Authority,United Kingdom Atomic Energy Authority
21/03/2013,SUBSISTENCE,FUSION,Employees Expenses,100681476,298.71,United Kingdom Atomic Energy Authority,United Kingdom Atomic Energy Authority
21/03/2013,SUBSISTENCE,FUSION,Employees Expenses,100681476,11.58,United Kingdom Atomic Energy Authority,United Kingdom Atomic Energy Authority
21/03/2013,SUBSISTENCE,FUSION,Employees Expenses,100681490,687.51,United Kingdom Atomic Energy Authority,United Kingdom Atomic Energy Authority
21/03/2013,SUBSISTENCE,FUSION,Employees Expenses,100681477,261.20,United Kingdom Atomic Energy Authority,United Kingdom Atomic Energy Authority
21/03/2013,SUBSISTENCE,FUSION,Employees Expenses,100681477,6.58,United Kingdom Atomic Energy Authority,United Kingdom Atomic Energy Authority
21/03/2013,SUBSISTENCE,FUSION,Employees Expenses,100681481,943.15,United Kingdom Atomic Energy Authority,United Kingdom Atomic Energy Authority
21/03/2013,SUBSISTENCE,FUSION,Employees Expenses,100681481,785.96,United Kingdom Atomic Energy Authority,United Kingdom Atomic Energy Authority
21/03/2013,SUBSISTENCE,FUSION,Employees Expenses,100681492,247.84,United Kingdom Atomic Energy Authority,United Kingdom Atomic Energy Authority
21/03/2013,SUBSISTENCE,FUSION,Employees Expenses,100681493,193.59,United Kingdom Atomic Energy Authority,United Kingdom Atomic Energy Authority
21/03/2013,SUBSISTENCE,FUSION,Employees Expenses,100681494,243.39,United Kingdom Atomic Energy Authority,United Kingdom Atomic Energy Authority
21/03/2013,SUBSISTENCE,FUSION,Employees Expenses,100681474,5.00,United Kingdom Atomic Energy Authority,United Kingdom Atomic Energy Authority
21/03/2013,TAXIS,FUSION,Employees Expenses,100681480,13.59,United Kingdom Atomic Energy Authority,United Kingdom Atomic Energy Authority
21/03/2013,TAXIS,FUSION,Employees Expenses,100681476,34.15,United Kingdom Atomic Energy Authority,United Kingdom Atomic Energy Authority
23/03/2013,AIR TRAVEL,FUSION,Employees Expenses,100681534,46.90,United Kingdom Atomic Energy Authority,United Kingdom Atomic Energy Authority
23/03/2013,MILEAGE ALLOWANCE,FUSION,Employees Expenses,100681541,69.75,United Kingdom Atomic Energy Authority,United Kingdom Atomic Energy Authority
23/03/2013,MILEAGE ALLOWANCE,FUSION,Employees Expenses,100681544,19.20,United Kingdom Atomic Energy Authority,United Kingdom Atomic Energy Authority
23/03/2013,MILEAGE ALLOWANCE,FUSION,Employees Expenses,100681520,54.00,United Kingdom Atomic Energy Authority,United Kingdom Atomic Energy Authority
23/03/2013,MILEAGE ALLOWANCE,FUSION,Employees Expenses,100681536,81.00,United Kingdom Atomic Energy Authority,United Kingdom Atomic Energy Authority
23/03/2013,MILEAGE ALLOWANCE,FUSION,Employees Expenses,100681528,15.30,United Kingdom Atomic Energy Authority,United Kingdom Atomic Energy Authority
23/03/2013,MILEAGE ALLOWANCE,FUSION,Employees Expenses,100681524,12.60,United Kingdom Atomic Energy Authority,United Kingdom Atomic Energy Authority
23/03/2013,MILEAGE ALLOWANCE,FUSION,Employees Expenses,100681530,5.60,United Kingdom Atomic Energy Authority,United Kingdom Atomic Energy Authority
23/03/2013,MILEAGE ALLOWANCE,SUPPORT SERVICES,Employees Expenses,100681522,12.60,United Kingdom Atomic Energy Authority,United Kingdom Atomic Energy Authority
23/03/2013,OTHER EMPLOYEE EXPENSES,FUSION,Employees Expenses,100681523,3.00,United Kingdom Atomic Energy Authority,United Kingdom Atomic Energy Authority
23/03/2013,OTHER EMPLOYEE EXPENSES,FUSION,Employees Expenses,100681531,3.00,United Kingdom Atomic Energy Authority,United Kingdom Atomic Energy Authority
23/03/2013,OTHER EMPLOYEE EXPENSES,FUSION,Employees Expenses,100681529,16.70,United Kingdom Atomic Energy Authority,United Kingdom Atomic Energy Authority
23/03/2013,OTHER EMPLOYEE EXPENSES,FUSION,Employees Expenses,100681523,46.68,United Kingdom Atomic Energy Authority,United Kingdom Atomic Energy Authority
23/03/2013,RAIL TRAVEL,SUPPORT SERVICES,Employees Expenses,100681519,18.80,United Kingdom Atomic Energy Authority,United Kingdom Atomic Energy Authority
23/03/2013,RAIL TRAVEL,FUSION,Employees Expenses,100681517,8.83,United Kingdom Atomic Energy Authority,United Kingdom Atomic Energy Authority
23/03/2013,RAIL TRAVEL,FUSION,Employees Expenses,100681527,27.70,United Kingdom Atomic Energy Authority,United Kingdom Atomic Energy Authority
23/03/2013,RAIL TRAVEL,FUSION,Employees Expenses,100681544,19.80,United Kingdom Atomic Energy Authority,United Kingdom Atomic Energy Authority
23/03/2013,RAIL TRAVEL,FUSION,Employees Expenses,100681523,9.91,United Kingdom Atomic Energy Authority,United Kingdom Atomic Energy Authority
23/03/2013,RAIL TRAVEL,FUSION,Employees Expenses,100681523,34.31,United Kingdom Atomic Energy Authority,United Kingdom Atomic Energy Authority
23/03/2013,RAIL TRAVEL,SUPPORT SERVICES,Employees Expenses,100681546,3.44,United Kingdom Atomic Energy Authority,United Kingdom Atomic Energy Authority
23/03/2013,RAIL TRAVEL,SUPPORT SERVICES,Employees Expenses,100681547,52.65,United Kingdom Atomic Energy Authority,United Kingdom Atomic Energy Authority
23/03/2013,ROAD TRAVEL,SUPPORT SERVICES,Employees Expenses,100681519,10.33,United Kingdom Atomic Energy Authority,United Kingdom Atomic Energy Authority
23/03/2013,ROAD TRAVEL,FUSION,Employees Expenses,100681545,81.90,United Kingdom Atomic Energy Authority,United Kingdom Atomic Energy Authority
23/03/2013,ROAD TRAVEL,FUSION,Employees Expenses,100681548,13.69,United Kingdom Atomic Energy Authority,United Kingdom Atomic Energy Authority
23/03/2013,ROAD TRAVEL,FUSION,Employees Expenses,100681518,153.90,United Kingdom Atomic Energy Authority,United Kingdom Atomic Energy Authority
23/03/2013,ROAD TRAVEL,FUSION,Employees Expenses,100681537,8.33,United Kingdom Atomic Energy Authority,United Kingdom Atomic Energy Authority
23/03/2013,ROAD TRAVEL,FUSION,Employees Expenses,100681538,4.50,United Kingdom Atomic Energy Authority,United Kingdom Atomic Energy Authority
23/03/2013,ROAD TRAVEL,FUSION,Employees Expenses,100681542,12.00,United Kingdom Atomic Energy Authority,United Kingdom Atomic Energy Authority
23/03/2013,ROAD TRAVEL,FUSION,Employees Expenses,100681544,14.00,United Kingdom Atomic Energy Authority,United Kingdom Atomic Energy Authority
23/03/2013,ROAD TRAVEL,FUSION,Employees Expenses,100681523,52.00,United Kingdom Atomic Energy Authority,United Kingdom Atomic Energy Authority
23/03/2013,ROAD TRAVEL,FUSION,Employees Expenses,100681528,6.00,United Kingdom Atomic Energy Authority,United Kingdom Atomic Energy Authority
23/03/2013,ROAD TRAVEL,FUSION,Employees Expenses,100681531,23.00,United Kingdom Atomic Energy Authority,United Kingdom Atomic Energy Authority
23/03/2013,ROAD TRAVEL,FUSION,Employees Expenses,100681529,29.00,United Kingdom Atomic Energy Authority,United Kingdom Atomic Energy Authority
23/03/2013,ROAD TRAVEL,FUSION,Employees Expenses,100681529,22.97,United Kingdom Atomic Energy Authority,United Kingdom Atomic Energy Authority
23/03/2013,ROAD TRAVEL,FUSION,Employees Expenses,100681534,26.00,United Kingdom Atomic Energy Authority,United Kingdom Atomic Energy Authority
23/03/2013,ROAD TRAVEL,FUSION,Employees Expenses,100681523,28.22,United Kingdom Atomic Energy Authority,United Kingdom Atomic Energy Authority
23/03/2013,ROAD TRAVEL,FUSION,Employees Expenses,100681525,61.90,United Kingdom Atomic Energy Authority,United Kingdom Atomic Energy Authority
23/03/2013,ROAD TRAVEL,FUSION,Employees Expenses,100681525,51.58,United Kingdom Atomic Energy Authority,United Kingdom Atomic Energy Authority
23/03/2013,ROAD TRAVEL,FUSION,Employees Expenses,100681526,56.12,United Kingdom Atomic Energy Authority,United Kingdom Atomic Energy Authority
23/03/2013,ROAD TRAVEL,SUPPORT SERVICES,Employees Expenses,100681522,4.75,United Kingdom Atomic Energy Authority,United Kingdom Atomic Energy Authority
23/03/2013,SUBSISTENCE,FUSION,Employees Expenses,100681545,5.00,United Kingdom Atomic Energy Authority,United Kingdom Atomic Energy Authority
23/03/2013,SUBSISTENCE,FUSION,Employees Expenses,100681545,122.65,United Kingdom Atomic Energy Authority,United Kingdom Atomic Energy Authority
23/03/2013,SUBSISTENCE,FUSION,Employees Expenses,100681517,95.62,United Kingdom Atomic Energy Authority,United Kingdom Atomic Energy Authority
23/03/2013,SUBSISTENCE,FUSION,Employees Expenses,100681548,265.53,United Kingdom Atomic Energy Authority,United Kingdom Atomic Energy Authority
23/03/2013,SUBSISTENCE,FUSION,Employees Expenses,100681548,5.29,United Kingdom Atomic Energy Authority,United Kingdom Atomic Energy Authority
23/03/2013,SUBSISTENCE,FUSION,Employees Expenses,100681518,40.00,United Kingdom Atomic Energy Authority,United Kingdom Atomic Energy Authority
23/03/2013,SUBSISTENCE,FUSION,Employees Expenses,100681518,15.78,United Kingdom Atomic Energy Authority,United Kingdom Atomic Energy Authority
23/03/2013,SUBSISTENCE,FUSION,Employees Expenses,100681527,2.04,United Kingdom Atomic Energy Authority,United Kingdom Atomic Energy Authority
23/03/2013,SUBSISTENCE,FUSION,Employees Expenses,100681542,45.00,United Kingdom Atomic Energy Authority,United Kingdom Atomic Energy Authority
23/03/2013,SUBSISTENCE,FUSION,Employees Expenses,100681542,53.66,United Kingdom Atomic Energy Authority,United Kingdom Atomic Energy Authority
23/03/2013,SUBSISTENCE,FUSION,Employees Expenses,100681544,5.00,United Kingdom Atomic Energy Authority,United Kingdom Atomic Energy Authority
23/03/2013,SUBSISTENCE,FUSION,Employees Expenses,100681544,46.71,United Kingdom Atomic Energy Authority,United Kingdom Atomic Energy Authority
23/03/2013,SUBSISTENCE,FUSION,Employees Expenses,100681520,10.00,United Kingdom Atomic Energy Authority,United Kingdom Atomic Energy Authority
23/03/2013,SUBSISTENCE,FUSION,Employees Expenses,100681520,136.25,United Kingdom Atomic Energy Authority,United Kingdom Atomic Energy Authority
23/03/2013,SUBSISTENCE,FUSION,Employees Expenses,100681521,25.00,United Kingdom Atomic Energy Authority,United Kingdom Atomic Energy Authority
23/03/2013,SUBSISTENCE,FUSION,Employees Expenses,100681523,254.58,United Kingdom Atomic Energy Authority,United Kingdom Atomic Energy Authority
23/03/2013,SUBSISTENCE,FUSION,Employees Expenses,100681523,6.58,United Kingdom Atomic Energy Authority,United Kingdom Atomic Energy Authority
23/03/2013,SUBSISTENCE,FUSION,Employees Expenses,100681528,5.00,United Kingdom Atomic Energy Authority,United Kingdom Atomic Energy Authority
23/03/2013,SUBSISTENCE,FUSION,Employees Expenses,100681528,28.46,United Kingdom Atomic Energy Authority,United Kingdom Atomic Energy Authority
23/03/2013,SUBSISTENCE,FUSION,Employees Expenses,100681531,135.63,United Kingdom Atomic Energy Authority,United Kingdom Atomic Energy Authority
23/03/2013,SUBSISTENCE,FUSION,Employees Expenses,100681531,11.28,United Kingdom Atomic Energy Authority,United Kingdom Atomic Energy Authority
23/03/2013,SUBSISTENCE,FUSION,Employees Expenses,100681529,537.90,United Kingdom Atomic Energy Authority,United Kingdom Atomic Energy Authority
23/03/2013,SUBSISTENCE,FUSION,Employees Expenses,100681534,20.00,United Kingdom Atomic Energy Authority,United Kingdom Atomic Energy Authority
23/03/2013,SUBSISTENCE,FUSION,Employees Expenses,100681523,"2,242.72",United Kingdom Atomic Energy Authority,United Kingdom Atomic Energy Authority
23/03/2013,SUBSISTENCE,FUSION,Employees Expenses,100681526,354.73,United Kingdom Atomic Energy Authority,United Kingdom Atomic Energy Authority
23/03/2013,SUBSISTENCE,SUPPORT SERVICES,Employees Expenses,100681522,2.66,United Kingdom Atomic Energy Authority,United Kingdom Atomic Energy Authority
23/03/2013,SUBSISTENCE,SUPPORT SERVICES,Employees Expenses,100681546,174.38,United Kingdom Atomic Energy Authority,United Kingdom Atomic Energy Authority
23/03/2013,TAXIS,FUSION,Employees Expenses,100681523,20.50,United Kingdom Atomic Energy Authority,United Kingdom Atomic Energy Authority
23/03/2013,TAXIS,FUSION,Employees Expenses,100681531,63.05,United Kingdom Atomic Energy Authority,United Kingdom Atomic Energy Authority
23/03/2013,TAXIS,FUSION,Employees Expenses,100681529,40.82,United Kingdom Atomic Energy Authority,United Kingdom Atomic Energy Authority
23/03/2013,TAXIS,FUSION,Employees Expenses,100681523,15.24,United Kingdom Atomic Energy Authority,United Kingdom Atomic Energy Authority
23/03/2013,TAXIS,FUSION,Employees Expenses,100681539,16.20,United Kingdom Atomic Energy Authority,United Kingdom Atomic Energy Authority
23/03/2013,TAXIS,SUPPORT SERVICES,Employees Expenses,100681540,28.00,United Kingdom Atomic Energy Authority,United Kingdom Atomic Energy Authority
23/03/2013,TAXIS,SUPPORT SERVICES,Employees Expenses,100681546,31.13,United Kingdom Atomic Energy Authority,United Kingdom Atomic Energy Authority
23/03/2013,TAXIS,SUPPORT SERVICES,Employees Expenses,100681547,18.00,United Kingdom Atomic Energy Authority,United Kingdom Atomic Energy Authority
28/03/2013,BUSINESS ENTERTAINMENT,FUSION,Employees Expenses,100681605,37.00,United Kingdom Atomic Energy Authority,United Kingdom Atomic Energy Authority
28/03/2013,BUSINESS ENTERTAINMENT,FUSION,Employees Expenses,100681610,27.10,United Kingdom Atomic Energy Authority,United Kingdom Atomic Energy Authority
28/03/2013,BUSINESS ENTERTAINMENT,FUSION,Employees Expenses,100681614,211.03,United Kingdom Atomic Energy Authority,United Kingdom Atomic Energy Authority
28/03/2013,DELIVERY & CARRIAGE,SUPPORT SERVICES,Employees Expenses,100681637,42.15,United Kingdom Atomic Energy Authority,United Kingdom Atomic Energy Authority
28/03/2013,MILEAGE ALLOWANCE,FUSION,Employees Expenses,100681615,56.70,United Kingdom Atomic Energy Authority,United Kingdom Atomic Energy Authority
28/03/2013,MILEAGE ALLOWANCE,FUSION,Employees Expenses,100681642,74.88,United Kingdom Atomic Energy Authority,United Kingdom Atomic Energy Authority
28/03/2013,MILEAGE ALLOWANCE,FUSION,Employees Expenses,100681629,14.40,United Kingdom Atomic Energy Authority,United Kingdom Atomic Energy Authority
28/03/2013,MILEAGE ALLOWANCE,FUSION,Employees Expenses,100681606,71.10,United Kingdom Atomic Energy Authority,United Kingdom Atomic Energy Authority
28/03/2013,MILEAGE ALLOWANCE,FUSION,Employees Expenses,100681619,155.04,United Kingdom Atomic Energy Authority,United Kingdom Atomic Energy Authority
28/03/2013,MILEAGE ALLOWANCE,FUSION,Employees Expenses,100681613,56.25,United Kingdom Atomic Energy Authority,United Kingdom Atomic Energy Authority
28/03/2013,MILEAGE ALLOWANCE,FUSION,Employees Expenses,100681639,87.45,United Kingdom Atomic Energy Authority,United Kingdom Atomic Energy Authority
28/03/2013,MILEAGE ALLOWANCE,FUSION,Employees Expenses,100681610,91.20,United Kingdom Atomic Energy Authority,United Kingdom Atomic Energy Authority
28/03/2013,MILEAGE ALLOWANCE,SUPPORT SERVICES,Employees Expenses,100681608,2.70,United Kingdom Atomic Energy Authority,United Kingdom Atomic Energy Authority
28/03/2013,MILEAGE ALLOWANCE,SUPPORT SERVICES,Employees Expenses,100681609,2.70,United Kingdom Atomic Energy Authority,United Kingdom Atomic Energy Authority
28/03/2013,MILEAGE ALLOWANCE,SUPPORT SERVICES,Employees Expenses,100681609,2.70,United Kingdom Atomic Energy Authority,United Kingdom Atomic Energy Authority
28/03/2013,MILEAGE ALLOWANCE,SUPPORT SERVICES,Employees Expenses,100681638,101.25,United Kingdom Atomic Energy Authority,United Kingdom Atomic Energy Authority
28/03/2013,MILEAGE ALLOWANCE,SUPPORT SERVICES,Employees Expenses,100681607,18.00,United Kingdom Atomic Energy Authority,United Kingdom Atomic Energy Authority
28/03/2013,OTHER EMPLOYEE EXPENSES,FUSION,Employees Expenses,100681613,13.58,United Kingdom Atomic Energy Authority,United Kingdom Atomic Energy Authority
28/03/2013,OTHER EMPLOYEE EXPENSES,FUSION,Employees Expenses,100681639,5.16,United Kingdom Atomic Energy Authority,United Kingdom Atomic Energy Authority
28/03/2013,OTHER EMPLOYEE EXPENSES,FUSION,Employees Expenses,100681640,2.57,United Kingdom Atomic Energy Authority,United Kingdom Atomic Energy Authority
28/03/2013,OTHER EMPLOYEE EXPENSES,FUSION,Employees Expenses,100681630,9.23,United Kingdom Atomic Energy Authority,United Kingdom Atomic Energy Authority
28/03/2013,PROFESSIONAL SUBSCRIPTION,SUPPORT SERVICES,Employees Expenses,100681617,137.00,United Kingdom Atomic Energy Authority,United Kingdom Atomic Energy Authority
28/03/2013,RAIL TRAVEL,FUSION,Employees Expenses,100681625,1.73,United Kingdom Atomic Energy Authority,United Kingdom Atomic Energy Authority
28/03/2013,RAIL TRAVEL,FUSION,Employees Expenses,100681636,27.70,United Kingdom Atomic Energy Authority,United Kingdom Atomic Energy Authority
28/03/2013,RAIL TRAVEL,FUSION,Employees Expenses,100681618,3.50,United Kingdom Atomic Energy Authority,United Kingdom Atomic Energy Authority
28/03/2013,RAIL TRAVEL,FUSION,Employees Expenses,100681641,12.50,United Kingdom Atomic Energy Authority,United Kingdom Atomic Energy Authority
28/03/2013,RAIL TRAVEL,FUSION,Employees Expenses,100681611,92.20,United Kingdom Atomic Energy Authority,United Kingdom Atomic Energy Authority
28/03/2013,RAIL TRAVEL,FUSION,Employees Expenses,100681616,36.28,United Kingdom Atomic Energy Authority,United Kingdom Atomic Energy Authority
28/03/2013,RAIL TRAVEL,FUSION,Employees Expenses,100681626,43.92,United Kingdom Atomic Energy Authority,United Kingdom Atomic Energy Authority
28/03/2013,RAIL TRAVEL,FUSION,Employees Expenses,100681630,38.10,United Kingdom Atomic Energy Authority,United Kingdom Atomic Energy Authority
28/03/2013,ROAD TRAVEL,FUSION,Employees Expenses,100681625,5.10,United Kingdom Atomic Energy Authority,United Kingdom Atomic Energy Authority
28/03/2013,ROAD TRAVEL,FUSION,Employees Expenses,100681632,58.31,United Kingdom Atomic Energy Authority,United Kingdom Atomic Energy Authority
28/03/2013,ROAD TRAVEL,FUSION,Employees Expenses,100681621,9.00,United Kingdom Atomic Energy Authority,United Kingdom Atomic Energy Authority
28/03/2013,ROAD TRAVEL,FUSION,Employees Expenses,100681629,5.00,United Kingdom Atomic Energy Authority,United Kingdom Atomic Energy Authority
28/03/2013,ROAD TRAVEL,FUSION,Employees Expenses,100681634,2.00,United Kingdom Atomic Energy Authority,United Kingdom Atomic Energy Authority
28/03/2013,ROAD TRAVEL,FUSION,Employees Expenses,100681635,16.00,United Kingdom Atomic Energy Authority,United Kingdom Atomic Energy Authority
28/03/2013,ROAD TRAVEL,FUSION,Employees Expenses,100681641,21.50,United Kingdom Atomic Energy Authority,United Kingdom Atomic Energy Authority
28/03/2013,ROAD TRAVEL,FUSION,Employees Expenses,100681606,6.00,United Kingdom Atomic Energy Authority,United Kingdom Atomic Energy Authority
28/03/2013,ROAD TRAVEL,FUSION,Employees Expenses,100681613,90.80,United Kingdom Atomic Energy Authority,United Kingdom Atomic Energy Authority
28/03/2013,ROAD TRAVEL,FUSION,Employees Expenses,100681622,35.00,United Kingdom Atomic Energy Authority,United Kingdom Atomic Energy Authority
28/03/2013,ROAD TRAVEL,FUSION,Employees Expenses,100681622,13.04,United Kingdom Atomic Energy Authority,United Kingdom Atomic Energy Authority
28/03/2013,ROAD TRAVEL,FUSION,Employees Expenses,100681639,40.15,United Kingdom Atomic Energy Authority,United Kingdom Atomic Energy Authority
28/03/2013,ROAD TRAVEL,FUSION,Employees Expenses,100681610,10.00,United Kingdom Atomic Energy Authority,United Kingdom Atomic Energy Authority
28/03/2013,ROAD TRAVEL,FUSION,Employees Expenses,100681640,29.00,United Kingdom Atomic Energy Authority,United Kingdom Atomic Energy Authority
28/03/2013,ROAD TRAVEL,FUSION,Employees Expenses,100681640,18.28,United Kingdom Atomic Energy Authority,United Kingdom Atomic Energy Authority
28/03/2013,ROAD TRAVEL,FUSION,Employees Expenses,100681620,29.00,United Kingdom Atomic Energy Authority,United Kingdom Atomic Energy Authority
28/03/2013,ROAD TRAVEL,FUSION,Employees Expenses,100681620,16.36,United Kingdom Atomic Energy Authority,United Kingdom Atomic Energy Authority
28/03/2013,ROAD TRAVEL,FUSION,Employees Expenses,100681626,32.00,United Kingdom Atomic Energy Authority,United Kingdom Atomic Energy Authority
28/03/2013,ROAD TRAVEL,FUSION,Employees Expenses,100681612,0.79,United Kingdom Atomic Energy Authority,United Kingdom Atomic Energy Authority
28/03/2013,ROAD TRAVEL,FUSION,Employees Expenses,100681633,6.71,United Kingdom Atomic Energy Authority,United Kingdom Atomic Energy Authority
28/03/2013,ROAD TRAVEL,SUPPORT SERVICES,Employees Expenses,100681608,2.80,United Kingdom Atomic Energy Authority,United Kingdom Atomic Energy Authority
28/03/2013,ROAD TRAVEL,SUPPORT SERVICES,Employees Expenses,100681608,30.30,United Kingdom Atomic Energy Authority,United Kingdom Atomic Energy Authority
28/03/2013,ROAD TRAVEL,SUPPORT SERVICES,Employees Expenses,100681609,2.71,United Kingdom Atomic Energy Authority,United Kingdom Atomic Energy Authority
28/03/2013,ROAD TRAVEL,SUPPORT SERVICES,Employees Expenses,100681609,2.71,United Kingdom Atomic Energy Authority,United Kingdom Atomic Energy Authority
28/03/2013,ROAD TRAVEL,SUPPORT SERVICES,Employees Expenses,100681607,5.42,United Kingdom Atomic Energy Authority,United Kingdom Atomic Energy Authority
28/03/2013,SUBSISTENCE,FUSION,Employees Expenses,100681625,256.86,United Kingdom Atomic Energy Authority,United Kingdom Atomic Energy Authority
28/03/2013,SUBSISTENCE,FUSION,Employees Expenses,100681625,3.58,United Kingdom Atomic Energy Authority,United Kingdom Atomic Energy Authority
28/03/2013,SUBSISTENCE,FUSION,Employees Expenses,100681632,5.45,United Kingdom Atomic Energy Authority,United Kingdom Atomic Energy Authority
28/03/2013,SUBSISTENCE,FUSION,Employees Expenses,100681632,8.55,United Kingdom Atomic Energy Authority,United Kingdom Atomic Energy Authority
28/03/2013,SUBSISTENCE,FUSION,Employees Expenses,100681615,30.96,United Kingdom Atomic Energy Authority,United Kingdom Atomic Energy Authority
28/03/2013,SUBSISTENCE,FUSION,Employees Expenses,100681636,12.50,United Kingdom Atomic Energy Authority,United Kingdom Atomic Energy Authority
28/03/2013,SUBSISTENCE,FUSION,Employees Expenses,100681618,104.88,United Kingdom Atomic Energy Authority,United Kingdom Atomic Energy Authority
28/03/2013,SUBSISTENCE,FUSION,Employees Expenses,100681618,4.58,United Kingdom Atomic Energy Authority,United Kingdom Atomic Energy Authority
28/03/2013,SUBSISTENCE,FUSION,Employees Expenses,100681629,4.16,United Kingdom Atomic Energy Authority,United Kingdom Atomic Energy Authority
28/03/2013,SUBSISTENCE,FUSION,Employees Expenses,100681634,5.00,United Kingdom Atomic Energy Authority,United Kingdom Atomic Energy Authority
28/03/2013,SUBSISTENCE,FUSION,Employees Expenses,100681634,7.74,United Kingdom Atomic Energy Authority,United Kingdom Atomic Energy Authority
28/03/2013,SUBSISTENCE,FUSION,Employees Expenses,100681641,45.50,United Kingdom Atomic Energy Authority,United Kingdom Atomic Energy Authority
28/03/2013,SUBSISTENCE,FUSION,Employees Expenses,100681641,9.20,United Kingdom Atomic Energy Authority,United Kingdom Atomic Energy Authority
28/03/2013,SUBSISTENCE,FUSION,Employees Expenses,100681606,10.00,United Kingdom Atomic Energy Authority,United Kingdom Atomic Energy Authority
28/03/2013,SUBSISTENCE,FUSION,Employees Expenses,100681606,59.58,United Kingdom Atomic Energy Authority,United Kingdom Atomic Energy Authority
28/03/2013,SUBSISTENCE,FUSION,Employees Expenses,100681613,587.13,United Kingdom Atomic Energy Authority,United Kingdom Atomic Energy Authority
28/03/2013,SUBSISTENCE,FUSION,Employees Expenses,100681613,3.75,United Kingdom Atomic Energy Authority,United Kingdom Atomic Energy Authority
28/03/2013,SUBSISTENCE,FUSION,Employees Expenses,100681611,5.00,United Kingdom Atomic Energy Authority,United Kingdom Atomic Energy Authority
28/03/2013,SUBSISTENCE,FUSION,Employees Expenses,100681611,74.86,United Kingdom Atomic Energy Authority,United Kingdom Atomic Energy Authority
28/03/2013,SUBSISTENCE,FUSION,Employees Expenses,100681616,453.04,United Kingdom Atomic Energy Authority,United Kingdom Atomic Energy Authority
28/03/2013,SUBSISTENCE,FUSION,Employees Expenses,100681616,3.16,United Kingdom Atomic Energy Authority,United Kingdom Atomic Energy Authority
28/03/2013,SUBSISTENCE,FUSION,Employees Expenses,100681622,201.29,United Kingdom Atomic Energy Authority,United Kingdom Atomic Energy Authority
28/03/2013,SUBSISTENCE,FUSION,Employees Expenses,100681626,"1,395.08",United Kingdom Atomic Energy Authority,United Kingdom Atomic Energy Authority
28/03/2013,SUBSISTENCE,FUSION,Employees Expenses,100681639,235.44,United Kingdom Atomic Energy Authority,United Kingdom Atomic Energy Authority
28/03/2013,SUBSISTENCE,FUSION,Employees Expenses,100681631,10.00,United Kingdom Atomic Energy Authority,United Kingdom Atomic Energy Authority
28/03/2013,SUBSISTENCE,FUSION,Employees Expenses,100681640,241.53,United Kingdom Atomic Energy Authority,United Kingdom Atomic Energy Authority
28/03/2013,SUBSISTENCE,FUSION,Employees Expenses,100681630,421.37,United Kingdom Atomic Energy Authority,United Kingdom Atomic Energy Authority
28/03/2013,SUBSISTENCE,FUSION,Employees Expenses,100681630,3.16,United Kingdom Atomic Energy Authority,United Kingdom Atomic Energy Authority
28/03/2013,SUBSISTENCE,FUSION,Employees Expenses,100681620,"1,499.65",United Kingdom Atomic Energy Authority,United Kingdom Atomic Energy Authority
28/03/2013,SUBSISTENCE,FUSION,Employees Expenses,100681620,8.04,United Kingdom Atomic Energy Authority,United Kingdom Atomic Energy Authority
28/03/2013,SUBSISTENCE,FUSION,Employees Expenses,100681626,7.54,United Kingdom Atomic Energy Authority,United Kingdom Atomic Energy Authority
28/03/2013,SUBSISTENCE,FUSION,Employees Expenses,100681612,264.33,United Kingdom Atomic Energy Authority,United Kingdom Atomic Energy Authority
28/03/2013,SUBSISTENCE,FUSION,Employees Expenses,100681633,416.71,United Kingdom Atomic Energy Authority,United Kingdom Atomic Energy Authority
28/03/2013,SUBSISTENCE,SUPPORT SERVICES,Employees Expenses,100681608,38.60,United Kingdom Atomic Energy Authority,United Kingdom Atomic Energy Authority
28/03/2013,SUBSISTENCE,SUPPORT SERVICES,Employees Expenses,100681608,213.32,United Kingdom Atomic Energy Authority,United Kingdom Atomic Energy Authority
28/03/2013,SUBSISTENCE,SUPPORT SERVICES,Employees Expenses,100681609,0.87,United Kingdom Atomic Energy Authority,United Kingdom Atomic Energy Authority
28/03/2013,SUBSISTENCE,SUPPORT SERVICES,Employees Expenses,100681609,0.87,United Kingdom Atomic Energy Authority,United Kingdom Atomic Energy Authority
28/03/2013,SUBSISTENCE,SUPPORT SERVICES,Employees Expenses,100681638,158.98,United Kingdom Atomic Energy Authority,United Kingdom Atomic Energy Authority
28/03/2013,TAXIS,FUSION,Employees Expenses,100681625,25.46,United Kingdom Atomic Energy Authority,United Kingdom Atomic Energy Authority
28/03/2013,TAXIS,FUSION,Employees Expenses,100681613,6.37,United Kingdom Atomic Energy Authority,United Kingdom Atomic Energy Authority
28/03/2013,TAXIS,FUSION,Employees Expenses,100681611,10.00,United Kingdom Atomic Energy Authority,United Kingdom Atomic Energy Authority
28/03/2013,TAXIS,FUSION,Employees Expenses,100681631,52.16,United Kingdom Atomic Energy Authority,United Kingdom Atomic Energy Authority
28/03/2013,TAXIS,FUSION,Employees Expenses,100681620,113.94,United Kingdom Atomic Energy Authority,United Kingdom Atomic Energy Authority
28/03/2013,TAXIS,FUSION,Employees Expenses,100681626,25.00,United Kingdom Atomic Energy Authority,United Kingdom Atomic Energy Authority
25/02/2013,MATERIALS & SPARES,FUSION,ENSINGER LTD,5100285585,"2,919.00",United Kingdom Atomic Energy Authority,United Kingdom Atomic Energy Authority
27/02/2013,MATERIALS & SPARES,FUSION,Ensinger Precision Engineering Ltd,5100285826,"9,086.65",United Kingdom Atomic Energy Authority,United Kingdom Atomic Energy Authority
26/03/2013,CONFERENCES/MEETINGS,FUSION,EPS 2013,1900057828,582.58,United Kingdom Atomic Energy Authority,United Kingdom Atomic Energy Authority
04/03/2013,PROFESSIONAL SERVICES,SUPPORT SERVICES,ESR TECHNOLOGY LTD,5100286055,"3,680.00",United Kingdom Atomic Energy Authority,United Kingdom Atomic Energy Authority
25/02/2013,PROFESSIONAL SERVICES,FUSION,EUROPEAN ELECTRONIQUE,5100285614,"5,127.63",United Kingdom Atomic Energy Authority,United Kingdom Atomic Energy Authority
25/02/2013,PROFESSIONAL SERVICES,FUSION,EUROPEAN ELECTRONIQUE,5100285774,167.30,United Kingdom Atomic Energy Authority,United Kingdom Atomic Energy Authority
01/03/2013,OTHER STAFF COSTS,FUSION,European Physical Society,1900057772,"2,599.88",United Kingdom Atomic Energy Authority,United Kingdom Atomic Energy Authority
25/02/2013,CONSUMABLES,FUSION,EUROTHERM LTD,5100285656,199.50,United Kingdom Atomic Energy Authority,United Kingdom Atomic Energy Authority
25/02/2013,MATERIALS & SPARES,FUSION,FARNELL ELECTRONIC,5100285576,11.99,United Kingdom Atomic Energy Authority,United Kingdom Atomic Energy Authority
25/02/2013,MATERIALS & SPARES,FUSION,FARNELL ELECTRONIC,5100285690,33.57,United Kingdom Atomic Energy Authority,United Kingdom Atomic Energy Authority
25/02/2013,MATERIALS & SPARES,FUSION,FARNELL ELECTRONIC,5100285695,309.20,United Kingdom Atomic Energy Authority,United Kingdom Atomic Energy Authority
25/02/2013,MATERIALS & SPARES,FUSION,FARNELL ELECTRONIC,5100285568,124.08,United Kingdom Atomic Energy Authority,United Kingdom Atomic Energy Authority
25/02/2013,MATERIALS & SPARES,FUSION,FARNELL ELECTRONIC,5100285693,28.69,United Kingdom Atomic Energy Authority,United Kingdom Atomic Energy Authority
25/02/2013,MATERIALS & SPARES,FUSION,FARNELL ELECTRONIC,5100285765,-152.36,United Kingdom Atomic Energy Authority,United Kingdom Atomic Energy Authority
25/02/2013,MATERIALS & SPARES,FUSION,FARNELL ELECTRONIC,5100285768,2.87,United Kingdom Atomic Energy Authority,United Kingdom Atomic Energy Authority
25/02/2013,MATERIALS & SPARES,FUSION,FARNELL ELECTRONIC,5100285771,4.45,United Kingdom Atomic Energy Authority,United Kingdom Atomic Energy Authority
25/02/2013,MATERIALS & SPARES,FUSION,FARNELL ELECTRONIC,5100285773,290.65,United Kingdom Atomic Energy Authority,United Kingdom Atomic Energy Authority
25/02/2013,MATERIALS & SPARES,FUSION,FARNELL ELECTRONIC,5100285571,66.04,United Kingdom Atomic Energy Authority,United Kingdom Atomic Energy Authority
25/02/2013,MATERIALS & SPARES,FUSION,FARNELL ELECTRONIC,5100285572,59.05,United Kingdom Atomic Energy Authority,United Kingdom Atomic Energy Authority
25/02/2013,MATERIALS & SPARES,FUSION,FARNELL ELECTRONIC,5100285573,12.44,United Kingdom Atomic Energy Authority,United Kingdom Atomic Energy Authority
25/02/2013,MATERIALS & SPARES,FUSION,FARNELL ELECTRONIC,5100285574,18.09,United Kingdom Atomic Energy Authority,United Kingdom Atomic Energy Authority
25/02/2013,MATERIALS & SPARES,FUSION,FARNELL ELECTRONIC,5100285575,33.08,United Kingdom Atomic Energy Authority,United Kingdom Atomic Energy Authority
25/02/2013,MATERIALS & SPARES,FUSION,FARNELL ELECTRONIC,5100285565,14.28,United Kingdom Atomic Energy Authority,United Kingdom Atomic Energy Authority
25/02/2013,MATERIALS & SPARES,FUSION,FARNELL ELECTRONIC,5100285692,66.02,United Kingdom Atomic Energy Authority,United Kingdom Atomic Energy Authority
25/02/2013,MATERIALS & SPARES,FUSION,FARNELL ELECTRONIC,5100285788,238.55,United Kingdom Atomic Energy Authority,United Kingdom Atomic Energy Authority
25/02/2013,MATERIALS & SPARES,FUSION,FARNELL ELECTRONIC,5100285554,102.98,United Kingdom Atomic Energy Authority,United Kingdom Atomic Energy Authority
25/02/2013,MATERIALS & SPARES,FUSION,FARNELL ELECTRONIC,5100285566,152.18,United Kingdom Atomic Energy Authority,United Kingdom Atomic Energy Authority
25/02/2013,MATERIALS & SPARES,FUSION,FARNELL ELECTRONIC,5100285569,165.66,United Kingdom Atomic Energy Authority,United Kingdom Atomic Energy Authority
25/02/2013,MATERIALS & SPARES,FUSION,FARNELL ELECTRONIC,5100285570,160.04,United Kingdom Atomic Energy Authority,United Kingdom Atomic Energy Authority
25/02/2013,MATERIALS & SPARES,FUSION,FARNELL ELECTRONIC,5100285783,15.94,United Kingdom Atomic Energy Authority,United Kingdom Atomic Energy Authority
25/02/2013,MATERIALS & SPARES,FUSION,FARNELL ELECTRONIC,5100285784,72.37,United Kingdom Atomic Energy Authority,United Kingdom Atomic Energy Authority
25/02/2013,MATERIALS & SPARES,FUSION,FARNELL ELECTRONIC,5100285785,152.73,United Kingdom Atomic Energy Authority,United Kingdom Atomic Energy Authority
25/02/2013,MATERIALS & SPARES,FUSION,FARNELL ELECTRONIC,5100285562,15.97,United Kingdom Atomic Energy Authority,United Kingdom Atomic Energy Authority
25/02/2013,MATERIALS & SPARES,FUSION,FARNELL ELECTRONIC,5100285563,26.01,United Kingdom Atomic Energy Authority,United Kingdom Atomic Energy Authority
25/02/2013,MATERIALS & SPARES,FUSION,FARNELL ELECTRONIC,5100285564,26.01,United Kingdom Atomic Energy Authority,United Kingdom Atomic Energy Authority
25/02/2013,MATERIALS & SPARES,FUSION,FARNELL ELECTRONIC,5100285691,80.80,United Kingdom Atomic Energy Authority,United Kingdom Atomic Energy Authority
25/02/2013,MATERIALS & SPARES,FUSION,FARNELL ELECTRONIC,5100285567,127.14,United Kingdom Atomic Energy Authority,United Kingdom Atomic Energy Authority
25/02/2013,MATERIALS & SPARES,FUSION,FARNELL ELECTRONIC,5100285689,116.22,United Kingdom Atomic Energy Authority,United Kingdom Atomic Energy Authority
25/02/2013,MATERIALS & SPARES,FUSION,FARNELL ELECTRONIC,5100285782,172.03,United Kingdom Atomic Energy Authority,United Kingdom Atomic Energy Authority
25/02/2013,MATERIALS & SPARES,FUSION,FARNELL ELECTRONIC,5100285555,38.62,United Kingdom Atomic Energy Authority,United Kingdom Atomic Energy Authority
25/02/2013,MATERIALS & SPARES,FUSION,FARNELL ELECTRONIC,5100285557,4.90,United Kingdom Atomic Energy Authority,United Kingdom Atomic Energy Authority
25/02/2013,MATERIALS & SPARES,FUSION,FARNELL ELECTRONIC,5100285558,7.13,United Kingdom Atomic Energy Authority,United Kingdom Atomic Energy Authority
25/02/2013,MATERIALS & SPARES,FUSION,FARNELL ELECTRONIC,5100285559,10.00,United Kingdom Atomic Energy Authority,United Kingdom Atomic Energy Authority
25/02/2013,MATERIALS & SPARES,FUSION,FARNELL ELECTRONIC,5100285794,103.09,United Kingdom Atomic Energy Authority,United Kingdom Atomic Energy Authority
25/02/2013,MATERIALS & SPARES,FUSION,FARNELL ELECTRONIC,5100285326,8.59,United Kingdom Atomic Energy Authority,United Kingdom Atomic Energy Authority
25/02/2013,MATERIALS & SPARES,FUSION,FARNELL ELECTRONIC,5100285553,182.19,United Kingdom Atomic Energy Authority,United Kingdom Atomic Energy Authority
25/02/2013,MATERIALS & SPARES,FUSION,FARNELL ELECTRONIC,5100285560,32.96,United Kingdom Atomic Energy Authority,United Kingdom Atomic Energy Authority
25/02/2013,MATERIALS & SPARES,FUSION,FARNELL ELECTRONIC,5100285561,224.95,United Kingdom Atomic Energy Authority,United Kingdom Atomic Energy Authority
25/02/2013,MATERIALS & SPARES,FUSION,FARNELL ELECTRONIC,5100285790,59.41,United Kingdom Atomic Energy Authority,United Kingdom Atomic Energy Authority
25/02/2013,MATERIALS & SPARES,FUSION,FARNELL ELECTRONIC,5100285775,230.45,United Kingdom Atomic Energy Authority,United Kingdom Atomic Energy Authority
27/02/2013,MATERIALS & SPARES,FUSION,FARNELL ELECTRONIC,5100285694,311.19,United Kingdom Atomic Energy Authority,United Kingdom Atomic Energy Authority
27/02/2013,MATERIALS & SPARES,FUSION,FARNELL ELECTRONIC,5100285792,14.86,United Kingdom Atomic Energy Authority,United Kingdom Atomic Energy Authority
04/03/2013,MATERIALS & SPARES,FUSION,FARNELL ELECTRONIC,5100286009,498.60,United Kingdom Atomic Energy Authority,United Kingdom Atomic Energy Authority
04/03/2013,MATERIALS & SPARES,FUSION,FARNELL ELECTRONIC,5100286010,275.52,United Kingdom Atomic Energy Authority,United Kingdom Atomic Energy Authority
04/03/2013,MATERIALS & SPARES,FUSION,FARNELL ELECTRONIC,5100286116,17.03,United Kingdom Atomic Energy Authority,United Kingdom Atomic Energy Authority
04/03/2013,MATERIALS & SPARES,FUSION,FARNELL ELECTRONIC,5100286117,12.30,United Kingdom Atomic Energy Authority,United Kingdom Atomic Energy Authority
04/03/2013,MATERIALS & SPARES,FUSION,FARNELL ELECTRONIC,5100286130,76.63,United Kingdom Atomic Energy Authority,United Kingdom Atomic Energy Authority
04/03/2013,MATERIALS & SPARES,FUSION,FARNELL ELECTRONIC,5100286131,604.97,United Kingdom Atomic Energy Authority,United Kingdom Atomic Energy Authority
04/03/2013,MATERIALS & SPARES,FUSION,FARNELL ELECTRONIC,5100286001,2.46,United Kingdom Atomic Energy Authority,United Kingdom Atomic Energy Authority
04/03/2013,MATERIALS & SPARES,FUSION,FARNELL ELECTRONIC,5100286120,296.52,United Kingdom Atomic Energy Authority,United Kingdom Atomic Energy Authority
04/03/2013,MATERIALS & SPARES,FUSION,FARNELL ELECTRONIC,5100285999,20.50,United Kingdom Atomic Energy Authority,United Kingdom Atomic Energy Authority
04/03/2013,MATERIALS & SPARES,FUSION,FARNELL ELECTRONIC,5100286000,136.65,United Kingdom Atomic Energy Authority,United Kingdom Atomic Energy Authority
04/03/2013,MATERIALS & SPARES,FUSION,FARNELL ELECTRONIC,5100286007,691.72,United Kingdom Atomic Energy Authority,United Kingdom Atomic Energy Authority
04/03/2013,MATERIALS & SPARES,FUSION,FARNELL ELECTRONIC,5100285995,87.96,United Kingdom Atomic Energy Authority,United Kingdom Atomic Energy Authority
04/03/2013,MATERIALS & SPARES,FUSION,FARNELL ELECTRONIC,5100286005,199.44,United Kingdom Atomic Energy Authority,United Kingdom Atomic Energy Authority
04/03/2013,MATERIALS & SPARES,FUSION,FARNELL ELECTRONIC,5100286006,181.40,United Kingdom Atomic Energy Authority,United Kingdom Atomic Energy Authority
04/03/2013,MATERIALS & SPARES,FUSION,FARNELL ELECTRONIC,5100286114,24.30,United Kingdom Atomic Energy Authority,United Kingdom Atomic Energy Authority
04/03/2013,MATERIALS & SPARES,FUSION,FARNELL ELECTRONIC,5100286124,99.88,United Kingdom Atomic Energy Authority,United Kingdom Atomic Energy Authority
04/03/2013,MATERIALS & SPARES,FUSION,FARNELL ELECTRONIC,5100286126,68.68,United Kingdom Atomic Energy Authority,United Kingdom Atomic Energy Authority
04/03/2013,MATERIALS & SPARES,FUSION,FARNELL ELECTRONIC,5100285998,236.02,United Kingdom Atomic Energy Authority,United Kingdom Atomic Energy Authority
04/03/2013,MATERIALS & SPARES,FUSION,FARNELL ELECTRONIC,5100286127,53.92,United Kingdom Atomic Energy Authority,United Kingdom Atomic Energy Authority
04/03/2013,MATERIALS & SPARES,FUSION,FARNELL ELECTRONIC,5100286008,39.23,United Kingdom Atomic Energy Authority,United Kingdom Atomic Energy Authority
04/03/2013,MATERIALS & SPARES,FUSION,FARNELL ELECTRONIC,5100286129,80.26,United Kingdom Atomic Energy Authority,United Kingdom Atomic Energy Authority
04/03/2013,MATERIALS & SPARES,FUSION,FARNELL ELECTRONIC,5100285779,573.18,United Kingdom Atomic Energy Authority,United Kingdom Atomic Energy Authority
04/03/2013,MATERIALS & SPARES,FUSION,FARNELL ELECTRONIC,5100286003,44.35,United Kingdom Atomic Energy Authority,United Kingdom Atomic Energy Authority
04/03/2013,MATERIALS & SPARES,FUSION,FARNELL ELECTRONIC,5100286004,112.90,United Kingdom Atomic Energy Authority,United Kingdom Atomic Energy Authority
04/03/2013,MATERIALS & SPARES,FUSION,FARNELL ELECTRONIC,5100286122,180.07,United Kingdom Atomic Energy Authority,United Kingdom Atomic Energy Authority
04/03/2013,MATERIALS & SPARES,FUSION,FARNELL ELECTRONIC,5100286112,14.00,United Kingdom Atomic Energy Authority,United Kingdom Atomic Energy Authority
04/03/2013,MATERIALS & SPARES,FUSION,FARNELL ELECTRONIC,5100285996,260.18,United Kingdom Atomic Energy Authority,United Kingdom Atomic Energy Authority
04/03/2013,MATERIALS & SPARES,FUSION,FARNELL ELECTRONIC,5100286128,21.41,United Kingdom Atomic Energy Authority,United Kingdom Atomic Energy Authority
04/03/2013,MATERIALS & SPARES,FUSION,FARNELL ELECTRONIC,5100285993,174.12,United Kingdom Atomic Energy Authority,United Kingdom Atomic Energy Authority
04/03/2013,MATERIALS & SPARES,FUSION,FARNELL ELECTRONIC,5100285997,32.18,United Kingdom Atomic Energy Authority,United Kingdom Atomic Energy Authority
04/03/2013,MATERIALS & SPARES,FUSION,FARNELL ELECTRONIC,5100286115,228.59,United Kingdom Atomic Energy Authority,United Kingdom Atomic Energy Authority
04/03/2013,MATERIALS & SPARES,FUSION,FARNELL ELECTRONIC,5100285994,132.25,United Kingdom Atomic Energy Authority,United Kingdom Atomic Energy Authority
04/03/2013,MATERIALS & SPARES,FUSION,FARNELL ELECTRONIC,5100286002,102.71,United Kingdom Atomic Energy Authority,United Kingdom Atomic Energy Authority
04/03/2013,MATERIALS & SPARES,FUSION,FARNELL ELECTRONIC,5100286119,96.73,United Kingdom Atomic Energy Authority,United Kingdom Atomic Energy Authority
04/03/2013,MATERIALS & SPARES,FUSION,FARNELL ELECTRONIC,5100285992,408.79,United Kingdom Atomic Energy Authority,United Kingdom Atomic Energy Authority
04/03/2013,MATERIALS & SPARES,FUSION,FARNELL ELECTRONIC,5100286118,26.70,United Kingdom Atomic Energy Authority,United Kingdom Atomic Energy Authority
06/03/2013,MATERIALS & SPARES,FUSION,FARNELL ELECTRONIC,5100286113,71.69,United Kingdom Atomic Energy Authority,United Kingdom Atomic Energy Authority
06/03/2013,MATERIALS & SPARES,FUSION,FARNELL ELECTRONIC,5100286125,74.35,United Kingdom Atomic Energy Authority,United Kingdom Atomic Energy Authority
06/03/2013,MATERIALS & SPARES,FUSION,FARNELL ELECTRONIC,5100286121,124.97,United Kingdom Atomic Energy Authority,United Kingdom Atomic Energy Authority
06/03/2013,MATERIALS & SPARES,FUSION,FARNELL ELECTRONIC,5100286111,48.07,United Kingdom Atomic Energy Authority,United Kingdom Atomic Energy Authority
11/03/2013,MATERIALS & SPARES,FUSION,FARNELL ELECTRONIC,5100286511,244.88,United Kingdom Atomic Energy Authority,United Kingdom Atomic Energy Authority
11/03/2013,MATERIALS & SPARES,FUSION,FARNELL ELECTRONIC,5100286517,15.96,United Kingdom Atomic Energy Authority,United Kingdom Atomic Energy Authority
11/03/2013,MATERIALS & SPARES,FUSION,FARNELL ELECTRONIC,5100286509,15.89,United Kingdom Atomic Energy Authority,United Kingdom Atomic Energy Authority
11/03/2013,MATERIALS & SPARES,FUSION,FARNELL ELECTRONIC,5100286337,31.95,United Kingdom Atomic Energy Authority,United Kingdom Atomic Energy Authority
11/03/2013,MATERIALS & SPARES,FUSION,FARNELL ELECTRONIC,5100286505,102.52,United Kingdom Atomic Energy Authority,United Kingdom Atomic Energy Authority
11/03/2013,MATERIALS & SPARES,FUSION,FARNELL ELECTRONIC,5100286325,106.24,United Kingdom Atomic Energy Authority,United Kingdom Atomic Energy Authority
11/03/2013,MATERIALS & SPARES,FUSION,FARNELL ELECTRONIC,5100286338,133.24,United Kingdom Atomic Energy Authority,United Kingdom Atomic Energy Authority
11/03/2013,MATERIALS & SPARES,FUSION,FARNELL ELECTRONIC,5100286339,478.32,United Kingdom Atomic Energy Authority,United Kingdom Atomic Energy Authority
11/03/2013,MATERIALS & SPARES,FUSION,FARNELL ELECTRONIC,5100286331,233.49,United Kingdom Atomic Energy Authority,United Kingdom Atomic Energy Authority
11/03/2013,MATERIALS & SPARES,FUSION,FARNELL ELECTRONIC,5100286334,80.29,United Kingdom Atomic Energy Authority,United Kingdom Atomic Energy Authority
11/03/2013,MATERIALS & SPARES,FUSION,FARNELL ELECTRONIC,5100286335,110.44,United Kingdom Atomic Energy Authority,United Kingdom Atomic Energy Authority
11/03/2013,MATERIALS & SPARES,FUSION,FARNELL ELECTRONIC,5100286340,28.14,United Kingdom Atomic Energy Authority,United Kingdom Atomic Energy Authority
11/03/2013,MATERIALS & SPARES,FUSION,FARNELL ELECTRONIC,5100286341,239.85,United Kingdom Atomic Energy Authority,United Kingdom Atomic Energy Authority
11/03/2013,MATERIALS & SPARES,FUSION,FARNELL ELECTRONIC,5100286324,21.26,United Kingdom Atomic Energy Authority,United Kingdom Atomic Energy Authority
11/03/2013,MATERIALS & SPARES,FUSION,FARNELL ELECTRONIC,5100286336,40.83,United Kingdom Atomic Energy Authority,United Kingdom Atomic Energy Authority
11/03/2013,MATERIALS & SPARES,FUSION,FARNELL ELECTRONIC,5100286513,819.26,United Kingdom Atomic Energy Authority,United Kingdom Atomic Energy Authority
11/03/2013,MATERIALS & SPARES,FUSION,FARNELL ELECTRONIC,5100286514,3.75,United Kingdom Atomic Energy Authority,United Kingdom Atomic Energy Authority
11/03/2013,MATERIALS & SPARES,FUSION,FARNELL ELECTRONIC,5100286330,100.83,United Kingdom Atomic Energy Authority,United Kingdom Atomic Energy Authority
11/03/2013,MATERIALS & SPARES,FUSION,FARNELL ELECTRONIC,5100284603,2.58,United Kingdom Atomic Energy Authority,United Kingdom Atomic Energy Authority
11/03/2013,MATERIALS & SPARES,FUSION,FARNELL ELECTRONIC,5100286326,772.32,United Kingdom Atomic Energy Authority,United Kingdom Atomic Energy Authority
11/03/2013,MATERIALS & SPARES,FUSION,FARNELL ELECTRONIC,5100286327,225.26,United Kingdom Atomic Energy Authority,United Kingdom Atomic Energy Authority
11/03/2013,MATERIALS & SPARES,FUSION,FARNELL ELECTRONIC,5100286329,288.35,United Kingdom Atomic Energy Authority,United Kingdom Atomic Energy Authority
11/03/2013,MATERIALS & SPARES,FUSION,FARNELL ELECTRONIC,5100286508,95.63,United Kingdom Atomic Energy Authority,United Kingdom Atomic Energy Authority
11/03/2013,MATERIALS & SPARES,FUSION,FARNELL ELECTRONIC,5100286515,3.75,United Kingdom Atomic Energy Authority,United Kingdom Atomic Energy Authority
13/03/2013,MATERIALS & SPARES,FUSION,FARNELL ELECTRONIC,5100286123,6.26,United Kingdom Atomic Energy Authority,United Kingdom Atomic Energy Authority
13/03/2013,MATERIALS & SPARES,FUSION,FARNELL ELECTRONIC,5100286516,79.62,United Kingdom Atomic Energy Authority,United Kingdom Atomic Energy Authority
18/03/2013,MATERIALS & SPARES,FUSION,FARNELL ELECTRONIC,5100283570,354.27,United Kingdom Atomic Energy Authority,United Kingdom Atomic Energy Authority
26/03/2013,MATERIALS & SPARES,SUPPORT SERVICES,FARNELL ELECTRONIC,5100287100,2.23,United Kingdom Atomic Energy Authority,United Kingdom Atomic Energy Authority
26/03/2013,MATERIALS & SPARES,FUSION,FARNELL ELECTRONIC,5100286906,199.21,United Kingdom Atomic Energy Authority,United Kingdom Atomic Energy Authority
26/03/2013,MATERIALS & SPARES,FUSION,FARNELL ELECTRONIC,5100286907,260.32,United Kingdom Atomic Energy Authority,United Kingdom Atomic Energy Authority
26/03/2013,MATERIALS & SPARES,FUSION,FARNELL ELECTRONIC,5100286941,474.68,United Kingdom Atomic Energy Authority,United Kingdom Atomic Energy Authority
26/03/2013,MATERIALS & SPARES,FUSION,FARNELL ELECTRONIC,5100286942,25.21,United Kingdom Atomic Energy Authority,United Kingdom Atomic Energy Authority
26/03/2013,MATERIALS & SPARES,FUSION,FARNELL ELECTRONIC,5100286943,250.28,United Kingdom Atomic Energy Authority,United Kingdom Atomic Energy Authority
26/03/2013,MATERIALS & SPARES,FUSION,FARNELL ELECTRONIC,5100287038,528.70,United Kingdom Atomic Energy Authority,United Kingdom Atomic Energy Authority
26/03/2013,MATERIALS & SPARES,FUSION,FARNELL ELECTRONIC,5100287108,200.49,United Kingdom Atomic Energy Authority,United Kingdom Atomic Energy Authority
26/03/2013,MATERIALS & SPARES,FUSION,FARNELL ELECTRONIC,5100287109,16.56,United Kingdom Atomic Energy Authority,United Kingdom Atomic Energy Authority
26/03/2013,MATERIALS & SPARES,FUSION,FARNELL ELECTRONIC,5100287119,-335.95,United Kingdom Atomic Energy Authority,United Kingdom Atomic Energy Authority
26/03/2013,MATERIALS & SPARES,FUSION,FARNELL ELECTRONIC,5100287102,56.42,United Kingdom Atomic Energy Authority,United Kingdom Atomic Energy Authority
26/03/2013,MATERIALS & SPARES,FUSION,FARNELL ELECTRONIC,5100286910,71.74,United Kingdom Atomic Energy Authority,United Kingdom Atomic Energy Authority
26/03/2013,MATERIALS & SPARES,FUSION,FARNELL ELECTRONIC,5100286911,74.20,United Kingdom Atomic Energy Authority,United Kingdom Atomic Energy Authority
26/03/2013,MATERIALS & SPARES,FUSION,FARNELL ELECTRONIC,5100286950,3.10,United Kingdom Atomic Energy Authority,United Kingdom Atomic Energy Authority
26/03/2013,MATERIALS & SPARES,FUSION,FARNELL ELECTRONIC,5100286851,292.29,United Kingdom Atomic Energy Authority,United Kingdom Atomic Energy Authority
26/03/2013,MATERIALS & SPARES,FUSION,FARNELL ELECTRONIC,5100286899,117.13,United Kingdom Atomic Energy Authority,United Kingdom Atomic Energy Authority
26/03/2013,MATERIALS & SPARES,FUSION,FARNELL ELECTRONIC,5100286918,168.88,United Kingdom Atomic Energy Authority,United Kingdom Atomic Energy Authority
26/03/2013,MATERIALS & SPARES,FUSION,FARNELL ELECTRONIC,5100286919,2.95,United Kingdom Atomic Energy Authority,United Kingdom Atomic Energy Authority
26/03/2013,MATERIALS & SPARES,FUSION,FARNELL ELECTRONIC,5100286904,139.54,United Kingdom Atomic Energy Authority,United Kingdom Atomic Energy Authority
26/03/2013,MATERIALS & SPARES,FUSION,FARNELL ELECTRONIC,5100286905,162.68,United Kingdom Atomic Energy Authority,United Kingdom Atomic Energy Authority
26/03/2013,MATERIALS & SPARES,FUSION,FARNELL ELECTRONIC,5100286900,618.52,United Kingdom Atomic Energy Authority,United Kingdom Atomic Energy Authority
26/03/2013,MATERIALS & SPARES,FUSION,FARNELL ELECTRONIC,5100286903,273.64,United Kingdom Atomic Energy Authority,United Kingdom Atomic Energy Authority
26/03/2013,MATERIALS & SPARES,FUSION,FARNELL ELECTRONIC,5100286914,420.11,United Kingdom Atomic Energy Authority,United Kingdom Atomic Energy Authority
26/03/2013,MATERIALS & SPARES,FUSION,FARNELL ELECTRONIC,5100286916,272.20,United Kingdom Atomic Energy Authority,United Kingdom Atomic Energy Authority
26/03/2013,MATERIALS & SPARES,FUSION,FARNELL ELECTRONIC,5100287104,22.32,United Kingdom Atomic Energy Authority,United Kingdom Atomic Energy Authority
26/03/2013,MATERIALS & SPARES,FUSION,FARNELL ELECTRONIC,5100286901,177.62,United Kingdom Atomic Energy Authority,United Kingdom Atomic Energy Authority
26/03/2013,MATERIALS & SPARES,FUSION,FARNELL ELECTRONIC,5100286902,12.72,United Kingdom Atomic Energy Authority,United Kingdom Atomic Energy Authority
26/03/2013,MATERIALS & SPARES,FUSION,FARNELL ELECTRONIC,5100286921,26.19,United Kingdom Atomic Energy Authority,United Kingdom Atomic Energy Authority
26/03/2013,MATERIALS & SPARES,FUSION,FARNELL ELECTRONIC,5100286938,90.38,United Kingdom Atomic Energy Authority,United Kingdom Atomic Energy Authority
26/03/2013,MATERIALS & SPARES,FUSION,FARNELL ELECTRONIC,5100286945,195.90,United Kingdom Atomic Energy Authority,United Kingdom Atomic Energy Authority
26/03/2013,MATERIALS & SPARES,FUSION,FARNELL ELECTRONIC,5100287025,-70.13,United Kingdom Atomic Energy Authority,United Kingdom Atomic Energy Authority
26/03/2013,MATERIALS & SPARES,FUSION,FARNELL ELECTRONIC,5100287029,47.50,United Kingdom Atomic Energy Authority,United Kingdom Atomic Energy Authority
26/03/2013,MATERIALS & SPARES,FUSION,FARNELL ELECTRONIC,5100287033,222.82,United Kingdom Atomic Energy Authority,United Kingdom Atomic Energy Authority
26/03/2013,MATERIALS & SPARES,FUSION,FARNELL ELECTRONIC,5100287105,106.57,United Kingdom Atomic Energy Authority,United Kingdom Atomic Energy Authority
26/03/2013,MATERIALS & SPARES,FUSION,FARNELL ELECTRONIC,5100287034,350.20,United Kingdom Atomic Energy Authority,United Kingdom Atomic Energy Authority
26/03/2013,MATERIALS & SPARES,FUSION,FARNELL ELECTRONIC,5100286939,197.50,United Kingdom Atomic Energy Authority,United Kingdom Atomic Energy Authority
26/03/2013,MATERIALS & SPARES,FUSION,FARNELL ELECTRONIC,5100287037,26.65,United Kingdom Atomic Energy Authority,United Kingdom Atomic Energy Authority
26/03/2013,MATERIALS & SPARES,FUSION,FARNELL ELECTRONIC,5100287106,7.52,United Kingdom Atomic Energy Authority,United Kingdom Atomic Energy Authority
26/03/2013,MATERIALS & SPARES,FUSION,FARNELL ELECTRONIC,5100287107,44.00,United Kingdom Atomic Energy Authority,United Kingdom Atomic Energy Authority
26/03/2013,MATERIALS & SPARES,FUSION,FARNELL ELECTRONIC,5100286831,471.90,United Kingdom Atomic Energy Authority,United Kingdom Atomic Energy Authority
26/03/2013,MATERIALS & SPARES,FUSION,FARNELL ELECTRONIC,5100286832,283.99,United Kingdom Atomic Energy Authority,United Kingdom Atomic Energy Authority
26/03/2013,MATERIALS & SPARES,FUSION,FARNELL ELECTRONIC,5100286908,124.18,United Kingdom Atomic Energy Authority,United Kingdom Atomic Energy Authority
26/03/2013,MATERIALS & SPARES,FUSION,FARNELL ELECTRONIC,5100286912,47.04,United Kingdom Atomic Energy Authority,United Kingdom Atomic Energy Authority
26/03/2013,MATERIALS & SPARES,FUSION,FARNELL ELECTRONIC,5100286944,1.80,United Kingdom Atomic Energy Authority,United Kingdom Atomic Energy Authority
26/03/2013,MATERIALS & SPARES,FUSION,FARNELL ELECTRONIC,5100287027,27.75,United Kingdom Atomic Energy Authority,United Kingdom Atomic Energy Authority
26/03/2013,MATERIALS & SPARES,FUSION,FARNELL ELECTRONIC,5100287028,272.02,United Kingdom Atomic Energy Authority,United Kingdom Atomic Energy Authority
26/03/2013,MATERIALS & SPARES,FUSION,FARNELL ELECTRONIC,5100287097,26.63,United Kingdom Atomic Energy Authority,United Kingdom Atomic Energy Authority
26/03/2013,MATERIALS & SPARES,FUSION,FARNELL ELECTRONIC,5100287098,1.51,United Kingdom Atomic Energy Authority,United Kingdom Atomic Energy Authority
26/03/2013,MATERIALS & SPARES,FUSION,FARNELL ELECTRONIC,5100287099,37.00,United Kingdom Atomic Energy Authority,United Kingdom Atomic Energy Authority
26/03/2013,MATERIALS & SPARES,FUSION,FARNELL ELECTRONIC,5100286940,82.56,United Kingdom Atomic Energy Authority,United Kingdom Atomic Energy Authority
26/03/2013,MATERIALS & SPARES,FUSION,FARNELL ELECTRONIC,5100286920,63.16,United Kingdom Atomic Energy Authority,United Kingdom Atomic Energy Authority
26/03/2013,MATERIALS & SPARES,FUSION,FARNELL ELECTRONIC,5100287030,867.33,United Kingdom Atomic Energy Authority,United Kingdom Atomic Energy Authority
26/03/2013,MATERIALS & SPARES,FUSION,FARNELL ELECTRONIC,5100286855,279.82,United Kingdom Atomic Energy Authority,United Kingdom Atomic Energy Authority
26/03/2013,MATERIALS & SPARES,FUSION,FARNELL ELECTRONIC,5100286898,174.53,United Kingdom Atomic Energy Authority,United Kingdom Atomic Energy Authority
26/03/2013,MATERIALS & SPARES,FUSION,FARNELL ELECTRONIC,5100286909,-9.20,United Kingdom Atomic Energy Authority,United Kingdom Atomic Energy Authority
26/03/2013,MATERIALS & SPARES,FUSION,FARNELL ELECTRONIC,5100286917,111.88,United Kingdom Atomic Energy Authority,United Kingdom Atomic Energy Authority
26/03/2013,MATERIALS & SPARES,FUSION,FARNELL ELECTRONIC,5100286947,23.00,United Kingdom Atomic Energy Authority,United Kingdom Atomic Energy Authority
26/03/2013,MATERIALS & SPARES,FUSION,FARNELL ELECTRONIC,5100286949,192.08,United Kingdom Atomic Energy Authority,United Kingdom Atomic Energy Authority
26/03/2013,MATERIALS & SPARES,FUSION,FARNELL ELECTRONIC,5100286830,15.50,United Kingdom Atomic Energy Authority,United Kingdom Atomic Energy Authority
26/03/2013,MATERIALS & SPARES,FUSION,FARNELL ELECTRONIC,5100286852,3.88,United Kingdom Atomic Energy Authority,United Kingdom Atomic Energy Authority
26/03/2013,MATERIALS & SPARES,FUSION,FARNELL ELECTRONIC,5100286913,40.94,United Kingdom Atomic Energy Authority,United Kingdom Atomic Energy Authority
26/03/2013,MATERIALS & SPARES,PROPERTY,FARNELL ELECTRONIC,5100286946,29.30,United Kingdom Atomic Energy Authority,United Kingdom Atomic Energy Authority
26/03/2013,MATERIALS & SPARES,PROPERTY,FARNELL ELECTRONIC,5100287117,-6.97,United Kingdom Atomic Energy Authority,United Kingdom Atomic Energy Authority
26/03/2013,PLANT & EQUIPMENT,FUSION,FESTO LTD,5100286889,234.22,United Kingdom Atomic Energy Authority,United Kingdom Atomic Energy Authority
06/03/2013,STATIONERY,FUSION,FINE PRINT SERVICES,5100286168,548.00,United Kingdom Atomic Energy Authority,United Kingdom Atomic Energy Authority
25/02/2013,PLANT & EQUIPMENT,FUSION,FISHER SCIENTIFIC UK LTD,5100285581,35.18,United Kingdom Atomic Energy Authority,United Kingdom Atomic Energy Authority
25/02/2013,PLANT & EQUIPMENT,FUSION,FISHER SCIENTIFIC UK LTD,5100285757,205.05,United Kingdom Atomic Energy Authority,United Kingdom Atomic Energy Authority
04/03/2013,PLANT & EQUIPMENT,FUSION,FISHER SCIENTIFIC UK LTD,5100286180,72.86,United Kingdom Atomic Energy Authority,United Kingdom Atomic Energy Authority
04/03/2013,PLANT & EQUIPMENT,FUSION,FISHER SCIENTIFIC UK LTD,5100285942,11.70,United Kingdom Atomic Energy Authority,United Kingdom Atomic Energy Authority
06/03/2013,PLANT & EQUIPMENT,FUSION,FISHER SCIENTIFIC UK LTD,5100286052,"1,136.97",United Kingdom Atomic Energy Authority,United Kingdom Atomic Energy Authority
11/03/2013,PLANT & EQUIPMENT,FUSION,FISHER SCIENTIFIC UK LTD,5100286217,707.57,United Kingdom Atomic Energy Authority,United Kingdom Atomic Energy Authority
13/03/2013,PLANT & EQUIPMENT,FUSION,FISHER SCIENTIFIC UK LTD,5100286539,"1,525.99",United Kingdom Atomic Energy Authority,United Kingdom Atomic Energy Authority
18/03/2013,PLANT & EQUIPMENT,FUSION,FISHER SCIENTIFIC UK LTD,5100286595,72.86,United Kingdom Atomic Energy Authority,United Kingdom Atomic Energy Authority
26/03/2013,PLANT & EQUIPMENT,FUSION,FISHER SCIENTIFIC UK LTD,5100286897,151.81,United Kingdom Atomic Energy Authority,United Kingdom Atomic Energy Authority
26/03/2013,PLANT & EQUIPMENT,FUSION,FISHER SCIENTIFIC UK LTD,5100286886,698.72,United Kingdom Atomic Energy Authority,United Kingdom Atomic Energy Authority
26/03/2013,PLANT & EQUIPMENT,FUSION,FISHER SCIENTIFIC UK LTD,5100286968,855.96,United Kingdom Atomic Energy Authority,United Kingdom Atomic Energy Authority
18/03/2013,MATERIALS & SPARES,FUSION,FLANN MICROWAVE INSTRUMENTS,5100286739,409.00,United Kingdom Atomic Energy Authority,United Kingdom Atomic Energy Authority
26/03/2013,MATERIALS & SPARES,FUSION,FLEXIBLE & SPECIALIST CABLES,5100286951,229.25,United Kingdom Atomic Energy Authority,United Kingdom Atomic Energy Authority
25/02/2013,MATERIALS & SPARES,FUSION,FLEXIBLE REINFORCEMENT LIMITED,5100285602,"1,475.00",United Kingdom Atomic Energy Authority,United Kingdom Atomic Energy Authority
11/03/2013,MATERIALS & SPARES,FUSION,FLOWSERVE FLOW CONTROL (UK) LTD,5100286221,231.94,United Kingdom Atomic Energy Authority,United Kingdom Atomic Energy Authority
26/03/2013,PRINTING & GRAPHICS,FUSION,Foxwood,1900057834,756.00,United Kingdom Atomic Energy Authority,United Kingdom Atomic Energy Authority
25/02/2013,PROFESSIONAL SERVICES,FUSION,FREYA CONSULTING,5100284907,"6,240.00",United Kingdom Atomic Energy Authority,United Kingdom Atomic Energy Authority
18/03/2013,MATERIALS & SPARES,FUSION,FTI LTD,5100286793,290.90,United Kingdom Atomic Energy Authority,United Kingdom Atomic Energy Authority
26/03/2013,MATERIALS & SPARES,FUSION,FTI LTD,5100286896,576.20,United Kingdom Atomic Energy Authority,United Kingdom Atomic Energy Authority
26/03/2013,MATERIALS & SPARES,FUSION,FTI LTD,5100286895,393.40,United Kingdom Atomic Energy Authority,United Kingdom Atomic Energy Authority
25/02/2013,PLANT & EQUIPMENT,FUSION,FUTURE ELECTRONICS,5100285863,"1,943.00",United Kingdom Atomic Energy Authority,United Kingdom Atomic Energy Authority
04/03/2013,MATERIALS & SPARES,FUSION,GARNER OSBORNE CIRCUITS LTD,5100285438,372.20,United Kingdom Atomic Energy Authority,United Kingdom Atomic Energy Authority
26/03/2013,MATERIALS & SPARES,FUSION,GARNER OSBORNE CIRCUITS LTD,5100286991,"3,630.32",United Kingdom Atomic Energy Authority,United Kingdom Atomic Energy Authority
11/03/2013,HIRED STAFF,FUSION,GENTLE ASSOCIATES LTD,5100286282,"3,298.20",United Kingdom Atomic Energy Authority,United Kingdom Atomic Energy Authority
11/03/2013,PROFESSIONAL SERVICES,FUSION,GLANVILLE CONSULTANTS,5100286224,"1,061.08",United Kingdom Atomic Energy Authority,United Kingdom Atomic Energy Authority
11/03/2013,PROFESSIONAL SERVICES,PROPERTY,GLANVILLE CONSULTANTS,5100286354,"1,154.57",United Kingdom Atomic Energy Authority,United Kingdom Atomic Energy Authority
11/03/2013,PROFESSIONAL SERVICES,PROPERTY,GLANVILLE CONSULTANTS,5100286355,152.11,United Kingdom Atomic Energy Authority,United Kingdom Atomic Energy Authority
06/03/2013,PLANT & EQUIPMENT,FUSION,GLASSMAN EUROPE,5100285441,"1,255.00",United Kingdom Atomic Energy Authority,United Kingdom Atomic Energy Authority
25/02/2013,MATERIALS & SPARES,FUSION,GREYHOUND CHROMATOGRAPHY,5100285583,764.85,United Kingdom Atomic Energy Authority,United Kingdom Atomic Energy Authority
11/03/2013,MATERIALS & SPARES,FUSION,GREYHOUND CHROMATOGRAPHY,5100286298,764.85,United Kingdom Atomic Energy Authority,United Kingdom Atomic Energy Authority
04/03/2013,PROFESSIONAL SERVICES,PROPERTY,GRUNDON WASTE MANAGEMENT LTD,5100285814,369.85,United Kingdom Atomic Energy Authority,United Kingdom Atomic Energy Authority
04/03/2013,PROFESSIONAL SERVICES,PROPERTY,GRUNDON WASTE MANAGEMENT LTD,5100285816,858.15,United Kingdom Atomic Energy Authority,United Kingdom Atomic Energy Authority
04/03/2013,PROFESSIONAL SERVICES,PROPERTY,GRUNDON WASTE MANAGEMENT LTD,5100285817,735.40,United Kingdom Atomic Energy Authority,United Kingdom Atomic Energy Authority
04/03/2013,PROFESSIONAL SERVICES,PROPERTY,GRUNDON WASTE MANAGEMENT LTD,5100285819,202.47,United Kingdom Atomic Energy Authority,United Kingdom Atomic Energy Authority
06/03/2013,PROFESSIONAL SERVICES,PROPERTY,GRUNDON WASTE MANAGEMENT LTD,5100285820,197.82,United Kingdom Atomic Energy Authority,United Kingdom Atomic Energy Authority
06/03/2013,PROFESSIONAL SERVICES,PROPERTY,GRUNDON WASTE MANAGEMENT LTD,5100285822,43.96,United Kingdom Atomic Energy Authority,United Kingdom Atomic Energy Authority
06/03/2013,PROFESSIONAL SERVICES,PROPERTY,GRUNDON WASTE MANAGEMENT LTD,5100285823,43.96,United Kingdom Atomic Energy Authority,United Kingdom Atomic Energy Authority
06/03/2013,PROFESSIONAL SERVICES,PROPERTY,GRUNDON WASTE MANAGEMENT LTD,5100285824,98.91,United Kingdom Atomic Energy Authority,United Kingdom Atomic Energy Authority
06/03/2013,PROFESSIONAL SERVICES,PROPERTY,GRUNDON WASTE MANAGEMENT LTD,5100285825,94.65,United Kingdom Atomic Energy Authority,United Kingdom Atomic Energy Authority
18/03/2013,PROFESSIONAL SERVICES,PROPERTY,GRUNDON WASTE MANAGEMENT LTD,5100286656,87.92,United Kingdom Atomic Energy Authority,United Kingdom Atomic Energy Authority
21/03/2013,PROFESSIONAL SERVICES,PROPERTY,GRUNDON WASTE MANAGEMENT LTD,5100287031,-87.92,United Kingdom Atomic Energy Authority,United Kingdom Atomic Energy Authority
21/03/2013,PROFESSIONAL SERVICES,PROPERTY,GRUNDON WASTE MANAGEMENT LTD,5100287032,87.92,United Kingdom Atomic Energy Authority,United Kingdom Atomic Energy Authority
26/03/2013,PROFESSIONAL SERVICES,PROPERTY,GRUNDON WASTE MANAGEMENT LTD,5100286649,296.36,United Kingdom Atomic Energy Authority,United Kingdom Atomic Energy Authority
26/03/2013,PROFESSIONAL SERVICES,PROPERTY,GRUNDON WASTE MANAGEMENT LTD,5100286650,642.84,United Kingdom Atomic Energy Authority,United Kingdom Atomic Energy Authority
26/03/2013,PROFESSIONAL SERVICES,PROPERTY,GRUNDON WASTE MANAGEMENT LTD,5100286651,544.64,United Kingdom Atomic Energy Authority,United Kingdom Atomic Energy Authority
26/03/2013,PROFESSIONAL SERVICES,PROPERTY,GRUNDON WASTE MANAGEMENT LTD,5100286652,180.04,United Kingdom Atomic Energy Authority,United Kingdom Atomic Energy Authority
26/03/2013,PROFESSIONAL SERVICES,PROPERTY,GRUNDON WASTE MANAGEMENT LTD,5100286653,175.84,United Kingdom Atomic Energy Authority,United Kingdom Atomic Energy Authority
26/03/2013,PROFESSIONAL SERVICES,PROPERTY,GRUNDON WASTE MANAGEMENT LTD,5100286654,43.96,United Kingdom Atomic Energy Authority,United Kingdom Atomic Energy Authority
26/03/2013,PROFESSIONAL SERVICES,PROPERTY,GRUNDON WASTE MANAGEMENT LTD,5100286655,43.96,United Kingdom Atomic Energy Authority,United Kingdom Atomic Energy Authority
26/03/2013,PROFESSIONAL SERVICES,PROPERTY,GRUNDON WASTE MANAGEMENT LTD,5100286657,76.20,United Kingdom Atomic Energy Authority,United Kingdom Atomic Energy Authority
25/02/2013,MATERIALS & SPARES,FUSION,GUNNEBO UK LTD,5100285607,665.59,United Kingdom Atomic Energy Authority,United Kingdom Atomic Energy Authority
11/03/2013,PLANT & EQUIPMENT,FUSION,GUNNEBO UK LTD,5100286351,"3,723.00",United Kingdom Atomic Energy Authority,United Kingdom Atomic Energy Authority
04/03/2013,PROFESSIONAL SERVICES,PROPERTY,GVA GRIMLEY,5100286011,"4,313.84",United Kingdom Atomic Energy Authority,United Kingdom Atomic Energy Authority
25/02/2013,PLANT SPARES,FUSION,HARDMETAL ENG CORNWALL LTD,5100285749,"4,152.00",United Kingdom Atomic Energy Authority,United Kingdom Atomic Energy Authority
11/03/2013,TAXIS,FUSION,HAROLDS CARS,5100286244,"4,206.45",United Kingdom Atomic Energy Authority,United Kingdom Atomic Energy Authority
15/03/2013,OTHER EMPLOYEE EXPENSES,SUPPORT SERVICES,Hays Specialist Recruitment,1900057808,"8,000.00",United Kingdom Atomic Energy Authority,United Kingdom Atomic Energy Authority
27/03/2013,PROFESSIONAL SERVICES,SUPPORT SERVICES,Heritage Woodworking,1900057843,96.00,United Kingdom Atomic Energy Authority,United Kingdom Atomic Energy Authority
11/03/2013,REPAIRS & MAINTENANCE,FUSION,HEXAGON METROLOGY,5100286169,"1,600.00",United Kingdom Atomic Energy Authority,United Kingdom Atomic Energy Authority
25/02/2013,PLANT SPARES,FUSION,HIGH TECHNOLOGY SOURCES LTD,5100285591,"3,101.00",United Kingdom Atomic Energy Authority,United Kingdom Atomic Energy Authority
11/03/2013,PROFESSIONAL SERVICES,FUSION,HILLS WASTE SOLUTIONS LTD,5100286228,60.00,United Kingdom Atomic Energy Authority,United Kingdom Atomic Energy Authority
25/02/2013,PROFESSIONAL SERVICES,FUSION,HONEYWELL ANALYTICS (SALES &SERVICE,5100285401,260.00,United Kingdom Atomic Energy Authority,United Kingdom Atomic Energy Authority
25/02/2013,MATERIALS & SPARES,FUSION,HOTCHKISS AIR SUPPLY,5100285856,117.87,United Kingdom Atomic Energy Authority,United Kingdom Atomic Energy Authority
26/03/2013,MATERIALS & SPARES,FUSION,HOTCHKISS AIR SUPPLY,5100286887,122.91,United Kingdom Atomic Energy Authority,United Kingdom Atomic Energy Authority
04/03/2013,REPAIRS & MAINTENANCE,FUSION,Hydratron Ltd,5100286134,-972.60,United Kingdom Atomic Energy Authority,United Kingdom Atomic Energy Authority
04/03/2013,REPAIRS & MAINTENANCE,FUSION,Hydratron Ltd,5100286162,972.60,United Kingdom Atomic Energy Authority,United Kingdom Atomic Energy Authority
25/02/2013,CLEANING,FUSION,HYDROBLAST,5100285582,320.00,United Kingdom Atomic Energy Authority,United Kingdom Atomic Energy Authority
25/02/2013,CLEANING,FUSION,HYDROBLAST,5100285862,210.00,United Kingdom Atomic Energy Authority,United Kingdom Atomic Energy Authority
11/03/2013,CLEANING,FUSION,HYDROBLAST,5100286229,260.00,United Kingdom Atomic Energy Authority,United Kingdom Atomic Energy Authority
11/03/2013,CLEANING,FUSION,HYDROBLAST,5100286371,410.00,United Kingdom Atomic Energy Authority,United Kingdom Atomic Energy Authority
04/03/2013,PROFESSIONAL SERVICES,FUSION,HYTEC ELECTRONICS LTD,5100285950,"1,478.60",United Kingdom Atomic Energy Authority,United Kingdom Atomic Energy Authority
13/03/2013,PLANT & EQUIPMENT,FUSION,ICAR Spa,5100286040,"65,031.52",United Kingdom Atomic Energy Authority,United Kingdom Atomic Energy Authority
04/03/2013,MEDICAL EXPENSES,FUSION,IMASS LTD,5100285954,"4,207.33",United Kingdom Atomic Energy Authority,United Kingdom Atomic Energy Authority
26/03/2013,MATERIALS & SPARES,FUSION,IMTECH INDUSTRY INT,5100286576,"3,441.67",United Kingdom Atomic Energy Authority,United Kingdom Atomic Energy Authority
04/03/2013,SITE SUPPORT SERVICES,PROPERTY,INFOCASH LTD,5100285947,100.00,United Kingdom Atomic Energy Authority,United Kingdom Atomic Energy Authority
20/03/2013,SITE SUPPORT SERVICES,PROPERTY,INFOCASH LTD,5100286745,100.00,United Kingdom Atomic Energy Authority,United Kingdom Atomic Energy Authority
05/03/2013,PLANT & EQUIPMENT,FUSION,INGCRYS Laser Systems,1900057777,"3,275.29",United Kingdom Atomic Energy Authority,United Kingdom Atomic Energy Authority
26/03/2013,PLANT & EQUIPMENT,FUSION,INSIGHT DIRECT LTD,5100287113,"2,713.98",United Kingdom Atomic Energy Authority,United Kingdom Atomic Energy Authority
20/03/2013,PLANT & EQUIPMENT,FUSION,INSTRUMENT TECHNOLOGY LTD,5100286176,"20,797.50",United Kingdom Atomic Energy Authority,United Kingdom Atomic Energy Authority
06/03/2013,MATERIALS & SPARES,FUSION,INTERSERVE INDUSTRIAL SERVICES LTD,5100283292,"91,324.35",United Kingdom Atomic Energy Authority,United Kingdom Atomic Energy Authority
27/02/2013,INTERVIEW EXPENSES,SUPPORT SERVICES,INTERVIEW EXPENSES,1900057762,96.00,United Kingdom Atomic Energy Authority,United Kingdom Atomic Energy Authority
28/02/2013,INTERVIEW EXPENSES,FUSION,INTERVIEW EXPENSES,1900057769,133.10,United Kingdom Atomic Energy Authority,United Kingdom Atomic Energy Authority
08/03/2013,INTERVIEW EXPENSES,SUPPORT SERVICES,INTERVIEW EXPENSES,1900057782,55.20,United Kingdom Atomic Energy Authority,United Kingdom Atomic Energy Authority
08/03/2013,INTERVIEW EXPENSES,SUPPORT SERVICES,INTERVIEW EXPENSES,1900057783,11.20,United Kingdom Atomic Energy Authority,United Kingdom Atomic Energy Authority
14/03/2013,INTERVIEW EXPENSES,FUSION,INTERVIEW EXPENSES,1900057805,307.19,United Kingdom Atomic Energy Authority,United Kingdom Atomic Energy Authority
14/03/2013,INTERVIEW EXPENSES,FUSION,INTERVIEW EXPENSES,1900057806,12.80,United Kingdom Atomic Energy Authority,United Kingdom Atomic Energy Authority
14/03/2013,INTERVIEW EXPENSES,FUSION,INTERVIEW EXPENSES,1900057807,186.00,United Kingdom Atomic Energy Authority,United Kingdom Atomic Energy Authority
19/03/2013,INTERVIEW EXPENSES,FUSION,INTERVIEW EXPENSES,1900057813,262.26,United Kingdom Atomic Energy Authority,United Kingdom Atomic Energy Authority
19/03/2013,INTERVIEW EXPENSES,FUSION,INTERVIEW EXPENSES,1900057816,55.00,United Kingdom Atomic Energy Authority,United Kingdom Atomic Energy Authority
19/03/2013,INTERVIEW EXPENSES,FUSION,INTERVIEW EXPENSES,1900057817,26.00,United Kingdom Atomic Energy Authority,United Kingdom Atomic Energy Authority
20/03/2013,INTERVIEW EXPENSES,SUPPORT SERVICES,INTERVIEW EXPENSES,1900057819,39.20,United Kingdom Atomic Energy Authority,United Kingdom Atomic Energy Authority
22/03/2013,INTERVIEW EXPENSES,FUSION,INTERVIEW EXPENSES,1900057823,38.75,United Kingdom Atomic Energy Authority,United Kingdom Atomic Energy Authority
22/03/2013,INTERVIEW EXPENSES,FUSION,INTERVIEW EXPENSES,1900057824,32.75,United Kingdom Atomic Energy Authority,United Kingdom Atomic Energy Authority
22/03/2013,INTERVIEW EXPENSES,FUSION,INTERVIEW EXPENSES,1900057825,244.00,United Kingdom Atomic Energy Authority,United Kingdom Atomic Energy Authority
25/03/2013,INTERVIEW EXPENSES,FUSION,INTERVIEW EXPENSES,1900057826,375.18,United Kingdom Atomic Energy Authority,United Kingdom Atomic Energy Authority
26/03/2013,INTERVIEW EXPENSES,FUSION,INTERVIEW EXPENSES,1900057829,343.42,United Kingdom Atomic Energy Authority,United Kingdom Atomic Energy Authority
27/03/2013,INTERVIEW EXPENSES,FUSION,INTERVIEW EXPENSES,1900057845,464.30,United Kingdom Atomic Energy Authority,United Kingdom Atomic Energy Authority
27/03/2013,INTERVIEW EXPENSES,FUSION,INTERVIEW EXPENSES,1900057844,49.15,United Kingdom Atomic Energy Authority,United Kingdom Atomic Energy Authority
 11/03/2013,INTERVIEW EXPENSES,FUSION,INTERVIEW EXPENSES,1900057788,113.55,United Kingdom Atomic Energy Authority,United Kingdom Atomic Energy Authority
 11/03/2013,INTERVIEW EXPENSES,FUSION,INTERVIEW EXPENSES,1900057789,88.35,United Kingdom Atomic Energy Authority,United Kingdom Atomic Energy Authority
 11/03/2013,INTERVIEW EXPENSES,FUSION,INTERVIEW EXPENSES,1900057790,56.25,United Kingdom Atomic Energy Authority,United Kingdom Atomic Energy Authority
 11/03/2013,INTERVIEW EXPENSES,FUSION,INTERVIEW EXPENSES,1900057791,44.80,United Kingdom Atomic Energy Authority,United Kingdom Atomic Energy Authority
 11/03/2013,INTERVIEW EXPENSES,FUSION,INTERVIEW EXPENSES,1900057792,44.80,United Kingdom Atomic Energy Authority,United Kingdom Atomic Energy Authority
 11/03/2013,INTERVIEW EXPENSES,FUSION,INTERVIEW EXPENSES,1900057793,126.60,United Kingdom Atomic Energy Authority,United Kingdom Atomic Energy Authority
 11/03/2013,INTERVIEW EXPENSES,FUSION,INTERVIEW EXPENSES,1900057794,98.70,United Kingdom Atomic Energy Authority,United Kingdom Atomic Energy Authority
 11/03/2013,INTERVIEW EXPENSES,FUSION,INTERVIEW EXPENSES,1900057795,127.95,United Kingdom Atomic Energy Authority,United Kingdom Atomic Energy Authority
 11/03/2013,INTERVIEW EXPENSES,FUSION,INTERVIEW EXPENSES,1900057796,40.85,United Kingdom Atomic Energy Authority,United Kingdom Atomic Energy Authority
 11/03/2013,INTERVIEW EXPENSES,FUSION,INTERVIEW EXPENSES,1900057797,32.48,United Kingdom Atomic Energy Authority,United Kingdom Atomic Energy Authority
 11/03/2013,INTERVIEW EXPENSES,FUSION,INTERVIEW EXPENSES,1900057798,56.00,United Kingdom Atomic Energy Authority,United Kingdom Atomic Energy Authority
27/02/2013,TREATED WATER,FUSION,INUTEC LIMITED,5100285683,"21,447.00",United Kingdom Atomic Energy Authority,United Kingdom Atomic Energy Authority
26/03/2013,PUBLICATIONS,FUSION,IOP PUBLISHING LTD,5100286828,843.75,United Kingdom Atomic Energy Authority,United Kingdom Atomic Energy Authority
26/03/2013,PUBLICATIONS,FUSION,IOP PUBLISHING LTD,5100287096,"1,312.50",United Kingdom Atomic Energy Authority,United Kingdom Atomic Energy Authority
27/02/2013,MATERIALS & SPARES,FUSION,ISIS FLUID CONTROL LIMITED,5100285175,120.15,United Kingdom Atomic Energy Authority,United Kingdom Atomic Energy Authority
27/02/2013,MATERIALS & SPARES,FUSION,ISIS FLUID CONTROL LIMITED,5100285423,103.42,United Kingdom Atomic Energy Authority,United Kingdom Atomic Energy Authority
27/02/2013,MATERIALS & SPARES,FUSION,ISIS FLUID CONTROL LIMITED,5100285859,-120.15,United Kingdom Atomic Energy Authority,United Kingdom Atomic Energy Authority
06/03/2013,FACILITIES MANAGEMENT,FUSION,ISS FACILITIES SERVICES,5100286167,15.70,United Kingdom Atomic Energy Authority,United Kingdom Atomic Energy Authority
11/03/2013,FACILITIES MANAGEMENT,FUSION,ISS FACILITIES SERVICES,5100286285,164.20,United Kingdom Atomic Energy Authority,United Kingdom Atomic Energy Authority
06/03/2013,SECONDED STAFF,SUPPORT SERVICES,IST,5100285316,"34,646.37",United Kingdom Atomic Energy Authority,United Kingdom Atomic Energy Authority
04/03/2013,MATERIALS & SPARES,FUSION,JAC TOOLS LTD,5100285952,20.40,United Kingdom Atomic Energy Authority,United Kingdom Atomic Energy Authority
11/03/2013,MATERIALS & SPARES,FUSION,JAC TOOLS LTD,5100286225,42.66,United Kingdom Atomic Energy Authority,United Kingdom Atomic Energy Authority
26/03/2013,PLANT & EQUIPMENT,FUSION,JEMA,5100286210,"156,841.61",United Kingdom Atomic Energy Authority,United Kingdom Atomic Energy Authority
26/03/2013,PLANT & EQUIPMENT,FUSION,JEMA,5100286211,"203,894.09",United Kingdom Atomic Energy Authority,United Kingdom Atomic Energy Authority
26/03/2013,PLANT & EQUIPMENT,FUSION,JEMA,5100286344,"-35,985.75",United Kingdom Atomic Energy Authority,United Kingdom Atomic Energy Authority
11/03/2013,VEHICLE REPAIRS,FUSION,JOHN BRADSHAW LTD,5100285259,203.00,United Kingdom Atomic Energy Authority,United Kingdom Atomic Energy Authority
26/03/2013,PLANT & EQUIPMENT,FUSION,Kapco ,1900057832,"3,476.20",United Kingdom Atomic Energy Authority,United Kingdom Atomic Energy Authority
26/03/2013,PROFESSIONAL SERVICES,FUSION,KELWAY LTD,5100287111,"28,736.00",United Kingdom Atomic Energy Authority,United Kingdom Atomic Energy Authority
04/03/2013,PROFESSIONAL SERVICES,FUSION,KEMP & KEMP,5100286012,941.40,United Kingdom Atomic Energy Authority,United Kingdom Atomic Energy Authority
04/03/2013,PROFESSIONAL SERVICES,PROPERTY,KEMP & KEMP,5100286013,"2,723.75",United Kingdom Atomic Energy Authority,United Kingdom Atomic Energy Authority
04/03/2013,PROFESSIONAL SERVICES,PROPERTY,KEMP & KEMP,5100286014,485.00,United Kingdom Atomic Energy Authority,United Kingdom Atomic Energy Authority
06/03/2013,PROFESSIONAL SERVICES,PROPERTY,KEMP & KEMP,5100286015,"5,845.00",United Kingdom Atomic Energy Authority,United Kingdom Atomic Energy Authority
26/03/2013,PROFESSIONAL SERVICES,PROPERTY,KEMP & KEMP,5100287058,"3,000.00",United Kingdom Atomic Energy Authority,United Kingdom Atomic Energy Authority
04/03/2013,LEGAL FEES,SUPPORT SERVICES,KEOGHS,5100285930,613.50,United Kingdom Atomic Energy Authority,United Kingdom Atomic Energy Authority
04/03/2013,LEGAL FEES,SUPPORT SERVICES,KEOGHS,5100285931,400.00,United Kingdom Atomic Energy Authority,United Kingdom Atomic Energy Authority
11/03/2013,LEGAL FEES,SUPPORT SERVICES,KEOGHS,5100286346,576.00,United Kingdom Atomic Energy Authority,United Kingdom Atomic Energy Authority
11/03/2013,LEGAL FEES,SUPPORT SERVICES,KEOGHS,5100286347,272.00,United Kingdom Atomic Energy Authority,United Kingdom Atomic Energy Authority
11/03/2013,LEGAL FEES,SUPPORT SERVICES,KEOGHS,5100286348,320.00,United Kingdom Atomic Energy Authority,United Kingdom Atomic Energy Authority
11/03/2013,LEGAL FEES,SUPPORT SERVICES,KEOGHS,5100286349,208.00,United Kingdom Atomic Energy Authority,United Kingdom Atomic Energy Authority
11/03/2013,LEGAL FEES,SUPPORT SERVICES,KEOGHS,5100286350,288.00,United Kingdom Atomic Energy Authority,United Kingdom Atomic Energy Authority
11/03/2013,LEGAL FEES,SUPPORT SERVICES,KEOGHS,5100286345,240.00,United Kingdom Atomic Energy Authority,United Kingdom Atomic Energy Authority
18/03/2013,LEGAL FEES,SUPPORT SERVICES,KEOGHS,5100286681,352.00,United Kingdom Atomic Energy Authority,United Kingdom Atomic Energy Authority
18/03/2013,LEGAL FEES,SUPPORT SERVICES,KEOGHS,5100286665,336.00,United Kingdom Atomic Energy Authority,United Kingdom Atomic Energy Authority
26/03/2013,LEGAL FEES,SUPPORT SERVICES,KEOGHS,5100286915,"1,792.00",United Kingdom Atomic Energy Authority,United Kingdom Atomic Energy Authority
27/02/2013,MATERIALS & SPARES,FUSION,KEY INDUSTRIAL EQUIPMENT LTD,5100285805,94.05,United Kingdom Atomic Energy Authority,United Kingdom Atomic Energy Authority
04/03/2013,MATERIALS & SPARES,FUSION,KEY INDUSTRIAL EQUIPMENT LTD,5100285956,353.40,United Kingdom Atomic Energy Authority,United Kingdom Atomic Energy Authority
20/03/2013,PRINTING & GRAPHICS,FUSION,KIP UK SERVICE CENTRE,5100286296,286.84,United Kingdom Atomic Energy Authority,United Kingdom Atomic Energy Authority
26/03/2013,PLANT & EQUIPMENT,FUSION,KME GERMANY AG & CO,5100286381,"82,260.00",United Kingdom Atomic Energy Authority,United Kingdom Atomic Energy Authority
26/03/2013,PLANT & EQUIPMENT,FUSION,KME GERMANY AG & CO,5100286382,"-2,285.00",United Kingdom Atomic Energy Authority,United Kingdom Atomic Energy Authority
25/02/2013,BUILDING REPAIRS,FUSION,KNOWLES & SONS (OXFORD) LTD,5100285699,"2,276.36",United Kingdom Atomic Energy Authority,United Kingdom Atomic Energy Authority
25/02/2013,BUILDING REPAIRS,FUSION,KNOWLES & SONS (OXFORD) LTD,5100285711,275.68,United Kingdom Atomic Energy Authority,United Kingdom Atomic Energy Authority
25/02/2013,BUILDING REPAIRS,FUSION,KNOWLES & SONS (OXFORD) LTD,5100285703,28.48,United Kingdom Atomic Energy Authority,United Kingdom Atomic Energy Authority
25/02/2013,BUILDING REPAIRS,FUSION,KNOWLES & SONS (OXFORD) LTD,5100285704,"1,261.62",United Kingdom Atomic Energy Authority,United Kingdom Atomic Energy Authority
25/02/2013,BUILDING REPAIRS,FUSION,KNOWLES & SONS (OXFORD) LTD,5100285713,309.82,United Kingdom Atomic Energy Authority,United Kingdom Atomic Energy Authority
25/02/2013,BUILDING REPAIRS,PROPERTY,KNOWLES & SONS (OXFORD) LTD,5100285705,"1,203.52",United Kingdom Atomic Energy Authority,United Kingdom Atomic Energy Authority
25/02/2013,BUILDING REPAIRS,PROPERTY,KNOWLES & SONS (OXFORD) LTD,5100285712,504.40,United Kingdom Atomic Energy Authority,United Kingdom Atomic Energy Authority
25/02/2013,BUILDING REPAIRS,PROPERTY,KNOWLES & SONS (OXFORD) LTD,5100285902,-148.26,United Kingdom Atomic Energy Authority,United Kingdom Atomic Energy Authority
25/02/2013,BUILDING REPAIRS,PROPERTY,KNOWLES & SONS (OXFORD) LTD,5100285700,49.42,United Kingdom Atomic Energy Authority,United Kingdom Atomic Energy Authority
25/02/2013,BUILDING REPAIRS,PROPERTY,KNOWLES & SONS (OXFORD) LTD,5100285701,"10,366.39",United Kingdom Atomic Energy Authority,United Kingdom Atomic Energy Authority
25/02/2013,BUILDING REPAIRS,PROPERTY,KNOWLES & SONS (OXFORD) LTD,5100285702,537.44,United Kingdom Atomic Energy Authority,United Kingdom Atomic Energy Authority
25/02/2013,BUILDING REPAIRS,PROPERTY,KNOWLES & SONS (OXFORD) LTD,5100285709,-593.23,United Kingdom Atomic Energy Authority,United Kingdom Atomic Energy Authority
25/02/2013,BUILDING REPAIRS,PROPERTY,KNOWLES & SONS (OXFORD) LTD,5100285710,593.23,United Kingdom Atomic Energy Authority,United Kingdom Atomic Energy Authority
25/02/2013,BUILDING REPAIRS,PROPERTY,KNOWLES & SONS (OXFORD) LTD,5100285738,"57,910.21",United Kingdom Atomic Energy Authority,United Kingdom Atomic Energy Authority
25/02/2013,BUILDING REPAIRS,PROPERTY,KNOWLES & SONS (OXFORD) LTD,5100285696,550.51,United Kingdom Atomic Energy Authority,United Kingdom Atomic Energy Authority
25/02/2013,BUILDING REPAIRS,PROPERTY,KNOWLES & SONS (OXFORD) LTD,5100285706,23.81,United Kingdom Atomic Energy Authority,United Kingdom Atomic Energy Authority
25/02/2013,BUILDING REPAIRS,PROPERTY,KNOWLES & SONS (OXFORD) LTD,5100285707,521.47,United Kingdom Atomic Energy Authority,United Kingdom Atomic Energy Authority
25/02/2013,BUILDING REPAIRS,SUPPORT SERVICES,KNOWLES & SONS (OXFORD) LTD,5100285697,69.61,United Kingdom Atomic Energy Authority,United Kingdom Atomic Energy Authority
25/02/2013,BUILDING REPAIRS,SUPPORT SERVICES,KNOWLES & SONS (OXFORD) LTD,5100285698,33.69,United Kingdom Atomic Energy Authority,United Kingdom Atomic Energy Authority
27/02/2013,BUILDING REPAIRS,PROPERTY,KNOWLES & SONS (OXFORD) LTD,5100285124,"53,940.59",United Kingdom Atomic Energy Authority,United Kingdom Atomic Energy Authority
27/02/2013,BUILDING REPAIRS,PROPERTY,KNOWLES & SONS (OXFORD) LTD,5100286019,-91.63,United Kingdom Atomic Energy Authority,United Kingdom Atomic Energy Authority
04/03/2013,BUILDING REPAIRS,FUSION,KNOWLES & SONS (OXFORD) LTD,5100285981,97.24,United Kingdom Atomic Energy Authority,United Kingdom Atomic Energy Authority
04/03/2013,BUILDING REPAIRS,FUSION,KNOWLES & SONS (OXFORD) LTD,5100285991,"2,391.58",United Kingdom Atomic Energy Authority,United Kingdom Atomic Energy Authority
04/03/2013,BUILDING REPAIRS,FUSION,KNOWLES & SONS (OXFORD) LTD,5100285986,973.48,United Kingdom Atomic Energy Authority,United Kingdom Atomic Energy Authority
04/03/2013,BUILDING REPAIRS,FUSION,KNOWLES & SONS (OXFORD) LTD,5100285977,46.51,United Kingdom Atomic Energy Authority,United Kingdom Atomic Energy Authority
04/03/2013,BUILDING REPAIRS,FUSION,KNOWLES & SONS (OXFORD) LTD,5100285978,25.83,United Kingdom Atomic Energy Authority,United Kingdom Atomic Energy Authority
04/03/2013,BUILDING REPAIRS,FUSION,KNOWLES & SONS (OXFORD) LTD,5100285980,58.12,United Kingdom Atomic Energy Authority,United Kingdom Atomic Energy Authority
04/03/2013,BUILDING REPAIRS,FUSION,KNOWLES & SONS (OXFORD) LTD,5100285983,916.32,United Kingdom Atomic Energy Authority,United Kingdom Atomic Energy Authority
04/03/2013,BUILDING REPAIRS,FUSION,KNOWLES & SONS (OXFORD) LTD,5100285979,123.33,United Kingdom Atomic Energy Authority,United Kingdom Atomic Energy Authority
04/03/2013,BUILDING REPAIRS,FUSION,KNOWLES & SONS (OXFORD) LTD,5100285990,225.74,United Kingdom Atomic Energy Authority,United Kingdom Atomic Energy Authority
04/03/2013,BUILDING REPAIRS,PROPERTY,KNOWLES & SONS (OXFORD) LTD,5100285982,148.26,United Kingdom Atomic Energy Authority,United Kingdom Atomic Energy Authority
04/03/2013,BUILDING REPAIRS,PROPERTY,KNOWLES & SONS (OXFORD) LTD,5100285971,"13,893.88",United Kingdom Atomic Energy Authority,United Kingdom Atomic Energy Authority
04/03/2013,BUILDING REPAIRS,PROPERTY,KNOWLES & SONS (OXFORD) LTD,5100285972,"1,438.57",United Kingdom Atomic Energy Authority,United Kingdom Atomic Energy Authority
04/03/2013,BUILDING REPAIRS,PROPERTY,KNOWLES & SONS (OXFORD) LTD,5100285973,"1,807.79",United Kingdom Atomic Energy Authority,United Kingdom Atomic Energy Authority
04/03/2013,BUILDING REPAIRS,PROPERTY,KNOWLES & SONS (OXFORD) LTD,5100285974,"1,612.93",United Kingdom Atomic Energy Authority,United Kingdom Atomic Energy Authority
04/03/2013,BUILDING REPAIRS,PROPERTY,KNOWLES & SONS (OXFORD) LTD,5100285975,"2,830.65",United Kingdom Atomic Energy Authority,United Kingdom Atomic Energy Authority
04/03/2013,BUILDING REPAIRS,PROPERTY,KNOWLES & SONS (OXFORD) LTD,5100285976,"38,856.86",United Kingdom Atomic Energy Authority,United Kingdom Atomic Energy Authority
04/03/2013,BUILDING REPAIRS,PROPERTY,KNOWLES & SONS (OXFORD) LTD,5100285987,"2,916.53",United Kingdom Atomic Energy Authority,United Kingdom Atomic Energy Authority
04/03/2013,BUILDING REPAIRS,PROPERTY,KNOWLES & SONS (OXFORD) LTD,5100285988,"1,843.38",United Kingdom Atomic Energy Authority,United Kingdom Atomic Energy Authority
04/03/2013,BUILDING REPAIRS,PROPERTY,KNOWLES & SONS (OXFORD) LTD,5100285989,86.49,United Kingdom Atomic Energy Authority,United Kingdom Atomic Energy Authority
04/03/2013,BUILDING REPAIRS,PROPERTY,KNOWLES & SONS (OXFORD) LTD,5100285985,"1,320.27",United Kingdom Atomic Energy Authority,United Kingdom Atomic Energy Authority
04/03/2013,BUILDING REPAIRS,SUPPORT SERVICES,KNOWLES & SONS (OXFORD) LTD,5100285984,"1,459.49",United Kingdom Atomic Energy Authority,United Kingdom Atomic Energy Authority
18/03/2013,BUILDING REPAIRS,FUSION,KNOWLES & SONS (OXFORD) LTD,5100286803,415.95,United Kingdom Atomic Energy Authority,United Kingdom Atomic Energy Authority
18/03/2013,BUILDING REPAIRS,FUSION,KNOWLES & SONS (OXFORD) LTD,5100286799,"4,101.72",United Kingdom Atomic Energy Authority,United Kingdom Atomic Energy Authority
18/03/2013,BUILDING REPAIRS,PROPERTY,KNOWLES & SONS (OXFORD) LTD,5100286288,"7,912.56",United Kingdom Atomic Energy Authority,United Kingdom Atomic Energy Authority
18/03/2013,BUILDING REPAIRS,PROPERTY,KNOWLES & SONS (OXFORD) LTD,5100286295,"55,636.81",United Kingdom Atomic Energy Authority,United Kingdom Atomic Energy Authority
18/03/2013,BUILDING REPAIRS,PROPERTY,KNOWLES & SONS (OXFORD) LTD,5100286805,-100.63,United Kingdom Atomic Energy Authority,United Kingdom Atomic Energy Authority
18/03/2013,BUILDING REPAIRS,PROPERTY,KNOWLES & SONS (OXFORD) LTD,5100286796,"9,045.47",United Kingdom Atomic Energy Authority,United Kingdom Atomic Energy Authority
18/03/2013,BUILDING REPAIRS,PROPERTY,KNOWLES & SONS (OXFORD) LTD,5100286797,"5,194.51",United Kingdom Atomic Energy Authority,United Kingdom Atomic Energy Authority
18/03/2013,BUILDING REPAIRS,PROPERTY,KNOWLES & SONS (OXFORD) LTD,5100286798,"3,341.60",United Kingdom Atomic Energy Authority,United Kingdom Atomic Energy Authority
18/03/2013,BUILDING REPAIRS,PROPERTY,KNOWLES & SONS (OXFORD) LTD,5100286800,35.12,United Kingdom Atomic Energy Authority,United Kingdom Atomic Energy Authority
18/03/2013,BUILDING REPAIRS,PROPERTY,KNOWLES & SONS (OXFORD) LTD,5100286801,50.31,United Kingdom Atomic Energy Authority,United Kingdom Atomic Energy Authority
18/03/2013,BUILDING REPAIRS,PROPERTY,KNOWLES & SONS (OXFORD) LTD,5100286802,25.83,United Kingdom Atomic Energy Authority,United Kingdom Atomic Energy Authority
26/03/2013,PLANT & EQUIPMENT,FUSION,KOBALD INSTRUMENTS,5100287063,"3,019.55",United Kingdom Atomic Energy Authority,United Kingdom Atomic Energy Authority
18/03/2013,MATERIALS & SPARES,FUSION,KURT J LESKER,5100286602,30.90,United Kingdom Atomic Energy Authority,United Kingdom Atomic Energy Authority
26/03/2013,MATERIALS & SPARES,FUSION,KURT J LESKER,5100286888,47.08,United Kingdom Atomic Energy Authority,United Kingdom Atomic Energy Authority
26/03/2013,MATERIALS & SPARES,FUSION,L.C SWITCHGEAR,5100286353,"14,566.02",United Kingdom Atomic Energy Authority,United Kingdom Atomic Energy Authority
06/03/2013,STATIONERY,FUSION,Lamport Gilbert Ltd,5100286046,252.00,United Kingdom Atomic Energy Authority,United Kingdom Atomic Energy Authority
20/03/2013,STATIONERY,FUSION,Lamport Gilbert Ltd,5100286736,252.00,United Kingdom Atomic Energy Authority,United Kingdom Atomic Energy Authority
04/03/2013,MATERIALS & SPARES,FUSION,LANODE LTD,5100286047,367.95,United Kingdom Atomic Energy Authority,United Kingdom Atomic Energy Authority
18/03/2013,PLANT SPARES,FUSION,LASER 2000 LTD,5100286792,"1,473.00",United Kingdom Atomic Energy Authority,United Kingdom Atomic Energy Authority
26/03/2013,MATERIALS & SPARES,FUSION,LATCHWAYS,5100287052,"3,835.00",United Kingdom Atomic Energy Authority,United Kingdom Atomic Energy Authority
25/02/2013,PLANT & EQUIPMENT,FUSION,LC AUTOMATION LTD,5100285605,"1,177.90",United Kingdom Atomic Energy Authority,United Kingdom Atomic Energy Authority
25/02/2013,CAR HIRE,FUSION,LEASE PLAN UK LTD,5100285892,815.04,United Kingdom Atomic Energy Authority,United Kingdom Atomic Energy Authority
25/02/2013,CAR HIRE,SUPPORT SERVICES,LEASE PLAN UK LTD,5100285882,359.56,United Kingdom Atomic Energy Authority,United Kingdom Atomic Energy Authority
25/02/2013,CAR HIRE,SUPPORT SERVICES,LEASE PLAN UK LTD,5100285883,429.31,United Kingdom Atomic Energy Authority,United Kingdom Atomic Energy Authority
25/02/2013,CAR HIRE,SUPPORT SERVICES,LEASE PLAN UK LTD,5100285884,"1,410.24",United Kingdom Atomic Energy Authority,United Kingdom Atomic Energy Authority
25/02/2013,CAR HIRE,SUPPORT SERVICES,LEASE PLAN UK LTD,5100285885,490.09,United Kingdom Atomic Energy Authority,United Kingdom Atomic Energy Authority
25/02/2013,CAR HIRE,SUPPORT SERVICES,LEASE PLAN UK LTD,5100285886,"2,681.92",United Kingdom Atomic Energy Authority,United Kingdom Atomic Energy Authority
25/02/2013,CAR HIRE,SUPPORT SERVICES,LEASE PLAN UK LTD,5100285888,556.75,United Kingdom Atomic Energy Authority,United Kingdom Atomic Energy Authority
25/02/2013,CAR HIRE,SUPPORT SERVICES,LEASE PLAN UK LTD,5100285890,684.74,United Kingdom Atomic Energy Authority,United Kingdom Atomic Energy Authority
25/02/2013,CAR HIRE,SUPPORT SERVICES,LEASE PLAN UK LTD,5100285893,297.79,United Kingdom Atomic Energy Authority,United Kingdom Atomic Energy Authority
25/02/2013,CAR HIRE,SUPPORT SERVICES,LEASE PLAN UK LTD,5100285894,674.94,United Kingdom Atomic Energy Authority,United Kingdom Atomic Energy Authority
26/03/2013,CAR HIRE,SUPPORT SERVICES,LEASE PLAN UK LTD,5100287046,684.74,United Kingdom Atomic Energy Authority,United Kingdom Atomic Energy Authority
26/03/2013,CAR HIRE,SUPPORT SERVICES,LEASE PLAN UK LTD,5100287047,"1,113.50",United Kingdom Atomic Energy Authority,United Kingdom Atomic Energy Authority
25/02/2013,CAR HIRE,FUSION,LEASEDRIVE VELO,5100285752,36.44,United Kingdom Atomic Energy Authority,United Kingdom Atomic Energy Authority
25/02/2013,CAR HIRE,FUSION,LEASEDRIVE VELO,5100285684,77.56,United Kingdom Atomic Energy Authority,United Kingdom Atomic Energy Authority
25/02/2013,CAR HIRE,FUSION,LEASEDRIVE VELO,5100285802,34.39,United Kingdom Atomic Energy Authority,United Kingdom Atomic Energy Authority
04/03/2013,CAR HIRE,FUSION,LEASEDRIVE VELO,5100285932,479.22,United Kingdom Atomic Energy Authority,United Kingdom Atomic Energy Authority
04/03/2013,CAR HIRE,FUSION,LEASEDRIVE VELO,5100286165,101.99,United Kingdom Atomic Energy Authority,United Kingdom Atomic Energy Authority
06/03/2013,CAR HIRE,FUSION,LEASEDRIVE VELO,5100285685,74.54,United Kingdom Atomic Energy Authority,United Kingdom Atomic Energy Authority
11/03/2013,CAR HIRE,FUSION,LEASEDRIVE VELO,5100286416,195.36,United Kingdom Atomic Energy Authority,United Kingdom Atomic Energy Authority
11/03/2013,CAR HIRE,FUSION,LEASEDRIVE VELO,5100286538,114.10,United Kingdom Atomic Energy Authority,United Kingdom Atomic Energy Authority
11/03/2013,CAR HIRE,FUSION,LEASEDRIVE VELO,5100286417,72.88,United Kingdom Atomic Energy Authority,United Kingdom Atomic Energy Authority
11/03/2013,CAR HIRE,FUSION,LEASEDRIVE VELO,5100286537,49.75,United Kingdom Atomic Energy Authority,United Kingdom Atomic Energy Authority
18/03/2013,CAR HIRE,FUSION,LEASEDRIVE VELO,5100286603,59.67,United Kingdom Atomic Energy Authority,United Kingdom Atomic Energy Authority
18/03/2013,CAR HIRE,FUSION,LEASEDRIVE VELO,5100286678,82.14,United Kingdom Atomic Energy Authority,United Kingdom Atomic Energy Authority
18/03/2013,CAR HIRE,FUSION,LEASEDRIVE VELO,5100286804,42.33,United Kingdom Atomic Energy Authority,United Kingdom Atomic Energy Authority
18/03/2013,CAR HIRE,FUSION,LEASEDRIVE VELO,5100286598,52.48,United Kingdom Atomic Energy Authority,United Kingdom Atomic Energy Authority
18/03/2013,CAR HIRE,FUSION,LEASEDRIVE VELO,5100286608,36.44,United Kingdom Atomic Energy Authority,United Kingdom Atomic Energy Authority
18/03/2013,CAR HIRE,FUSION,LEASEDRIVE VELO,5100286666,-48.06,United Kingdom Atomic Energy Authority,United Kingdom Atomic Energy Authority
26/03/2013,CAR HIRE,FUSION,LEASEDRIVE VELO,5100286361,72.88,United Kingdom Atomic Energy Authority,United Kingdom Atomic Energy Authority
26/03/2013,CAR HIRE,FUSION,LEASEDRIVE VELO,5100286970,-18.22,United Kingdom Atomic Energy Authority,United Kingdom Atomic Energy Authority
26/03/2013,CAR HIRE,FUSION,LEASEDRIVE VELO,5100287064,60.08,United Kingdom Atomic Energy Authority,United Kingdom Atomic Energy Authority
26/03/2013,CAR HIRE,FUSION,LEASEDRIVE VELO,5100287065,75.78,United Kingdom Atomic Energy Authority,United Kingdom Atomic Energy Authority
26/03/2013,CAR HIRE,FUSION,LEASEDRIVE VELO,5100287066,137.50,United Kingdom Atomic Energy Authority,United Kingdom Atomic Energy Authority
26/03/2013,PLANT & EQUIPMENT,FUSION,LEE SPRING LTD,5100287053,54.20,United Kingdom Atomic Energy Authority,United Kingdom Atomic Energy Authority
18/03/2013,PLANT & EQUIPMENT,FUSION,LEMO UK LTD,5100286600,28.15,United Kingdom Atomic Energy Authority,United Kingdom Atomic Energy Authority
25/02/2013,COMPUTER REPAIRS,FUSION,LEVANT UPS LTD,5100284517,"11,250.00",United Kingdom Atomic Energy Authority,United Kingdom Atomic Energy Authority
25/02/2013,COMPUTER REPAIRS,FUSION,LEVANT UPS LTD,5100285484,"14,915.00",United Kingdom Atomic Energy Authority,United Kingdom Atomic Energy Authority
25/02/2013,COMPUTER REPAIRS,FUSION,LEVANT UPS LTD,5100285485,"-5,625.00",United Kingdom Atomic Energy Authority,United Kingdom Atomic Energy Authority
26/03/2013,COMPUTER REPAIRS,FUSION,LEVANT UPS LTD,5100286175,"14,915.00",United Kingdom Atomic Energy Authority,United Kingdom Atomic Energy Authority
11/03/2013,BOOKS & PUBLICATIONS,SUPPORT SERVICES,LEXIS NEXIS BUTTERWORTHS,5100286428,466.45,United Kingdom Atomic Energy Authority,United Kingdom Atomic Energy Authority
13/03/2013,BOOKS & PUBLICATIONS,SUPPORT SERVICES,LEXIS NEXIS BUTTERWORTHS,5100286648,"3,268.00",United Kingdom Atomic Energy Authority,United Kingdom Atomic Energy Authority
25/02/2013,PLANT & EQUIPMENT,FUSION,LEYBOLD LTD,5100285750,796.80,United Kingdom Atomic Energy Authority,United Kingdom Atomic Energy Authority
11/03/2013,PROFESSIONAL SERVICES,SUPPORT SERVICES,LOGICA CMG UK LTD,5100286227,"2,790.17",United Kingdom Atomic Energy Authority,United Kingdom Atomic Energy Authority
11/03/2013,PLANT & EQUIPMENT,FUSION,LONDON FLUID SYSTEM,5100286405,181.48,United Kingdom Atomic Energy Authority,United Kingdom Atomic Energy Authority
18/03/2013,PLANT & EQUIPMENT,FUSION,LONDON FLUID SYSTEM TECHNOLOGIES LT,5100286569,88.20,United Kingdom Atomic Energy Authority,United Kingdom Atomic Energy Authority
25/02/2013,BUILDING REPAIRS,FUSION,LORNE STEWART PLC,5100283708,"19,010.04",United Kingdom Atomic Energy Authority,United Kingdom Atomic Energy Authority
04/03/2013,BUILDING REPAIRS,FUSION,LORNE STEWART PLC,5100286042,"-25,328.77",United Kingdom Atomic Energy Authority,United Kingdom Atomic Energy Authority
04/03/2013,BUILDING REPAIRS,FUSION,LORNE STEWART PLC,5100286043,"25,328.77",United Kingdom Atomic Energy Authority,United Kingdom Atomic Energy Authority
11/03/2013,BUILDING REPAIRS,FUSION,LORNE STEWART PLC,5100286384,"31,798.87",United Kingdom Atomic Energy Authority,United Kingdom Atomic Energy Authority
11/03/2013,BUILDING REPAIRS,FUSION,LORNE STEWART PLC,5100286392,"19,454.18",United Kingdom Atomic Energy Authority,United Kingdom Atomic Energy Authority
11/03/2013,BUILDING REPAIRS,FUSION,LORNE STEWART PLC,5100286388,"1,668.70",United Kingdom Atomic Energy Authority,United Kingdom Atomic Energy Authority
11/03/2013,BUILDING REPAIRS,FUSION,LORNE STEWART PLC,5100286387,"1,270.50",United Kingdom Atomic Energy Authority,United Kingdom Atomic Energy Authority
11/03/2013,BUILDING REPAIRS,PROPERTY,LORNE STEWART PLC,5100286385,"36,240.03",United Kingdom Atomic Energy Authority,United Kingdom Atomic Energy Authority
11/03/2013,BUILDING REPAIRS,PROPERTY,LORNE STEWART PLC,5100286394,"13,939.81",United Kingdom Atomic Energy Authority,United Kingdom Atomic Energy Authority
11/03/2013,BUILDING REPAIRS,PROPERTY,LORNE STEWART PLC,5100286386,"3,281.03",United Kingdom Atomic Energy Authority,United Kingdom Atomic Energy Authority
11/03/2013,BUILDING REPAIRS,PROPERTY,LORNE STEWART PLC,5100286393,"3,721.03",United Kingdom Atomic Energy Authority,United Kingdom Atomic Energy Authority
11/03/2013,BUILDING REPAIRS,PROPERTY,LORNE STEWART PLC,5100286389,831.93,United Kingdom Atomic Energy Authority,United Kingdom Atomic Energy Authority
11/03/2013,BUILDING REPAIRS,PROPERTY,LORNE STEWART PLC,5100286390,404.34,United Kingdom Atomic Energy Authority,United Kingdom Atomic Energy Authority
11/03/2013,BUILDING REPAIRS,PROPERTY,LORNE STEWART PLC,5100286391,352.52,United Kingdom Atomic Energy Authority,United Kingdom Atomic Energy Authority
18/03/2013,DESIGN & CONSTRUCTION,FUSION,LR ENGINEERING,5100286599,"2,624.00",United Kingdom Atomic Energy Authority,United Kingdom Atomic Energy Authority
25/02/2013,PLANT & EQUIPMENT,FUSION,LSW SUPPLIES,5100285756,172.80,United Kingdom Atomic Energy Authority,United Kingdom Atomic Energy Authority
26/03/2013,PLANT & EQUIPMENT,FUSION,LSW SUPPLIES,5100286923,188.08,United Kingdom Atomic Energy Authority,United Kingdom Atomic Energy Authority
26/03/2013,PLANT & EQUIPMENT,FUSION,LSW SUPPLIES,5100286924,275.60,United Kingdom Atomic Energy Authority,United Kingdom Atomic Energy Authority
18/03/2013,TRAINING COURSE FEES,SUPPORT SERVICES,LUCID ASSOCIATES,5100286575,"7,045.00",United Kingdom Atomic Energy Authority,United Kingdom Atomic Energy Authority
26/03/2013,MATERIALS & SPARES,FUSION,LUVATA PORI OY,5100285801,"7,322.31",United Kingdom Atomic Energy Authority,United Kingdom Atomic Energy Authority
26/03/2013,MATERIALS & SPARES,FUSION,LUVATA PORI OY,5100286209,"4,219.05",United Kingdom Atomic Energy Authority,United Kingdom Atomic Energy Authority
04/03/2013,STATIONERY,SUPPORT SERVICES,LYRECO UK LIMITED,5100285962,227.37,United Kingdom Atomic Energy Authority,United Kingdom Atomic Energy Authority
04/03/2013,STATIONERY,FUSION,LYRECO UK LIMITED,5100285959,352.78,United Kingdom Atomic Energy Authority,United Kingdom Atomic Energy Authority
04/03/2013,STATIONERY,FUSION,LYRECO UK LIMITED,5100285960,282.85,United Kingdom Atomic Energy Authority,United Kingdom Atomic Energy Authority
04/03/2013,STATIONERY,FUSION,LYRECO UK LIMITED,5100286048,20.40,United Kingdom Atomic Energy Authority,United Kingdom Atomic Energy Authority
04/03/2013,STATIONERY,FUSION,LYRECO UK LIMITED,5100286049,238.06,United Kingdom Atomic Energy Authority,United Kingdom Atomic Energy Authority
11/03/2013,STATIONERY,SUPPORT SERVICES,LYRECO UK LIMITED,5100286369,142.65,United Kingdom Atomic Energy Authority,United Kingdom Atomic Energy Authority
11/03/2013,STATIONERY,FUSION,LYRECO UK LIMITED,5100286366,238.17,United Kingdom Atomic Energy Authority,United Kingdom Atomic Energy Authority
11/03/2013,STATIONERY,FUSION,LYRECO UK LIMITED,5100286367,15.60,United Kingdom Atomic Energy Authority,United Kingdom Atomic Energy Authority
11/03/2013,STATIONERY,FUSION,LYRECO UK LIMITED,5100286368,177.37,United Kingdom Atomic Energy Authority,United Kingdom Atomic Energy Authority
18/03/2013,STATIONERY,FUSION,LYRECO UK LIMITED,5100286693,132.65,United Kingdom Atomic Energy Authority,United Kingdom Atomic Energy Authority
18/03/2013,STATIONERY,FUSION,LYRECO UK LIMITED,5100286694,10.33,United Kingdom Atomic Energy Authority,United Kingdom Atomic Energy Authority
26/03/2013,STATIONERY,SUPPORT SERVICES,LYRECO UK LIMITED,5100286967,147.78,United Kingdom Atomic Energy Authority,United Kingdom Atomic Energy Authority
26/03/2013,STATIONERY,FUSION,LYRECO UK LIMITED,5100286964,352.68,United Kingdom Atomic Energy Authority,United Kingdom Atomic Energy Authority
26/03/2013,STATIONERY,FUSION,LYRECO UK LIMITED,5100286965,3.05,United Kingdom Atomic Energy Authority,United Kingdom Atomic Energy Authority
26/03/2013,STATIONERY,FUSION,LYRECO UK LIMITED,5100286966,96.15,United Kingdom Atomic Energy Authority,United Kingdom Atomic Energy Authority
26/03/2013,RENT OF VEHICLE & EQUIPMENT,FUSION,M.J.C SERVICES,5100286292,346.66,United Kingdom Atomic Energy Authority,United Kingdom Atomic Energy Authority
04/03/2013,IT EQUIPMENT NON CAPITAL,FUSION,MAAINTECH,5100285546,"3,063.00",United Kingdom Atomic Energy Authority,United Kingdom Atomic Energy Authority
04/03/2013,IT EQUIPMENT NON CAPITAL,FUSION,MAAINTECH,5100285754,"1,615.50",United Kingdom Atomic Energy Authority,United Kingdom Atomic Energy Authority
04/03/2013,IT EQUIPMENT NON CAPITAL,FUSION,MAAINTECH,5100286139,"3,905.80",United Kingdom Atomic Energy Authority,United Kingdom Atomic Energy Authority
26/03/2013,IT EQUIPMENT NON CAPITAL,FUSION,MAAINTECH,5100286697,"2,591.00",United Kingdom Atomic Energy Authority,United Kingdom Atomic Energy Authority
26/03/2013,PROFESSIONAL SERVICES,FUSION,MACHINING TECHNOLOGY (MACH-TECH),5100286984,334.98,United Kingdom Atomic Energy Authority,United Kingdom Atomic Energy Authority
04/03/2013,AUDIT FEES,SUPPORT SERVICES,MANAGING FOR QUALITY LTD,5100286148,"2,680.00",United Kingdom Atomic Energy Authority,United Kingdom Atomic Energy Authority
26/03/2013,PLANT & EQUIPMENT,FUSION,MANCHESTER METROLOGY,5100286818,340.00,United Kingdom Atomic Energy Authority,United Kingdom Atomic Energy Authority
25/02/2013,MATERIALS & SPARES,FUSION,MAPLIN ELECTRONICS LTD,5100285658,81.12,United Kingdom Atomic Energy Authority,United Kingdom Atomic Energy Authority
11/03/2013,PROFESSIONAL SERVICES,FUSION,MARCHAM SCIENTIFIC LTD,5100286233,"3,250.00",United Kingdom Atomic Energy Authority,United Kingdom Atomic Energy Authority
25/02/2013,MATERIALS & SPARES,FUSION,MARK 5,5100285772,79.99,United Kingdom Atomic Energy Authority,United Kingdom Atomic Energy Authority
11/03/2013,MATERIALS & SPARES,FUSION,MARK 5,5100286447,60.00,United Kingdom Atomic Energy Authority,United Kingdom Atomic Energy Authority
13/03/2013,INSURANCE,SUPPORT SERVICES,MARSH UK LIMITED,5100286669,"2,000.00",United Kingdom Atomic Energy Authority,United Kingdom Atomic Energy Authority
13/03/2013,PROFESSIONAL SERVICES,FUSION,MATERIAL MEASUREMENTS LTD.,5100286410,316.50,United Kingdom Atomic Energy Authority,United Kingdom Atomic Energy Authority
13/03/2013,PROFESSIONAL SERVICES,FUSION,MATERIAL MEASUREMENTS LTD.,5100286411,99.97,United Kingdom Atomic Energy Authority,United Kingdom Atomic Energy Authority
26/03/2013,PROFESSIONAL SERVICES,FUSION,MATERIAL MEASUREMENTS LTD.,5100286972,184.95,United Kingdom Atomic Energy Authority,United Kingdom Atomic Energy Authority
26/03/2013,PROFESSIONAL SERVICES,FUSION,MATERIAL MEASUREMENTS LTD.,5100286974,184.95,United Kingdom Atomic Energy Authority,United Kingdom Atomic Energy Authority
26/03/2013,PROFESSIONAL SERVICES,FUSION,MATERIAL MEASUREMENTS LTD.,5100286975,122.70,United Kingdom Atomic Energy Authority,United Kingdom Atomic Energy Authority
18/03/2013,DESIGN & CONSTRUCTION,FUSION,MAYFLEX UK LTD,5100286714,140.61,United Kingdom Atomic Energy Authority,United Kingdom Atomic Energy Authority
04/03/2013,PROFESSIONAL SERVICES,PROPERTY,MCBAINS COOPER,5100286159,386.50,United Kingdom Atomic Energy Authority,United Kingdom Atomic Energy Authority
11/03/2013,PROFESSIONAL SERVICES,FUSION,MCBAINS COOPER,5100286158,"20,095.08",United Kingdom Atomic Energy Authority,United Kingdom Atomic Energy Authority
25/02/2013,PLANT & EQUIPMENT,FUSION,MCDC VACCUUM LTD,5100285762,735.48,United Kingdom Atomic Energy Authority,United Kingdom Atomic Energy Authority
18/03/2013,PLANT & EQUIPMENT,FUSION,MCDC VACCUUM LTD,5100286586,"1,286.00",United Kingdom Atomic Energy Authority,United Kingdom Atomic Energy Authority
26/03/2013,PLANT & EQUIPMENT,FUSION,MCDC VACCUUM LTD,5100286821,140.00,United Kingdom Atomic Energy Authority,United Kingdom Atomic Energy Authority
26/03/2013,PLANT & EQUIPMENT,FUSION,MCDC VACCUUM LTD,5100286820,"2,904.00",United Kingdom Atomic Energy Authority,United Kingdom Atomic Energy Authority
04/03/2013,MATERIALS & SPARES,FUSION,MEDLINE SCIENTIFIC LTD,5100285966,84.74,United Kingdom Atomic Energy Authority,United Kingdom Atomic Energy Authority
06/03/2013,UNIVERSITY PLACEMENT,FUSION,MERTON COLLEGE,5100286031,"9,806.18",United Kingdom Atomic Energy Authority,United Kingdom Atomic Energy Authority
25/02/2013,MATERIALS & SPARES,FUSION,METALFAST (A DIVISION OF,5100285763,124.50,United Kingdom Atomic Energy Authority,United Kingdom Atomic Energy Authority
04/03/2013,MATERIALS & SPARES,FUSION,METALFAST (A DIVISION OF,5100285935,101.50,United Kingdom Atomic Energy Authority,United Kingdom Atomic Energy Authority
04/03/2013,MATERIALS & SPARES,FUSION,METALFAST (A DIVISION OF,5100285964,79.50,United Kingdom Atomic Energy Authority,United Kingdom Atomic Energy Authority
04/03/2013,MATERIALS & SPARES,FUSION,METALFAST (A DIVISION OF,5100286154,510.50,United Kingdom Atomic Energy Authority,United Kingdom Atomic Energy Authority
18/03/2013,MATERIALS & SPARES,FUSION,METALFAST (A DIVISION OF,5100286638,318.50,United Kingdom Atomic Energy Authority,United Kingdom Atomic Energy Authority
18/03/2013,MATERIALS & SPARES,FUSION,METALFAST (A DIVISION OF,5100286719,235.50,United Kingdom Atomic Energy Authority,United Kingdom Atomic Energy Authority
18/03/2013,MATERIALS & SPARES,FUSION,METALFAST (A DIVISION OF,5100286610,74.00,United Kingdom Atomic Energy Authority,United Kingdom Atomic Energy Authority
18/03/2013,MATERIALS & SPARES,FUSION,METALFAST (A DIVISION OF,5100286611,82.50,United Kingdom Atomic Energy Authority,United Kingdom Atomic Energy Authority
18/03/2013,MATERIALS & SPARES,FUSION,METALFAST (A DIVISION OF,5100286612,227.50,United Kingdom Atomic Energy Authority,United Kingdom Atomic Energy Authority
26/03/2013,MATERIALS & SPARES,FUSION,METALFAST (A DIVISION OF,5100286259,250.00,United Kingdom Atomic Energy Authority,United Kingdom Atomic Energy Authority
26/03/2013,MATERIALS & SPARES,FUSION,METALFAST (A DIVISION OF,5100286963,-125.00,United Kingdom Atomic Energy Authority,United Kingdom Atomic Energy Authority
25/02/2013,MATERIALS & SPARES,FUSION,METALWEB,5100285818,168.10,United Kingdom Atomic Energy Authority,United Kingdom Atomic Energy Authority
25/02/2013,MATERIALS & SPARES,FUSION,METALWEB,5100285821,168.10,United Kingdom Atomic Energy Authority,United Kingdom Atomic Energy Authority
11/03/2013,MATERIALS & SPARES,FUSION,METALWEB,5100286302,315.20,United Kingdom Atomic Energy Authority,United Kingdom Atomic Energy Authority
26/03/2013,MATERIALS & SPARES,FUSION,METALWEB,5100286880,286.50,United Kingdom Atomic Energy Authority,United Kingdom Atomic Energy Authority
13/03/2013,MATERIALS & SPARES,FUSION,METSPIN LTD,5100286406,"1,101.50",United Kingdom Atomic Energy Authority,United Kingdom Atomic Energy Authority
26/03/2013,MATERIALS & SPARES,FUSION,METSPIN LTD,5100286811,675.50,United Kingdom Atomic Energy Authority,United Kingdom Atomic Energy Authority
26/03/2013,PLANT & EQUIPMENT,FUSION,MF HYDRAULICS LTD,5100287242,546.75,United Kingdom Atomic Energy Authority,United Kingdom Atomic Energy Authority
18/03/2013,PLANT & EQUIPMENT,FUSION,Micro Epsilon UK Ltd,1900057809,"9,841.20",United Kingdom Atomic Energy Authority,United Kingdom Atomic Energy Authority
06/03/2013,IT EQUIPMENT NON CAPITAL,FUSION,MICRONICS,5100285943,"1,970.00",United Kingdom Atomic Energy Authority,United Kingdom Atomic Energy Authority
11/03/2013,IT EQUIPMENT NON CAPITAL,FUSION,MICRONICS,5100286465,370.00,United Kingdom Atomic Energy Authority,United Kingdom Atomic Energy Authority
04/03/2013,PROFESSIONAL SERVICES,FUSION,MIDLAND COMPUTER SERVICES,5100285404,"4,649.00",United Kingdom Atomic Energy Authority,United Kingdom Atomic Energy Authority
25/02/2013,PLANT & EQUIPMENT,FUSION,MILLHILL TOOLS LTD,5100285349,7.29,United Kingdom Atomic Energy Authority,United Kingdom Atomic Energy Authority
11/03/2013,PLANT & EQUIPMENT,FUSION,MILLHILL TOOLS LTD,5100286460,66.14,United Kingdom Atomic Energy Authority,United Kingdom Atomic Energy Authority
11/03/2013,PLANT & EQUIPMENT,FUSION,MILLHILL TOOLS LTD,5100286461,18.10,United Kingdom Atomic Energy Authority,United Kingdom Atomic Energy Authority
18/03/2013,MATERIALS & SPARES,FUSION,Millipore (UK) Limited,5100286637,129.00,United Kingdom Atomic Energy Authority,United Kingdom Atomic Energy Authority
26/03/2013,REPAIRS & MAINTENANCE,FUSION,MIMER INFORMATION TECHNOLOGY AB,5100286263,"4,401.00",United Kingdom Atomic Energy Authority,United Kingdom Atomic Energy Authority
